Workbook

Sheet データ貼付 (hidden)
A1: 競技会名 | B1: 競技場 | C1: 競技実施月日 | D1: クラス | E1: 種目 | F1: 選手／チーム | G1: 記録 | H1: ラウンド | I1: 所属 | J1: 学年 | K1: 風速
A2: 記録会４戦 | B2: 北見 | C2: 2019-08-04 | D2: 中学男子 | E2: 棒高跳 | F2: ｽﾉｰｼﾞｮｻｲﾔ | G2: 220 | H2: 決 | I2: 網走第四中 | J2: 1 | M2: =F2&E2 -> ｽﾉｰｼﾞｮｻｲﾔ棒高跳 | O2: 1
A3: 記録会４戦 | B3: 北見 | C3: 2019-08-04 | D3: 中学女子 | E3: 走高跳 | F3: 阿部愛佳 | G3: 130 | H3: 決 | I3: 網走第三中 | J3: 2 | M3: 阿部愛佳走高跳 | O3: =IF(M3=M2,0,1) -> 1
A4: 小学生ｵﾎｰﾂｸ | B4: 北見 | C4: 2019-06-16 | D4: 小学男子 | E4: 走高跳 | F4: 阿部空晴 | G4: 120 | H4: 決 | I4: 美幌RC | J4: 6 | M4: 阿部空晴走高跳 | O4: =IF(M4=M3,0,1) -> 1
A5: 小学生ｵﾎｰﾂｸ | B5: 北見 | C5: 2019-06-16 | D5: 小学男子 | E5: 走高跳 | F5: 安井徠人 | G5: 105 | H5: 決 | I5: 美幌RC | J5: 5 | M5: 安井徠人走高跳 | O5: 1
A6: 全道高校 | B6: 帯広 | C6: 6/19 | D6: 高校男子 | E6: 棒高跳 | F6: 安田留伊 | G6: 400 | H6: 決 | I6: 北見緑陵高 | J6: 2 | M6: 安田留伊棒高跳 | O6: =IF(M6=#REF!,0,1) -> 
A7: 選手権 | B7: 北見 | C7: 2019-05-12 | D7: 高校男子 | E7: 走高跳 | F7: 鞍元宏樹 | G7: 140 | H7: 決 | I7: 北見工業高 | J7: 3 | M7: 鞍元宏樹走高跳 | O7: =IF(M7=#REF!,0,1) -> 
A8: 小学生記録会 | B8: 北見 | C8: 2019-09-28 | D8: 小学男子 | E8: 走高跳 | F8: 伊藤尊 | G8: 95 | H8: 決 | I8: ｵﾎｰﾂｸACｼﾞｭﾆｱ | J8: 4 | M8: 伊藤尊走高跳 | O8: 1
A9: 通信陸上 | B9: 網走 | C9: 2019-06-29 | D9: 中学女子 | E9: 走高跳 | F9: 伊藤来美 | G9: 143 | H9: 決 | I9: 北見南中 | J9: 3 | M9: 伊藤来美走高跳 | O9: 1
A10: 地区中体連 | B10: 北見 | C10: 2019-06-15 | D10: 中学女子 | E10: 走高跳 | F10: 伊藤凛音 | G10: 140 | H10: 決 | I10: 北見南中 | J10: 1 | M10: 伊藤凛音走高跳 | O10: 1
A11: 記録会第２戦 | B11: 網走 | C11: 2019-05-04 | D11: 高校男子 | E11: 走高跳 | F11: 伊奈翔大 | G11: 160 | H11: 決 | I11: 北見柏陽高 | J11: 1 | M11: 伊奈翔大走高跳 | O11: =IF(M11=#REF!,0,1) -> 
A12: 小学生記録会 | B12: 北見 | C12: 2019-09-28 | D12: 小学女子 | E12: 走高跳 | F12: 井上茜深 | G12: 125 | H12: 決 | I12: 常呂陸上少年団 | J12: 6 | M12: 井上茜深走高跳 | O12: 1
A13: 記録会４戦 | B13: 北見 | C13: 2019-08-04 | D13: 中学女子 | E13: 走高跳 | F13: 井上優奈 | G13: 125 | H13: 決 | I13: 置戸中 | J13: 3 | M13: 井上優奈走高跳 | O13: =IF(M13=#REF!,0,1) -> 
A14: 秋季陸上 | B14: 網走 | C14: 2019-09-08 | D14: 中学女子 | E14: 走高跳 | F14: 井尾愛美 | G14: 130 | H14: 決 | I14: 網走第一中 | J14: 2 | M14: 井尾愛美走高跳 | O14: 1
A15: 地区中体連 | B15: 北見 | C15: 2019-06-15 | D15: 中学女子 | E15: 走高跳 | F15: 一谷美穂 | G15: 125 | H15: 決 | I15: 紋別中 | J15: 3 | M15: 一谷美穂走高跳 | O15: 1
A16: 高体連支部 | B16: 北見 | C16: 2019-05-24 | D16: 高校男子 | E16: 走高跳 | F16: 臼井貴将 | G16: 168 | H16: 決 | I16: 網走南ヶ丘高 | J16: 2 | M16: 臼井貴将走高跳 | O16: 1
A17: 記録会３戦 | B17: 網走 | C17: 2019-07-14 | D17: 中学女子 | E17: 走高跳 | F17: 永本文香 | G17: 120 | H17: 決 | I17: 網走第三中 | J17: 2 | M17: 永本文香走高跳 | O17: 1
A18: 高校新人 | B18: 北見 | C18: 2019-08-23 | D18: 高校女子 | E18: 走高跳 | F18: 塩田悦子 | G18: 141 | H18: 決 | I18: 網走南ヶ丘高 | J18: 2 | M18: 塩田悦子走高跳 | O18: 1
A19: 中学新人 | B19: 北見 | C19: 2019-08-24 | D19: 中学女子 | E19: 走高跳 | F19: 奥河優花 | G19: 130 | H19: 決 | I19: 紋別中 | J19: 2 | M19: 奥河優花走高跳 | O19: 1
A20: 小学生記録会 | B20: 北見 | C20: 2019-09-28 | D20: 小学女子 | E20: 走高跳 | F20: 家藤緑茄 | G20: 120 | H20: 決 | I20: 網走陸上少年団 | J20: 5 | M20: 家藤緑茄走高跳 | O20: 1
A21: 全道中学 | B21: 旭川 | C21: 2019-07-28 | D21: 中学男子 | E21: 走高跳 | F21: 角谷優孔 | G21: 176 | H21: 決 | I21: 斜里知床ｳﾄﾛ学校 | J21: 3 | M21: 角谷優孔走高跳 | O21: =IF(M21=#REF!,0,1) -> 
A22: 記録会第２戦 | B22: 網走 | C22: 2019-05-04 | D22: 高校男子 | E22: 走高跳 | F22: 梶原幹太 | G22: 175 | H22: 決 | I22: 北見柏陽高 | J22: 3 | M22: 梶原幹太走高跳 | O22: 1
A23: フィールド記録会 | B23: 網走 | C23: 2019-06-08 | D23: 小学男子 | E23: 走高跳 | F23: 岩崎鼓太郎 | G23: 110 | H23: 決 | I23: ｵﾎｰﾂｸｷｯｽﾞ | J23: 6 | M23: 岩崎鼓太郎走高跳 | O23: 1
A24: 高校新人 | B24: 北見 | C24: 2019-08-24 | D24: 高校男子 | E24: 走高跳 | F24: 岩﨑崚 | G24: 150 | H24: 決 | I24: 北見緑陵高 | J24: 1 | M24: 岩﨑崚走高跳 | O24: 1
A25: 通信陸上 | B25: 網走 | C25: 2019-06-29 | D25: 中学女子 | E25: 走高跳 | F25: 吉田萌花 | G25: 135 | H25: 決 | I25: 北見南中 | J25: 3 | M25: 吉田萌花走高跳 | O25: 1
A26: フィールド記録会 | B26: 網走 | C26: 2019-06-08 | D26: 小学女子 | E26: 走高跳 | F26: 久保田昊和 | G26: 105 | H26: 決 | I26: 知床斜里RC | J26: 6 | M26: 久保田昊和走高跳 | O26: 1
A27: 選手権 | B27: 北見 | C27: 2019-05-11 | D27: 小学男子 | E27: 走高跳 | F27: 近藤輝空 | G27: 110 | H27: 決 | I27: ｵﾎｰﾂｸｷｯｽﾞ | J27: 6 | M27: 近藤輝空走高跳 | O27: =IF(M27=#REF!,0,1) -> 
A28: 地区中体連 | B28: 北見 | C28: 2019-06-15 | D28: 中学女子 | E28: 走高跳 | F28: 熊谷彩音 | G28: 120 | H28: 決 | I28: 北見小泉中 | J28: 3 | M28: 熊谷彩音走高跳 | O28: 1
A29: 記録会４戦 | B29: 北見 | C29: 2019-08-04 | D29: 中学男子 | E29: 棒高跳 | F29: 栗生朔門 | G29: 410 | H29: 決 | I29: 網走第四中 | J29: 3 | M29: 栗生朔門棒高跳 | O29: 1
A30: 記録会４戦 | B30: 北見 | C30: 2019-08-04 | D30: 中学男子 | E30: 走高跳 | F30: 月嶋永遠 | G30: 150 | H30: 決 | I30: 北見北光中 | J30: 3 | M30: 月嶋永遠走高跳 | O30: =IF(M30=#REF!,0,1) -> 
A31: 地区中体連 | B31: 北見 | C31: 2019-06-14 | D31: 中学男子 | E31: 棒高跳 | F31: 古畑愛斗 | G31: 240 | H31: 決 | I31: 北見小泉中 | J31: 2 | M31: 古畑愛斗棒高跳 | O31: 1
A32: 高体連支部 | B32: 北見 | C32: 2019-05-24 | D32: 高校女子 | E32: 走高跳 | F32: 五十嵐響 | G32: 140 | H32: 決 | I32: 北見藤高 | J32: 1 | M32: 五十嵐響走高跳 | O32: =IF(M32=#REF!,0,1) -> 
A33: 高体連支部 | B33: 北見 | C33: 2019-05-24 | D33: 高校女子 | E33: 走高跳 | F33: 後田千春 | G33: 125 | H33: 決 | I33: 網走桂陽高 | J33: 1 | M33: 後田千春走高跳 | O33: 1
A34: 高体連支部 | B34: 北見 | C34: 2019-05-24 | D34: 高校男子 | E34: 走高跳 | F34: 工藤夢叶 | G34: 160 | H34: 決 | I34: 北見工業高 | J34: 2 | M34: =F34&E34 -> 工藤夢叶走高跳 | O34: 1
A35: 小学生ｵﾎｰﾂｸ | B35: 北見 | C35: 2019-06-16 | D35: 小学男子 | E35: 走高跳 | F35: 江添陽人 | G35: 100 | H35: 決 | I35: ｵﾎｰﾂｸSS | J35: 6 | M35: 江添陽人走高跳 | O35: 1
A36: フィールド記録会 | B36: 網走 | C36: 2019-06-08 | D36: 小学男子 | E36: 走高跳 | F36: 荒木碧巴 | G36: 115 | H36: 決 | I36: 知床斜里RC | J36: 6 | M36: 荒木碧巴走高跳 | O36: 1
A37: 小学生ｵﾎｰﾂｸ | B37: 北見 | C37: 2019-06-16 | D37: 小学女子 | E37: 走高跳 | F37: 高橋碧衣 | G37: 100 | H37: 決 | I37: 常呂陸上少年団 | J37: 5 | M37: 高橋碧衣走高跳 | O37: 1
A38: 全道高校新人 | B38: 函館 | C38: 9/19 | D38: 高校男子 | E38: 走高跳 | F38: 根田一光 | G38: 180 | H38: 予 | I38: 網走南ｹ丘高 | J38: 1 | M38: 根田一光走高跳 | O38: 1
A39: 選手権 | B39: 北見 | C39: 2019-05-12 | D39: 高校男子 | E39: 走高跳 | F39: 佐藤一希 | G39: 150 | H39: 決 | I39: 清里高 | J39: 2 | M39: 佐藤一希走高跳 | O39: 1
A40: 秋季陸上 | B40: 網走 | C40: 2019-09-07 | D40: 中学男子 | E40: 棒高跳 | F40: 佐藤大斗 | G40: 240 | H40: 決 | I40: 斜里中 | J40: 1 | M40: 佐藤大斗棒高跳 | O40: 1
A41: 高体連支部 | B41: 北見 | C41: 2019-05-24 | D41: 高校男子 | E41: 走高跳 | F41: 佐藤碧 | G41: 189 | H41: 決 | I41: 北見北斗高 | J41: 3 | M41: 佐藤碧走高跳 | O41: 1
A42: 高体連支部 | B42: 北見 | C42: 2019-05-24 | D42: 高校男子 | E42: 走高跳 | F42: 佐藤琉生 | G42: 171 | H42: 決 | I42: 北見北斗高 | J42: 1 | M42: 佐藤琉生走高跳 | O42: 1
A43: 記録会第２戦 | B43: 網走 | C43: 2019-05-04 | D43: 高校男子 | E43: 走高跳 | F43: 佐藤涼太 | G43: 186 | H43: 決 | I43: 網走桂陽高 | J43: 3 | M43: 佐藤涼太走高跳 | O43: 1
A44: 秋季陸上 | B44: 網走 | C44: 2019-09-08 | D44: 中学女子 | E44: 走高跳 | F44: 佐伯亜子 | G44: 144 | H44: 決 | I44: 北見小泉中 | J44: 2 | M44: 佐伯亜子走高跳 | O44: 1
A45: 高校新人 | B45: 北見 | C45: 2019-08-24 | D45: 高校男子 | E45: 走高跳 | F45: 佐野光 | G45: 165 | H45: 決 | I45: 北見北斗高 | J45: 1 | M45: 佐野光走高跳 | O45: =IF(M45=#REF!,0,1) -> 
A46: 秋季陸上 | B46: 網走 | C46: 2019-09-07 | D46: 中学男子 | E46: 棒高跳 | F46: 佐野巧 | G46: 350 | H46: 決 | I46: 斜里中 | J46: 3 | M46: 佐野巧棒高跳 | O46: 1
A47: 小学生記録会 | B47: 北見 | C47: 2019-09-28 | D47: 小学男子 | E47: 走高跳 | F47: 佐野氷佳流 | G47: 115 | H47: 決 | I47: 知床斜里RC | J47: 5 | M47: 佐野氷佳流走高跳 | O47: 1
A48: 高校新人 | B48: 北見 | C48: 2019-08-24 | D48: 高校男子 | E48: 走高跳 | F48: 坂元恭介 | G48: 160 | H48: 決 | I48: 網走南ヶ丘高 | J48: 1 | M48: 坂元恭介走高跳 | O48: =IF(M48=#REF!,0,1) -> 
A49: 全道高校新人 | B49: 函館 | C49: 9/18 | D49: 高校男子 | E49: 棒高跳 | F49: 坂元恭介 | G49: 420 | H49: 決 | I49: 網走南ｹ丘高 | J49: 1 | M49: 坂元恭介棒高跳 | O49: 1
A50: 高校新人 | B50: 北見 | C50: 2019-08-24 | D50: 高校男子 | E50: 走高跳 | F50: 坂口直樹 | G50: 155 | H50: 決 | I50: 遠軽高 | J50: 1 | M50: 坂口直樹走高跳 | O50: =IF(M50=#REF!,0,1) -> 
A51: 記録会４戦 | B51: 北見 | C51: 2019-08-04 | D51: 中学男子 | E51: 走高跳 | F51: 山田蒼唯 | G51: 155 | H51: 決 | I51: 北見北光中 | J51: 3 | M51: 山田蒼唯走高跳 | O51: 1
A52: 選手権 | B52: 北見 | C52: 2019-05-12 | D52: 高校男子 | E52: 走高跳 | F52: 山田翔也 | G52: 150 | H52: 決 | I52: 紋別高 | J52: 2 | M52: 山田翔也走高跳 | O52: 1
A53: 地区中体連 | B53: 北見 | C53: 2019-06-14 | D53: 中学男子 | E53: 棒高跳 | F53: 山本銀士郎 | G53: 230 | H53: 決 | I53: 網走第一中 | J53: 2 | M53: 山本銀士郎棒高跳 | O53: 1
A54: 小学生ｵﾎｰﾂｸ | B54: 北見 | C54: 2019-06-16 | D54: 小学男子 | E54: 走高跳 | F54: 山本耕四朗 | G54: 105 | H54: 決 | I54: ｵﾎｰﾂｸACｼﾞｭﾆｱ | J54: 5 | M54: 山本耕四朗走高跳 | O54: 1
A55: 小学生記録会 | B55: 北見 | C55: 2019-09-28 | D55: 小学男子 | E55: 走高跳 | F55: 山本耕四郎 | G55: 110 | H55: 決 | I55: ｵﾎｰﾂｸACｼﾞｭﾆｱ | J55: 5 | M55: 山本耕四郎走高跳 | O55: 1
A56: 小学生記録会 | B56: 北見 | C56: 2019-09-28 | D56: 小学男子 | E56: 走高跳 | F56: 山本大三郎 | G56: 125 | H56: 決 | I56: ｵﾎｰﾂｸACｼﾞｭﾆｱ | J56: 6 | M56: 山本大三郎走高跳 | O56: =IF(M56=M55,0,1) -> 1
A57: フィールド記録会 | B57: 網走 | C57: 2019-06-08 | D57: 中学男子 | E57: 棒高跳 | F57: 市村宥樹 | G57: 280 | H57: 決 | I57: 斜里中 | J57: 3 | M57: 市村宥樹棒高跳 | O57: =IF(M57=#REF!,0,1) -> 
A58: 通信陸上 | B58: 網走 | C58: 2019-06-29 | D58: 中学女子 | E58: 走高跳 | F58: 枝﨑千夏 | G58: 120 | H58: 決 | I58: 美幌北中 | J58: 1 | M58: 枝﨑千夏走高跳 | O58: 1
A59: 通信陸上 | B59: 網走 | C59: 2019-06-29 | D59: 中学女子 | E59: 走高跳 | F59: 篠原もも香 | G59: 110 | H59: 決 | I59: 北見南中 | J59: 1 | M59: 篠原もも香走高跳 | O59: 1
A60: 中学新人 | B60: 北見 | C60: 2019-08-24 | D60: 中学女子 | E60: 走高跳 | F60: 篠原菜蓮 | G60: 130 | H60: 決 | I60: 網走第三中 | J60: 2 | M60: 篠原菜蓮走高跳 | O60: 1
A61: 高体連支部 | B61: 北見 | C61: 2019-05-23 | D61: 高校女子 | E61: 棒高跳 | F61: 若松亜美 | G61: 340 | H61: 決 | I61: 北見緑陵高 | J61: 3 | M61: 若松亜美棒高跳 | O61: 1
A62: 小学生記録会 | B62: 北見 | C62: 2019-09-28 | D62: 小学女子 | E62: 走高跳 | F62: 酒井彩吹 | G62: 105 | H62: 決 | I62: 網走陸上少年団 | J62: 4 | M62: 酒井彩吹走高跳 | O62: =IF(M62=#REF!,0,1) -> 
A63: 小学生ｵﾎｰﾂｸ | B63: 北見 | C63: 2019-06-16 | D63: 小学女子 | E63: 走高跳 | F63: 酒井寧々 | G63: 105 | H63: 決 | I63: ｵﾎｰﾂｸｷｯｽﾞ | J63: 5 | M63: 酒井寧々走高跳 | O63: 1
A64: 選手権 | B64: 北見 | C64: 2019-05-12 | D64: 中学男子 | E64: 走高跳 | F64: 酒井柊優 | G64: 125 | H64: 決 | I64: 北見東陵中 | J64: 1 | M64: 酒井柊優走高跳 | O64: 1
A65: 通信陸上 | B65: 網走 | C65: 2019-06-29 | D65: 中学男子 | E65: 走高跳 | F65: 秋山義宗 | G65: 140 | H65: 決 | I65: 北見常呂中 | J65: 2 | M65: 秋山義宗走高跳 | O65: 1
A66: 記録会第２戦 | B66: 網走 | C66: 2019-05-04 | D66: 高校男子 | E66: 棒高跳 | F66: 小河大介 | G66: 410 | H66: 決 | I66: 網走桂陽高 | J66: 1 | M66: =F66&E66 -> 小河大介棒高跳 | O66: 1
A67: 通信陸上 | B67: 網走 | C67: 2019-06-29 | D67: 中学男子 | E67: 走高跳 | F67: 小原拓真 | G67: 135 | H67: 決 | I67: 北見常呂中 | J67: 2 | M67: 小原拓真走高跳 | O67: =IF(M67=#REF!,0,1) -> 
A68: 選手権 | B68: 北見 | C68: 2019-05-12 | D68: 中学男子 | E68: 走高跳 | F68: 小助川智博 | G68: 130 | H68: 決 | I68: 紋別中 | J68: 2 | M68: 小助川智博走高跳 | O68: 1
A69: 記録会第１戦 | B69: 北見 | C69: 2019-04-28 | D69: 共通女子 | E69: 走高跳 | F69: 小川遼佳 | G69: 125 | H69: 決 | I69: 大空東藻琴中 | J69: 3 | M69: 小川遼佳走高跳 | O69: 1
A70: 全道高校 | B70: 帯広 | C70: 6/18 | D70: 高校女子 | E70: 棒高跳 | F70: 小野寺萌華 | G70: 340 | H70: 決 | I70: 網走南ヶ丘高 | J70: 1 | M70: 小野寺萌華棒高跳 | O70: 1
A71: 選手権 | B71: 北見 | C71: 2019-05-12 | D71: 中学女子 | E71: 走高跳 | F71: 小野蒼空 | G71: 135 | H71: 決 | I71: 美幌北中 | J71: 1 | M71: 小野蒼空走高跳 | O71: 1
A72: 選手権 | B72: 北見 | C72: 2019-05-12 | D72: 高校男子 | E72: 走高跳 | F72: 小野拓也 | G72: 168 | H72: 決 | I72: 網走桂陽高 | J72: 3 | M72: 小野拓也走高跳 | O72: =IF(M72=#REF!,0,1) -> 
A73: 高体連支部 | B73: 北見 | C73: 2019-05-24 | D73: 高校男子 | E73: 走高跳 | F73: 庄司千祐 | G73: 171 | H73: 決 | I73: 北見柏陽高 | J73: 2 | M73: 庄司千祐走高跳 | O73: 1
A74: 高体連支部 | B74: 北見 | C74: 2019-05-23 | D74: 高校女子 | E74: 棒高跳 | F74: 松原麗 | G74: 180 | H74: 決 | I74: 遠軽高 | J74: 2 | M74: 松原麗棒高跳 | O74: 1
A75: 記録会第１戦 | B75: 北見 | C75: 2019-04-28 | D75: 中学男子 | E75: 棒高跳 | F75: 松本亮介 | G75: 200 | H75: 決 | I75: 北見小泉中 | J75: 2 | M75: 松本亮介棒高跳 | O75: 1
A76: 高体連支部 | B76: 北見 | C76: 2019-05-24 | D76: 高校男子 | E76: 走高跳 | F76: 沼田陵佑 | G76: 168 | H76: 決 | I76: 北見柏陽高 | J76: 3 | M76: 沼田陵佑走高跳 | O76: 1
A77: 通信陸上 | B77: 網走 | C77: 2019-06-29 | D77: 中学女子 | E77: 走高跳 | F77: 森ひなた | G77: 120 | H77: 決 | I77: 北見小泉中 | J77: 3 | M77: 森ひなた走高跳 | O77: 1
A78: 道ジュニア | B78: 釧路 | C78: 2019-09-01 | D78: 中学女子 | E78: 走高跳 | F78: 森彩夏 | G78: 151 | H78: 決 | I78: 北見常呂中 | J78: 3 | M78: 森彩夏走高跳 | O78: 1
A79: 小学生ｵﾎｰﾂｸ | B79: 北見 | C79: 2019-06-16 | D79: 小学男子 | E79: 走高跳 | F79: 杉山智亮 | G79: 115 | H79: 決 | I79: ｵﾎｰﾂｸｷｯｽﾞ | J79: 6 | M79: 杉山智亮走高跳 | O79: =IF(M79=#REF!,0,1) -> 
A80: 記録会第２戦 | B80: 網走 | C80: 2019-05-04 | D80: 中学女子 | E80: 走高跳 | F80: 杉本玲奈 | G80: 135 | H80: 決 | I80: 網走第四中 | J80: 2 | M80: 杉本玲奈走高跳 | O80: =IF(M80=#REF!,0,1) -> 
A81: 全道高校新人 | B81: 函館 | C81: 9/20 | D81: 高校女子 | E81: 走高跳 | F81: 菅原玲奈 | G81: 164 | H81: 決 | I81: 興部高 | J81: 2 | M81: 菅原玲奈走高跳 | O81: =IF(M81=#REF!,0,1) -> 
A82: 記録会４戦 | B82: 北見 | C82: 2019-08-04 | D82: 中学男子 | E82: 走高跳 | F82: 正壽祐希 | G82: 135 | H82: 決 | I82: 北見北光中 | J82: 3 | M82: 正壽祐希走高跳 | O82: 1
A83: 記録会３戦 | B83: 網走 | C83: 2019-07-14 | D83: 中学女子 | E83: 走高跳 | F83: 清川幸愛 | G83: 120 | H83: 決 | I83: 置戸中 | J83: 1 | M83: 清川幸愛走高跳 | O83: 1
A84: フィールド記録会 | B84: 網走 | C84: 2019-06-08 | D84: 小学男子 | E84: 走高跳 | F84: 西川佑吾 | G84: 125 | H84: 決 | I84: 知床斜里RC | J84: 6 | M84: 西川佑吾走高跳 | O84: 1
A85: 小学生記録会 | B85: 北見 | C85: 2019-09-28 | D85: 小学男子 | E85: 走高跳 | F85: 西川悠輝 | G85: 105 | H85: 決 | I85: 知床斜里RC | J85: 4 | M85: 西川悠輝走高跳 | O85: =IF(M85=#REF!,0,1) -> 
A86: 秋季陸上 | B86: 網走 | C86: 2019-09-07 | D86: 中学男子 | E86: 走高跳 | F86: 西村海斗 | G86: 150 | H86: 決 | I86: 北見北光中 | J86: 2 | M86: 西村海斗走高跳 | O86: 1
A87: 中学新人 | B87: 北見 | C87: 2019-08-24 | D87: 中学女子 | E87: 走高跳 | F87: 西多里奈 | G87: 110 | H87: 決 | I87: 網走第三中 | J87: 2 | M87: 西多里奈走高跳 | O87: 1
A88: 小学生ｵﾎｰﾂｸ | B88: 北見 | C88: 2019-06-16 | D88: 小学男子 | E88: 走高跳 | F88: 西迫知希 | G88: 105 | H88: 決 | I88: ｵﾎｰﾂｸｷｯｽﾞ | J88: 5 | M88: 西迫知希走高跳 | O88: 1
A89: 高校新人 | B89: 北見 | C89: 2019-08-24 | D89: 高校男子 | E89: 走高跳 | F89: 斉藤一歩 | G89: 140 | H89: 決 | I89: 北見緑陵高 | J89: 1 | M89: 斉藤一歩走高跳 | O89: 1
A90: 高校新人 | B90: 北見 | C90: 2019-08-24 | D90: 高校男子 | E90: 棒高跳 | F90: 石井建太朗 | G90: 420 | H90: 決 | I90: 網走南ヶ丘高 | J90: 2 | M90: 石井建太朗棒高跳 | O90: 1
A91: 秋季陸上 | B91: 網走 | C91: 2019-09-07 | D91: 中学男子 | E91: 棒高跳 | F91: 石原遥翔 | G91: 190 | H91: 決 | I91: 網走第四中 | J91: 1 | M91: 石原遥翔棒高跳 | O91: =IF(M91=#REF!,0,1) -> 
A92: 記録会第１戦 | B92: 北見 | C92: 2019-04-28 | D92: 共通女子 | E92: 走高跳 | F92: 石山真衣 | G92: 135 | H92: 決 | I92: 湧別高 | J92: 3 | M92: 石山真衣走高跳 | O92: 1
A93: 秋季陸上 | B93: 網走 | C93: 2019-09-07 | D93: 中学男子 | E93: 棒高跳 | F93: 石田和也 | G93: 371 | H93: 決 | I93: 網走第一中 | J93: 3 | M93: 石田和也棒高跳 | O93: 1
A94: 全道中学新人 | B94: 千歳 | C94: 2019-09-21 | D94: 中学男子 | E94: 棒高跳 | F94: 川上大晴 | G94: 260 | H94: 決 | I94: 北見小泉 | J94: 2 | M94: 川上大晴棒高跳 | O94: =IF(M94=#REF!,0,1) -> 
A95: 小学生記録会 | B95: 北見 | C95: 2019-09-28 | D95: 小学男子 | E95: 走高跳 | F95: 川瀬智仁 | G95: 105 | H95: 決 | I95: ｵﾎｰﾂｸACｼﾞｭﾆｱ | J95: 5 | M95: 川瀬智仁走高跳 | O95: =IF(M95=#REF!,0,1) -> 
A96: 秋季陸上 | B96: 網走 | C96: 2019-09-07 | D96: 中学男子 | E96: 棒高跳 | F96: 川島歩結夢 | G96: 340 | H96: 決 | I96: 斜里中 | J96: 2 | M96: 川島歩結夢棒高跳 | O96: 1
A97: 小学生記録会 | B97: 北見 | C97: 2019-09-28 | D97: 小学女子 | E97: 走高跳 | F97: 曽根絢優愛 | G97: 95 | H97: 決 | I97: 美幌RC | J97: 5 | M97: 曽根絢優愛走高跳 | O97: =IF(M97=#REF!,0,1) -> 
A98: 選手権 | B98: 北見 | C98: 2019-05-11 | D98: 共通女子 | E98: 走高跳 | F98: 曽根美紅 | G98: 130 | H98: 決 | I98: 網走南ヶ丘高 | J98: 1 | M98: =F98&E98 -> 曽根美紅走高跳 | O98: 1
A99: 小学生記録会 | B99: 北見 | C99: 2019-09-28 | D99: 小学女子 | E99: 走高跳 | F99: 曽根優彩愛 | G99: 95 | H99: 決 | I99: 美幌RC | J99: 5 | M99: 曽根優彩愛走高跳 | O99: 1
A100: 選手権 | B100: 北見 | C100: 2019-05-11 | D100: 中学女子 | E100: 走高跳 | F100: 相馬夏好 | G100: 115 | H100: 決 | I100: 北見光西中 | J100: 1 | M100: 相馬夏好走高跳 | O100: 1
A101: 小学生記録会 | B101: 北見 | C101: 2019-09-28 | D101: 小学女子 | E101: 走高跳 | F101: 村上晴風 | G101: 110 | H101: 決 | I101: 網走陸上少年団 | J101: 6 | M101: 村上晴風走高跳 | O101: 1
A102: 中学新人 | B102: 北見 | C102: 2019-08-24 | D102: 中学男子 | E102: 走高跳 | F102: 大橋侑弥 | G102: 150 | H102: 決 | I102: 網走第一中 | J102: 2 | M102: 大橋侑弥走高跳 | O102: =IF(M102=#REF!,0,1) -> 
A103: フィールド記録会 | B103: 網走 | C103: 2019-06-08 | D103: 小学男子 | E103: 走高跳 | F103: 滝口葉 | G103: 110 | H103: 決 | I103: ｵﾎｰﾂｸｷｯｽﾞ | J103: 6 | M103: 滝口葉走高跳 | O103: 1
A104: 記録会第１戦 | B104: 北見 | C104: 2019-04-28 | D104: 共通女子 | E104: 走高跳 | F104: 池田葵 | G104: 125 | H104: 決 | I104: 北見小泉中 | J104: 2 | M104: 池田葵走高跳 | O104: 1
A105: 高体連支部 | B105: 北見 | C105: 2019-05-24 | D105: 高校女子 | E105: 走高跳 | F105: 池田美梨 | G105: 148 | H105: 決 | I105: 紋別高 | J105: 2 | M105: 池田美梨走高跳 | O105: 1
A106: 中学新人 | B106: 北見 | C106: 2019-08-24 | D106: 中学男子 | E106: 走高跳 | F106: 竹村璃玖 | G106: 150 | H106: 決 | I106: 北見常呂中 | J106: 2 | M106: 竹村璃玖走高跳 | O106: =IF(M106=#REF!,0,1) -> 
A107: 地区中体連 | B107: 北見 | C107: 2019-06-15 | D107: 中学男子 | E107: 走高跳 | F107: 中井龍之介 | G107: 115 | H107: 決 | I107: 北見高栄中 | J107: 1 | M107: 中井龍之介走高跳 | O107: =IF(M107=#REF!,0,1) -> 
A108: 記録会第１戦 | B108: 北見 | C108: 2019-04-28 | D108: 一般男子 | E108: 走高跳 | F108: 中条聡 | G108: 190 | H108: 決 | I108: 東農大ｵﾎｰﾂｸ | J108: 般 | M108: 中条聡走高跳 | O108: =IF(M108=M107,0,1) -> 1
A109: 道選手権 | B109: 網走 | C109: 08.11* | D109: 一般男子 | E109: 走高跳 | F109: 中川崇義 | G109: 180 | H109: 決 | I109: オホーツク陸協 | J109: 0 | M109: 中川崇義走高跳 | O109: 1
A110: 小学生ｵﾎｰﾂｸ | B110: 北見 | C110: 2019-06-16 | D110: 小学男子 | E110: 走高跳 | F110: 中田隼翔 | G110: 120 | H110: 決 | I110: ｵﾎｰﾂｸACｼﾞｭﾆｱ | J110: 6 | M110: 中田隼翔走高跳 | O110: =IF(M110=#REF!,0,1) -> 
A111: 全道中学 | B111: 旭川 | C111: 2019-07-26 | D111: 中学男子 | E111: 棒高跳 | F111: 中田竜翔 | G111: 380 | H111: 予 | I111: 網走第一中 | J111: 3 | M111: 中田竜翔棒高跳 | O111: 1
A112: 選手権 | B112: 北見 | C112: 2019-05-12 | D112: 中学女子 | E112: 走高跳 | F112: 中島瑠菜 | G112: 115 | H112: 決 | I112: 北見常呂中 | J112: 1 | M112: 中島瑠菜走高跳 | O112: =IF(M112=#REF!,0,1) -> 
A113: 選手権 | B113: 北見 | C113: 2019-05-12 | D113: 中学男子 | E113: 走高跳 | F113: 長島拓希 | G113: 135 | H113: 決 | I113: 美幌北中 | J113: 2 | M113: 長島拓希走高跳 | O113: 1
A114: 中学新人 | B114: 北見 | C114: 2019-08-24 | D114: 中学女子 | E114: 走高跳 | F114: 長尾優里愛 | G114: 135 | H114: 決 | I114: 大空東藻琴中 | J114: 2 | M114: 長尾優里愛走高跳 | O114: 1
A115: 秋季陸上 | B115: 網走 | C115: 2019-09-07 | D115: 中学男子 | E115: 走高跳 | F115: 田村響 | G115: 130 | H115: 決 | I115: 北見南中 | J115: 1 | M115: 田村響走高跳 | O115: =IF(M115=#REF!,0,1) -> 
A116: 選手権 | B116: 北見 | C116: 2019-05-12 | D116: 中学男子 | E116: 走高跳 | F116: 田中達也 | G116: 135 | H116: 決 | I116: 網走第一中 | J116: 3 | M116: 田中達也走高跳 | O116: 1
A117: 記録会第１戦 | B117: 北見 | C117: 2019-04-28 | D117: 高校男子 | E117: 棒高跳 | F117: 渡辺颯 | G117: 390 | H117: 決 | I117: 北見藤高 | J117: 1 | M117: 渡辺颯棒高跳 | O117: 1
A118: 高校新人 | B118: 北見 | C118: 2019-08-24 | D118: 高校男子 | E118: 走高跳 | F118: 土山怜音 | G118: 150 | H118: 決 | I118: 北見工業高 | J118: 1 | M118: 土山怜音走高跳 | O118: 1
A119: 選手権 | B119: 北見 | C119: 2019-05-11 | D119: 中学女子 | E119: 走高跳 | F119: 嶋田結 | G119: 120 | H119: 決 | I119: 斜里知床ｳﾄﾛ学校 | J119: 3 | M119: 嶋田結走高跳 | O119: 1
A120: 選手権 | B120: 北見 | C120: 2019-05-12 | D120: 中学女子 | E120: 走高跳 | F120: 日根優菜 | G120: 110 | H120: 決 | I120: 網走第四中 | J120: 2 | M120: 日根優菜走高跳 | O120: 1
A121: 選手権 | B121: 北見 | C121: 2019-05-11 | D121: 中学女子 | E121: 走高跳 | F121: 白石光 | G121: 142 | H121: 決 | I121: 北見光西中 | J121: 3 | M121: 白石光走高跳 | O121: 1
A122: 中学新人 | B122: 北見 | C122: 2019-08-24 | D122: 中学男子 | E122: 棒高跳 | F122: 飯島空輝 | G122: 200 | H122: 決 | I122: 北見北中 | J122: 1 | M122: 飯島空輝棒高跳 | O122: 1
A123: 小学生記録会 | B123: 北見 | C123: 2019-09-28 | D123: 小学女子 | E123: 走高跳 | F123: 布目友理 | G123: 120 | H123: 決 | I123: 留辺蘂JSC | J123: 5 | M123: 布目友理走高跳 | O123: 1
A124: 選手権 | B124: 北見 | C124: 2019-05-12 | D124: 中学女子 | E124: 走高跳 | F124: 服部茜 | G124: 120 | H124: 決 | I124: 大空女満別中 | J124: 1 | M124: 服部茜走高跳 | O124: =IF(M124=#REF!,0,1) -> 
A125: 小学生ｵﾎｰﾂｸ | B125: 北見 | C125: 2019-06-16 | D125: 小学女子 | E125: 走高跳 | F125: 福井花歩 | G125: 95 | H125: 決 | I125: ｵﾎｰﾂｸｷｯｽﾞ | J125: 5 | M125: 福井花歩走高跳 | O125: 1
A126: 全道中学新人 | B126: 千歳 | C126: 2019-09-21 | D126: 中学男子 | E126: 棒高跳 | F126: 福田悠介 | G126: 320 | H126: 決 | I126: 網走第一 | J126: 2 | M126: 福田悠介棒高跳 | O126: 1
A127: フィールド記録会 | B127: 網走 | C127: 2019-06-08 | D127: 小学男子 | E127: 走高跳 | F127: 福田涼介 | G127: 110 | H127: 決 | I127: ｵﾎｰﾂｸACｼﾞｭﾆｱ | J127: 6 | M127: 福田涼介走高跳 | O127: =IF(M127=#REF!,0,1) -> 
A128: 選手権 | B128: 北見 | C128: 2019-05-12 | D128: 高校男子 | E128: 走高跳 | F128: 平吹鷹也 | G128: 165 | H128: 決 | I128: 北見柏陽高 | J128: 3 | M128: 平吹鷹也走高跳 | O128: 1
A129: 選手権 | B129: 北見 | C129: 2019-05-11 | D129: 共通女子 | E129: 走高跳 | F129: 平吹侑里 | G129: 135 | H129: 決 | I129: 美幌高 | J129: 1 | M129: 平吹侑里走高跳 | O129: 1
A130: 小学生ｵﾎｰﾂｸ | B130: 北見 | C130: 2019-06-16 | D130: 小学男子 | E130: 走高跳 | F130: 豊原隆介 | G130: 120 | H130: 決 | I130: ｵﾎｰﾂｸｷｯｽﾞ | J130: 6 | M130: =F130&E130 -> 豊原隆介走高跳 | O130: 1
A131: 記録会４戦 | B131: 北見 | C131: 2019-08-04 | D131: 中学女子 | E131: 走高跳 | F131: 北村菜絵 | G131: 120 | H131: 決 | I131: 置戸中 | J131: 3 | M131: 北村菜絵走高跳 | O131: 1
A132: 小学生ｵﾎｰﾂｸ | B132: 北見 | C132: 2019-06-16 | D132: 小学男子 | E132: 走高跳 | F132: 堀澤仁景 | G132: 110 | H132: 決 | I132: ｵﾎｰﾂｸｷｯｽﾞ | J132: 6 | M132: 堀澤仁景走高跳 | O132: 1
A133: フィールド記録会 | B133: 網走 | C133: 2019-06-08 | D133: 小学女子 | E133: 走高跳 | F133: 木山瑞希 | G133: 110 | H133: 決 | I133: 知床斜里RC | J133: 5 | M133: 木山瑞希走高跳 | O133: 1
A134: 高体連支部 | B134: 北見 | C134: 2019-05-24 | D134: 高校女子 | E134: 走高跳 | F134: 木村美月 | G134: 135 | H134: 決 | I134: 北見商業高 | J134: 3 | M134: 木村美月走高跳 | O134: 1
A135: 高校新人 | B135: 北見 | C135: 2019-08-24 | D135: 高校男子 | E135: 走高跳 | F135: 野崎竜矢 | G135: 150 | H135: 決 | I135: 網走南ヶ丘高 | J135: 1 | M135: 野崎竜矢走高跳 | O135: 1
A136: 道選手権 | B136: 網走 | C136: 08.10* | D136: 一般男子 | E136: 棒高跳 | F136: 油屋圭吾 | G136: 480 | H136: 決 | I136: 順天堂大 | J136: 2 | M136: 油屋圭吾棒高跳 | O136: 1
A137: 高校新人 | B137: 北見 | C137: 2019-08-24 | D137: 高校女子 | E137: 棒高跳 | F137: 林ちひろ | G137: 270 | H137: 決 | I137: 北見緑陵高 | J137: 1 | M137: 林ちひろ棒高跳 | O137: 1
A138: フィールド記録会 | B138: 網走 | C138: 2019-06-08 | D138: 中学女子 | E138: 走高跳 | F138: 林梢幸 | G138: 125 | H138: 決 | I138: 網走第四中 | J138: 2 | M138: 林梢幸走高跳 | O138: 1
A139: 地区中体連 | B139: 北見 | C139: 2019-06-15 | D139: 中学男子 | E139: 走高跳 | F139: 鈴木昂英 | G139: 120 | H139: 決 | I139: 北見高栄中 | J139: 1 | M139: 鈴木昂英走高跳 | O139: 1
A140: 中学新人 | B140: 北見 | C140: 2019-08-24 | D140: 中学男子 | E140: 走高跳 | F140: 崔宰原 | G140: 150 | H140: 決 | I140: 北見南中 | J140: 1 | M140: 崔宰原走高跳 | O140: 1
A141: 高体連支部 | B141: 北見 | C141: 2019-05-24 | D141: 高校男子 | E141: 走高跳 | F141: 廣瀨慧来 | G141: 168 | H141: 決 | I141: 網走南ヶ丘高 | J141: 3 | M141: 廣瀨慧来走高跳 | O141: 1
A142: 全道高校 | B142: 帯広 | C142: 6/19 | D142: 高校男子 | E142: 棒高跳 | F142: 廣瀨慧来 | G142: 440 | H142: 決 | I142: 網走南ヶ丘高 | J142: 3 | M142: 廣瀨慧来棒高跳 | O142: 1
A143: 中学新人 | B143: 北見 | C143: 2019-08-24 | D143: 中学女子 | E143: 走高跳 | F143: 澤向美樹 | G143: 135 | H143: 決 | I143: 北見常呂中 | J143: 1 | M143: 澤向美樹走高跳 | O143: =IF(M143=#REF!,0,1) -> 
A144: 中学新人 | B144: 北見 | C144: 2019-08-24 | D144: 中学男子 | E144: 走高跳 | F144: 萬龍来 | G144: 150 | H144: 決 | I144: 網走第一中 | J144: 2 | M144: 萬龍来走高跳 | O144: =IF(M144=#REF!,0,1) -> 
A145: 秋季陸上 | B145: 網走 | C145: 2019-09-08 | D145: 中学女子 | E145: 走高跳 | F145: 髙橋愛結 | G145: 130 | H145: 決 | I145: 北見小泉中 | J145: 2 | M145: 髙橋愛結走高跳 | O145: 1
A146: 小学生ｵﾎｰﾂｸ | B146: 北見 | C146: 2019-06-16 | D146: 小学男子 | E146: 走高跳 | F146: 髙橋依 | G146: 125 | H146: 決 | I146: 美幌RC | J146: 6 | M146: 髙橋依走高跳 | O146: 1
A147: 選手権 | B147: 北見 | C147: 2019-05-11 | D147: 小学女子 | E147: 走高跳 | F147: 髙橋碧衣 | G147: 105 | H147: 決 | I147: 常呂陸上少年団 | J147: 5 | M147: 髙橋碧衣走高跳 | O147: 1
A148: 記録会第１戦 | B148: 北見 | C148: 2019-04-28 | D148: 高校男子 | E148: 走高跳 | F148: 髙橋悠希 | G148: 165 | H148: 決 | I148: 北見北斗高 | J148: 2 | M148: 髙橋悠希走高跳 | O148: 1
M149: =F149&E149 ->  | O149: 1
O150: 0
O151: 0
O152: 0
O153: 0
O154: 0
O155: =IF(M155=M154,0,1) -> 0
O156: 0
O157: 0
O158: 0
O159: 0
O160: 0
O161: 0
O162: 0
O163: 0
O164: 0
O165: 0
O166: =IF(M166=M165,0,1) -> 0
A19151: @ | B19151: @ | C19151: @ | D19151: @ | E19151: @ | F19151: @ | G19151: @ | H19151: @ | I19151: @ | J19151: @

Sheet 種目毎
A1: R01 オホーツク陸協 記録集計 | N1: 種別 | P1: 中学男子 | S1: 種目 | U1: 棒高跳 | Z1: 競技会名 | AA1: 競技場 | AB1: 競技実施月日 | AC1: クラス | AD1: 種目 | AE1: 選手／チーム | AF1: 記録 | AG1: ラウンド | AH1: 所属 | AI1: 学年 | AJ1: 風速
A3: 全順 | C3: Rank | D3: 競技会名 | G3: 競技場 | I3: 実施日 | K3: 選手 | O3: 記録 | R3: R | S3: 所属 | V3: 年 | W3: 風
A4: 1 | B4: =IF(COUNTIF($K$4:N4,K4)=1,1,0) -> 1 | C4: 1 | D4: =VLOOKUP($P$1&$U$1&A4,抽出!$B$4:$O$200,6,FALSE) -> 記録会４戦 | G4: =VLOOKUP($P$1&$U$1&A4,抽出!$B$4:$O$200,7,FALSE) -> 北見 | I4: =VLOOKUP($P$1&$U$1&A4,抽出!$B$4:$O$200,8,FALSE) -> 2019-08-04 | K4: =VLOOKUP($P$1&$U$1&A4,抽出!$B$4:$O$200,9,FALSE) -> 栗生朔門 | O4: =VLOOKUP($P$1&$U$1&A4,抽出!$B$4:$O$200,10,FALSE) -> 410 | R4: =VLOOKUP($P$1&$U$1&A4,抽出!$B$4:$O$200,11,FALSE) -> 決 | S4: =VLOOKUP($P$1&$U$1&A4,抽出!$B$4:$O$200,12,FALSE) -> 網走第四中 | V4: =VLOOKUP($P$1&$U$1&A4,抽出!$B$4:$O$200,13,FALSE) -> 3 | W4: =VLOOKUP($P$1&$U$1&A4,抽出!$B$4:$O$200,14,FALSE) -> 0 | Z4: 小学男子 | AA4: 小男
A5: 2 | B5: =IF(COUNTIF($K$4:N5,K5)=1,1,0) -> 1 | C5: =IF(B5=0,"",SUM($B$4:B5)) -> 2 | D5: =VLOOKUP($P$1&$U$1&A5,抽出!$B$4:$O$200,6,FALSE) -> 全道中学 | G5: =VLOOKUP($P$1&$U$1&A5,抽出!$B$4:$O$200,7,FALSE) -> 旭川 | I5: =VLOOKUP($P$1&$U$1&A5,抽出!$B$4:$O$200,8,FALSE) -> 2019-07-26 | K5: =VLOOKUP($P$1&$U$1&A5,抽出!$B$4:$O$200,9,FALSE) -> 中田竜翔 | O5: =VLOOKUP($P$1&$U$1&A5,抽出!$B$4:$O$200,10,FALSE) -> 380 | R5: =VLOOKUP($P$1&$U$1&A5,抽出!$B$4:$O$200,11,FALSE) -> 予 | S5: =VLOOKUP($P$1&$U$1&A5,抽出!$B$4:$O$200,12,FALSE) -> 網走第一中 | V5: =VLOOKUP($P$1&$U$1&A5,抽出!$B$4:$O$200,13,FALSE) -> 3 | W5: =VLOOKUP($P$1&$U$1&A5,抽出!$B$4:$O$200,14,FALSE) -> 0 | Z5: 小学女子 | AA5: 小女 | AC5: 棒高跳
A6: 3 | B6: =IF(COUNTIF($K$4:N6,K6)=1,1,0) -> 1 | C6: =IF(B6=0,"",SUM($B$4:B6)) -> 3 | D6: =VLOOKUP($P$1&$U$1&A6,抽出!$B$4:$O$200,6,FALSE) -> 秋季陸上 | G6: =VLOOKUP($P$1&$U$1&A6,抽出!$B$4:$O$200,7,FALSE) -> 網走 | I6: =VLOOKUP($P$1&$U$1&A6,抽出!$B$4:$O$200,8,FALSE) -> 2019-09-07 | K6: =VLOOKUP($P$1&$U$1&A6,抽出!$B$4:$O$200,9,FALSE) -> 石田和也 | O6: =VLOOKUP($P$1&$U$1&A6,抽出!$B$4:$O$200,10,FALSE) -> 371 | R6: =VLOOKUP($P$1&$U$1&A6,抽出!$B$4:$O$200,11,FALSE) -> 決 | S6: =VLOOKUP($P$1&$U$1&A6,抽出!$B$4:$O$200,12,FALSE) -> 網走第一中 | V6: =VLOOKUP($P$1&$U$1&A6,抽出!$B$4:$O$200,13,FALSE) -> 3 | W6: =VLOOKUP($P$1&$U$1&A6,抽出!$B$4:$O$200,14,FALSE) -> 0 | Z6: 中学男子 | AA6: 中男 | AC6: 走高跳
A7: 4 | B7: =IF(COUNTIF($K$4:N7,K7)=1,1,0) -> 1 | C7: =IF(B7=0,"",SUM($B$4:B7)) -> 4 | D7: =VLOOKUP($P$1&$U$1&A7,抽出!$B$4:$O$200,6,FALSE) -> 秋季陸上 | G7: =VLOOKUP($P$1&$U$1&A7,抽出!$B$4:$O$200,7,FALSE) -> 網走 | I7: =VLOOKUP($P$1&$U$1&A7,抽出!$B$4:$O$200,8,FALSE) -> 2019-09-07 | K7: =VLOOKUP($P$1&$U$1&A7,抽出!$B$4:$O$200,9,FALSE) -> 佐野巧 | O7: =VLOOKUP($P$1&$U$1&A7,抽出!$B$4:$O$200,10,FALSE) -> 350 | R7: =VLOOKUP($P$1&$U$1&A7,抽出!$B$4:$O$200,11,FALSE) -> 決 | S7: =VLOOKUP($P$1&$U$1&A7,抽出!$B$4:$O$200,12,FALSE) -> 斜里中 | V7: =VLOOKUP($P$1&$U$1&A7,抽出!$B$4:$O$200,13,FALSE) -> 3 | W7: =VLOOKUP($P$1&$U$1&A7,抽出!$B$4:$O$200,14,FALSE) -> 0 | Z7: 中学女子 | AA7: 中女
A8: 5 | B8: =IF(COUNTIF($K$4:N8,K8)=1,1,0) -> 1 | C8: =IF(B8=0,"",SUM($B$4:B8)) -> 5 | D8: =VLOOKUP($P$1&$U$1&A8,抽出!$B$4:$O$200,6,FALSE) -> 秋季陸上 | G8: =VLOOKUP($P$1&$U$1&A8,抽出!$B$4:$O$200,7,FALSE) -> 網走 | I8: =VLOOKUP($P$1&$U$1&A8,抽出!$B$4:$O$200,8,FALSE) -> 2019-09-07 | K8: =VLOOKUP($P$1&$U$1&A8,抽出!$B$4:$O$200,9,FALSE) -> 川島歩結夢 | O8: =VLOOKUP($P$1&$U$1&A8,抽出!$B$4:$O$200,10,FALSE) -> 340 | R8: =VLOOKUP($P$1&$U$1&A8,抽出!$B$4:$O$200,11,FALSE) -> 決 | S8: =VLOOKUP($P$1&$U$1&A8,抽出!$B$4:$O$200,12,FALSE) -> 斜里中 | V8: =VLOOKUP($P$1&$U$1&A8,抽出!$B$4:$O$200,13,FALSE) -> 2 | W8: =VLOOKUP($P$1&$U$1&A8,抽出!$B$4:$O$200,14,FALSE) -> 0 | Z8: 高校男子 | AA8: 高男
A9: 6 | B9: =IF(COUNTIF($K$4:N9,K9)=1,1,0) -> 1 | C9: =IF(B9=0,"",SUM($B$4:B9)) -> 6 | D9: =VLOOKUP($P$1&$U$1&A9,抽出!$B$4:$O$200,6,FALSE) -> 全道中学新人 | G9: =VLOOKUP($P$1&$U$1&A9,抽出!$B$4:$O$200,7,FALSE) -> 千歳 | I9: =VLOOKUP($P$1&$U$1&A9,抽出!$B$4:$O$200,8,FALSE) -> 2019-09-21 | K9: =VLOOKUP($P$1&$U$1&A9,抽出!$B$4:$O$200,9,FALSE) -> 福田悠介 | O9: =VLOOKUP($P$1&$U$1&A9,抽出!$B$4:$O$200,10,FALSE) -> 320 | R9: =VLOOKUP($P$1&$U$1&A9,抽出!$B$4:$O$200,11,FALSE) -> 決 | S9: =VLOOKUP($P$1&$U$1&A9,抽出!$B$4:$O$200,12,FALSE) -> 網走第一 | V9: =VLOOKUP($P$1&$U$1&A9,抽出!$B$4:$O$200,13,FALSE) -> 2 | W9: =VLOOKUP($P$1&$U$1&A9,抽出!$B$4:$O$200,14,FALSE) -> 0 | Z9: 高校女子 | AA9: 高女
A10: 7 | B10: =IF(COUNTIF($K$4:N10,K10)=1,1,0) -> 1 | C10: =IF(B10=0,"",SUM($B$4:B10)) -> 7 | D10: =VLOOKUP($P$1&$U$1&A10,抽出!$B$4:$O$200,6,FALSE) -> フィールド記録会 | G10: =VLOOKUP($P$1&$U$1&A10,抽出!$B$4:$O$200,7,FALSE) -> 網走 | I10: =VLOOKUP($P$1&$U$1&A10,抽出!$B$4:$O$200,8,FALSE) -> 2019-06-08 | K10: =VLOOKUP($P$1&$U$1&A10,抽出!$B$4:$O$200,9,FALSE) -> 市村宥樹 | O10: =VLOOKUP($P$1&$U$1&A10,抽出!$B$4:$O$200,10,FALSE) -> 280 | R10: =VLOOKUP($P$1&$U$1&A10,抽出!$B$4:$O$200,11,FALSE) -> 決 | S10: =VLOOKUP($P$1&$U$1&A10,抽出!$B$4:$O$200,12,FALSE) -> 斜里中 | V10: =VLOOKUP($P$1&$U$1&A10,抽出!$B$4:$O$200,13,FALSE) -> 3 | W10: =VLOOKUP($P$1&$U$1&A10,抽出!$B$4:$O$200,14,FALSE) -> 0 | Z10: 一般男子 | AA10: 一男
A11: 8 | B11: =IF(COUNTIF($K$4:N11,K11)=1,1,0) -> 1 | C11: =IF(B11=0,"",SUM($B$4:B11)) -> 8 | D11: =VLOOKUP($P$1&$U$1&A11,抽出!$B$4:$O$200,6,FALSE) -> 全道中学新人 | G11: =VLOOKUP($P$1&$U$1&A11,抽出!$B$4:$O$200,7,FALSE) -> 千歳 | I11: =VLOOKUP($P$1&$U$1&A11,抽出!$B$4:$O$200,8,FALSE) -> 2019-09-21 | K11: =VLOOKUP($P$1&$U$1&A11,抽出!$B$4:$O$200,9,FALSE) -> 川上大晴 | O11: =VLOOKUP($P$1&$U$1&A11,抽出!$B$4:$O$200,10,FALSE) -> 260 | R11: =VLOOKUP($P$1&$U$1&A11,抽出!$B$4:$O$200,11,FALSE) -> 決 | S11: =VLOOKUP($P$1&$U$1&A11,抽出!$B$4:$O$200,12,FALSE) -> 北見小泉 | V11: =VLOOKUP($P$1&$U$1&A11,抽出!$B$4:$O$200,13,FALSE) -> 2 | W11: =VLOOKUP($P$1&$U$1&A11,抽出!$B$4:$O$200,14,FALSE) -> 0 | Z11: 一般女子 | AA11: 一女
A12: 9 | B12: =IF(COUNTIF($K$4:N12,K12)=1,1,0) -> 1 | C12: =IF(B12=0,"",SUM($B$4:B12)) -> 9 | D12: =VLOOKUP($P$1&$U$1&A12,抽出!$B$4:$O$200,6,FALSE) -> 秋季陸上 | G12: =VLOOKUP($P$1&$U$1&A12,抽出!$B$4:$O$200,7,FALSE) -> 網走 | I12: =VLOOKUP($P$1&$U$1&A12,抽出!$B$4:$O$200,8,FALSE) -> 2019-09-07 | K12: =VLOOKUP($P$1&$U$1&A12,抽出!$B$4:$O$200,9,FALSE) -> 佐藤大斗 | O12: =VLOOKUP($P$1&$U$1&A12,抽出!$B$4:$O$200,10,FALSE) -> 240 | R12: =VLOOKUP($P$1&$U$1&A12,抽出!$B$4:$O$200,11,FALSE) -> 決 | S12: =VLOOKUP($P$1&$U$1&A12,抽出!$B$4:$O$200,12,FALSE) -> 斜里中 | V12: =VLOOKUP($P$1&$U$1&A12,抽出!$B$4:$O$200,13,FALSE) -> 1 | W12: =VLOOKUP($P$1&$U$1&A12,抽出!$B$4:$O$200,14,FALSE) -> 0
A13: 10 | B13: =IF(COUNTIF($K$4:N13,K13)=1,1,0) -> 1 | C13: =IF(B13=0,"",SUM($B$4:B13)) -> 10 | D13: =VLOOKUP($P$1&$U$1&A13,抽出!$B$4:$O$200,6,FALSE) -> 地区中体連 | G13: =VLOOKUP($P$1&$U$1&A13,抽出!$B$4:$O$200,7,FALSE) -> 北見 | I13: =VLOOKUP($P$1&$U$1&A13,抽出!$B$4:$O$200,8,FALSE) -> 2019-06-14 | K13: =VLOOKUP($P$1&$U$1&A13,抽出!$B$4:$O$200,9,FALSE) -> 古畑愛斗 | O13: =VLOOKUP($P$1&$U$1&A13,抽出!$B$4:$O$200,10,FALSE) -> 240 | R13: =VLOOKUP($P$1&$U$1&A13,抽出!$B$4:$O$200,11,FALSE) -> 決 | S13: =VLOOKUP($P$1&$U$1&A13,抽出!$B$4:$O$200,12,FALSE) -> 北見小泉中 | V13: =VLOOKUP($P$1&$U$1&A13,抽出!$B$4:$O$200,13,FALSE) -> 2 | W13: =VLOOKUP($P$1&$U$1&A13,抽出!$B$4:$O$200,14,FALSE) -> 0
A14: 11 | B14: =IF(COUNTIF($K$4:N14,K14)=1,1,0) -> 1 | C14: =IF(B14=0,"",SUM($B$4:B14)) -> 11 | D14: =VLOOKUP($P$1&$U$1&A14,抽出!$B$4:$O$200,6,FALSE) -> 地区中体連 | G14: =VLOOKUP($P$1&$U$1&A14,抽出!$B$4:$O$200,7,FALSE) -> 北見 | I14: =VLOOKUP($P$1&$U$1&A14,抽出!$B$4:$O$200,8,FALSE) -> 2019-06-14 | K14: =VLOOKUP($P$1&$U$1&A14,抽出!$B$4:$O$200,9,FALSE) -> 山本銀士郎 | O14: =VLOOKUP($P$1&$U$1&A14,抽出!$B$4:$O$200,10,FALSE) -> 230 | R14: =VLOOKUP($P$1&$U$1&A14,抽出!$B$4:$O$200,11,FALSE) -> 決 | S14: =VLOOKUP($P$1&$U$1&A14,抽出!$B$4:$O$200,12,FALSE) -> 網走第一中 | V14: =VLOOKUP($P$1&$U$1&A14,抽出!$B$4:$O$200,13,FALSE) -> 2 | W14: =VLOOKUP($P$1&$U$1&A14,抽出!$B$4:$O$200,14,FALSE) -> 0
A15: 12 | B15: =IF(COUNTIF($K$4:N15,K15)=1,1,0) -> 1 | C15: =IF(B15=0,"",SUM($B$4:B15)) -> 12 | D15: =VLOOKUP($P$1&$U$1&A15,抽出!$B$4:$O$200,6,FALSE) -> 記録会４戦 | G15: =VLOOKUP($P$1&$U$1&A15,抽出!$B$4:$O$200,7,FALSE) -> 北見 | I15: =VLOOKUP($P$1&$U$1&A15,抽出!$B$4:$O$200,8,FALSE) -> 2019-08-04 | K15: =VLOOKUP($P$1&$U$1&A15,抽出!$B$4:$O$200,9,FALSE) -> ｽﾉｰｼﾞｮｻｲﾔ | O15: =VLOOKUP($P$1&$U$1&A15,抽出!$B$4:$O$200,10,FALSE) -> 220 | R15: =VLOOKUP($P$1&$U$1&A15,抽出!$B$4:$O$200,11,FALSE) -> 決 | S15: =VLOOKUP($P$1&$U$1&A15,抽出!$B$4:$O$200,12,FALSE) -> 網走第四中 | V15: =VLOOKUP($P$1&$U$1&A15,抽出!$B$4:$O$200,13,FALSE) -> 1 | W15: =VLOOKUP($P$1&$U$1&A15,抽出!$B$4:$O$200,14,FALSE) -> 0
A16: 13 | B16: =IF(COUNTIF($K$4:N16,K16)=1,1,0) -> 1 | C16: =IF(B16=0,"",SUM($B$4:B16)) -> 13 | D16: =VLOOKUP($P$1&$U$1&A16,抽出!$B$4:$O$200,6,FALSE) -> 中学新人 | G16: =VLOOKUP($P$1&$U$1&A16,抽出!$B$4:$O$200,7,FALSE) -> 北見 | I16: =VLOOKUP($P$1&$U$1&A16,抽出!$B$4:$O$200,8,FALSE) -> 2019-08-24 | K16: =VLOOKUP($P$1&$U$1&A16,抽出!$B$4:$O$200,9,FALSE) -> 飯島空輝 | O16: =VLOOKUP($P$1&$U$1&A16,抽出!$B$4:$O$200,10,FALSE) -> 200 | R16: =VLOOKUP($P$1&$U$1&A16,抽出!$B$4:$O$200,11,FALSE) -> 決 | S16: =VLOOKUP($P$1&$U$1&A16,抽出!$B$4:$O$200,12,FALSE) -> 北見北中 | V16: =VLOOKUP($P$1&$U$1&A16,抽出!$B$4:$O$200,13,FALSE) -> 1 | W16: =VLOOKUP($P$1&$U$1&A16,抽出!$B$4:$O$200,14,FALSE) -> 0
A17: 14 | B17: =IF(COUNTIF($K$4:N17,K17)=1,1,0) -> 1 | C17: =IF(B17=0,"",SUM($B$4:B17)) -> 14 | D17: =VLOOKUP($P$1&$U$1&A17,抽出!$B$4:$O$200,6,FALSE) -> 記録会第１戦 | G17: =VLOOKUP($P$1&$U$1&A17,抽出!$B$4:$O$200,7,FALSE) -> 北見 | I17: =VLOOKUP($P$1&$U$1&A17,抽出!$B$4:$O$200,8,FALSE) -> 2019-04-28 | K17: =VLOOKUP($P$1&$U$1&A17,抽出!$B$4:$O$200,9,FALSE) -> 松本亮介 | O17: =VLOOKUP($P$1&$U$1&A17,抽出!$B$4:$O$200,10,FALSE) -> 200 | R17: =VLOOKUP($P$1&$U$1&A17,抽出!$B$4:$O$200,11,FALSE) -> 決 | S17: =VLOOKUP($P$1&$U$1&A17,抽出!$B$4:$O$200,12,FALSE) -> 北見小泉中 | V17: =VLOOKUP($P$1&$U$1&A17,抽出!$B$4:$O$200,13,FALSE) -> 2 | W17: =VLOOKUP($P$1&$U$1&A17,抽出!$B$4:$O$200,14,FALSE) -> 0
A18: 15 | B18: =IF(COUNTIF($K$4:N18,K18)=1,1,0) -> 1 | C18: =IF(B18=0,"",SUM($B$4:B18)) -> 15 | D18: =VLOOKUP($P$1&$U$1&A18,抽出!$B$4:$O$200,6,FALSE) -> 秋季陸上 | G18: =VLOOKUP($P$1&$U$1&A18,抽出!$B$4:$O$200,7,FALSE) -> 網走 | I18: =VLOOKUP($P$1&$U$1&A18,抽出!$B$4:$O$200,8,FALSE) -> 2019-09-07 | K18: =VLOOKUP($P$1&$U$1&A18,抽出!$B$4:$O$200,9,FALSE) -> 石原遥翔 | O18: =VLOOKUP($P$1&$U$1&A18,抽出!$B$4:$O$200,10,FALSE) -> 190 | R18: =VLOOKUP($P$1&$U$1&A18,抽出!$B$4:$O$200,11,FALSE) -> 決 | S18: =VLOOKUP($P$1&$U$1&A18,抽出!$B$4:$O$200,12,FALSE) -> 網走第四中 | V18: =VLOOKUP($P$1&$U$1&A18,抽出!$B$4:$O$200,13,FALSE) -> 1 | W18: =VLOOKUP($P$1&$U$1&A18,抽出!$B$4:$O$200,14,FALSE) -> 0
A19: 16 | B19: =IF(COUNTIF($K$4:N19,K19)=1,1,0) -> 1 | C19: =IF(B19=0,"",SUM($B$4:B19)) -> 16 | D19: =VLOOKUP($P$1&$U$1&A19,抽出!$B$4:$O$200,6,FALSE) ->  | G19: =VLOOKUP($P$1&$U$1&A19,抽出!$B$4:$O$200,7,FALSE) ->  | I19: =VLOOKUP($P$1&$U$1&A19,抽出!$B$4:$O$200,8,FALSE) ->  | K19: =VLOOKUP($P$1&$U$1&A19,抽出!$B$4:$O$200,9,FALSE) ->  | O19: =VLOOKUP($P$1&$U$1&A19,抽出!$B$4:$O$200,10,FALSE) ->  | R19: =VLOOKUP($P$1&$U$1&A19,抽出!$B$4:$O$200,11,FALSE) ->  | S19: =VLOOKUP($P$1&$U$1&A19,抽出!$B$4:$O$200,12,FALSE) ->  | V19: =VLOOKUP($P$1&$U$1&A19,抽出!$B$4:$O$200,13,FALSE) ->  | W19: =VLOOKUP($P$1&$U$1&A19,抽出!$B$4:$O$200,14,FALSE) -> 
A20: 17 | B20: =IF(COUNTIF($K$4:N20,K20)=1,1,0) -> 0 | C20: =IF(B20=0,"",SUM($B$4:B20)) ->  | D20: =VLOOKUP($P$1&$U$1&A20,抽出!$B$4:$O$200,6,FALSE) ->  | G20: =VLOOKUP($P$1&$U$1&A20,抽出!$B$4:$O$200,7,FALSE) ->  | I20: =VLOOKUP($P$1&$U$1&A20,抽出!$B$4:$O$200,8,FALSE) ->  | K20: =VLOOKUP($P$1&$U$1&A20,抽出!$B$4:$O$200,9,FALSE) ->  | O20: =VLOOKUP($P$1&$U$1&A20,抽出!$B$4:$O$200,10,FALSE) ->  | R20: =VLOOKUP($P$1&$U$1&A20,抽出!$B$4:$O$200,11,FALSE) ->  | S20: =VLOOKUP($P$1&$U$1&A20,抽出!$B$4:$O$200,12,FALSE) ->  | V20: =VLOOKUP($P$1&$U$1&A20,抽出!$B$4:$O$200,13,FALSE) ->  | W20: =VLOOKUP($P$1&$U$1&A20,抽出!$B$4:$O$200,14,FALSE) -> 
A21: 18 | B21: =IF(COUNTIF($K$4:N21,K21)=1,1,0) -> 0 | C21: =IF(B21=0,"",SUM($B$4:B21)) ->  | D21: =VLOOKUP($P$1&$U$1&A21,抽出!$B$4:$O$200,6,FALSE) ->  | G21: =VLOOKUP($P$1&$U$1&A21,抽出!$B$4:$O$200,7,FALSE) ->  | I21: =VLOOKUP($P$1&$U$1&A21,抽出!$B$4:$O$200,8,FALSE) ->  | K21: =VLOOKUP($P$1&$U$1&A21,抽出!$B$4:$O$200,9,FALSE) ->  | O21: =VLOOKUP($P$1&$U$1&A21,抽出!$B$4:$O$200,10,FALSE) ->  | R21: =VLOOKUP($P$1&$U$1&A21,抽出!$B$4:$O$200,11,FALSE) ->  | S21: =VLOOKUP($P$1&$U$1&A21,抽出!$B$4:$O$200,12,FALSE) ->  | V21: =VLOOKUP($P$1&$U$1&A21,抽出!$B$4:$O$200,13,FALSE) ->  | W21: =VLOOKUP($P$1&$U$1&A21,抽出!$B$4:$O$200,14,FALSE) -> 
A22: 19 | B22: =IF(COUNTIF($K$4:N22,K22)=1,1,0) -> 0 | C22: =IF(B22=0,"",SUM($B$4:B22)) ->  | D22: =VLOOKUP($P$1&$U$1&A22,抽出!$B$4:$O$200,6,FALSE) ->  | G22: =VLOOKUP($P$1&$U$1&A22,抽出!$B$4:$O$200,7,FALSE) ->  | I22: =VLOOKUP($P$1&$U$1&A22,抽出!$B$4:$O$200,8,FALSE) ->  | K22: =VLOOKUP($P$1&$U$1&A22,抽出!$B$4:$O$200,9,FALSE) ->  | O22: =VLOOKUP($P$1&$U$1&A22,抽出!$B$4:$O$200,10,FALSE) ->  | R22: =VLOOKUP($P$1&$U$1&A22,抽出!$B$4:$O$200,11,FALSE) ->  | S22: =VLOOKUP($P$1&$U$1&A22,抽出!$B$4:$O$200,12,FALSE) ->  | V22: =VLOOKUP($P$1&$U$1&A22,抽出!$B$4:$O$200,13,FALSE) ->  | W22: =VLOOKUP($P$1&$U$1&A22,抽出!$B$4:$O$200,14,FALSE) -> 
A23: 20 | B23: =IF(COUNTIF($K$4:N23,K23)=1,1,0) -> 0 | C23: =IF(B23=0,"",SUM($B$4:B23)) ->  | D23: =VLOOKUP($P$1&$U$1&A23,抽出!$B$4:$O$200,6,FALSE) ->  | G23: =VLOOKUP($P$1&$U$1&A23,抽出!$B$4:$O$200,7,FALSE) ->  | I23: =VLOOKUP($P$1&$U$1&A23,抽出!$B$4:$O$200,8,FALSE) ->  | K23: =VLOOKUP($P$1&$U$1&A23,抽出!$B$4:$O$200,9,FALSE) ->  | O23: =VLOOKUP($P$1&$U$1&A23,抽出!$B$4:$O$200,10,FALSE) ->  | R23: =VLOOKUP($P$1&$U$1&A23,抽出!$B$4:$O$200,11,FALSE) ->  | S23: =VLOOKUP($P$1&$U$1&A23,抽出!$B$4:$O$200,12,FALSE) ->  | V23: =VLOOKUP($P$1&$U$1&A23,抽出!$B$4:$O$200,13,FALSE) ->  | W23: =VLOOKUP($P$1&$U$1&A23,抽出!$B$4:$O$200,14,FALSE) -> 
A24: 21 | B24: =IF(COUNTIF($K$4:N24,K24)=1,1,0) -> 0 | C24: =IF(B24=0,"",SUM($B$4:B24)) ->  | D24: =VLOOKUP($P$1&$U$1&A24,抽出!$B$4:$O$200,6,FALSE) ->  | G24: =VLOOKUP($P$1&$U$1&A24,抽出!$B$4:$O$200,7,FALSE) ->  | I24: =VLOOKUP($P$1&$U$1&A24,抽出!$B$4:$O$200,8,FALSE) ->  | K24: =VLOOKUP($P$1&$U$1&A24,抽出!$B$4:$O$200,9,FALSE) ->  | O24: =VLOOKUP($P$1&$U$1&A24,抽出!$B$4:$O$200,10,FALSE) ->  | R24: =VLOOKUP($P$1&$U$1&A24,抽出!$B$4:$O$200,11,FALSE) ->  | S24: =VLOOKUP($P$1&$U$1&A24,抽出!$B$4:$O$200,12,FALSE) ->  | V24: =VLOOKUP($P$1&$U$1&A24,抽出!$B$4:$O$200,13,FALSE) ->  | W24: =VLOOKUP($P$1&$U$1&A24,抽出!$B$4:$O$200,14,FALSE) -> 
A25: 22 | B25: =IF(COUNTIF($K$4:N25,K25)=1,1,0) -> 0 | C25: =IF(B25=0,"",SUM($B$4:B25)) ->  | D25: =VLOOKUP($P$1&$U$1&A25,抽出!$B$4:$O$200,6,FALSE) ->  | G25: =VLOOKUP($P$1&$U$1&A25,抽出!$B$4:$O$200,7,FALSE) ->  | I25: =VLOOKUP($P$1&$U$1&A25,抽出!$B$4:$O$200,8,FALSE) ->  | K25: =VLOOKUP($P$1&$U$1&A25,抽出!$B$4:$O$200,9,FALSE) ->  | O25: =VLOOKUP($P$1&$U$1&A25,抽出!$B$4:$O$200,10,FALSE) ->  | R25: =VLOOKUP($P$1&$U$1&A25,抽出!$B$4:$O$200,11,FALSE) ->  | S25: =VLOOKUP($P$1&$U$1&A25,抽出!$B$4:$O$200,12,FALSE) ->  | V25: =VLOOKUP($P$1&$U$1&A25,抽出!$B$4:$O$200,13,FALSE) ->  | W25: =VLOOKUP($P$1&$U$1&A25,抽出!$B$4:$O$200,14,FALSE) -> 
A26: 23 | B26: =IF(COUNTIF($K$4:N26,K26)=1,1,0) -> 0 | C26: =IF(B26=0,"",SUM($B$4:B26)) ->  | D26: =VLOOKUP($P$1&$U$1&A26,抽出!$B$4:$O$200,6,FALSE) ->  | G26: =VLOOKUP($P$1&$U$1&A26,抽出!$B$4:$O$200,7,FALSE) ->  | I26: =VLOOKUP($P$1&$U$1&A26,抽出!$B$4:$O$200,8,FALSE) ->  | K26: =VLOOKUP($P$1&$U$1&A26,抽出!$B$4:$O$200,9,FALSE) ->  | O26: =VLOOKUP($P$1&$U$1&A26,抽出!$B$4:$O$200,10,FALSE) ->  | R26: =VLOOKUP($P$1&$U$1&A26,抽出!$B$4:$O$200,11,FALSE) ->  | S26: =VLOOKUP($P$1&$U$1&A26,抽出!$B$4:$O$200,12,FALSE) ->  | V26: =VLOOKUP($P$1&$U$1&A26,抽出!$B$4:$O$200,13,FALSE) ->  | W26: =VLOOKUP($P$1&$U$1&A26,抽出!$B$4:$O$200,14,FALSE) -> 
A27: 24 | B27: =IF(COUNTIF($K$4:N27,K27)=1,1,0) -> 0 | C27: =IF(B27=0,"",SUM($B$4:B27)) ->  | D27: =VLOOKUP($P$1&$U$1&A27,抽出!$B$4:$O$200,6,FALSE) ->  | G27: =VLOOKUP($P$1&$U$1&A27,抽出!$B$4:$O$200,7,FALSE) ->  | I27: =VLOOKUP($P$1&$U$1&A27,抽出!$B$4:$O$200,8,FALSE) ->  | K27: =VLOOKUP($P$1&$U$1&A27,抽出!$B$4:$O$200,9,FALSE) ->  | O27: =VLOOKUP($P$1&$U$1&A27,抽出!$B$4:$O$200,10,FALSE) ->  | R27: =VLOOKUP($P$1&$U$1&A27,抽出!$B$4:$O$200,11,FALSE) ->  | S27: =VLOOKUP($P$1&$U$1&A27,抽出!$B$4:$O$200,12,FALSE) ->  | V27: =VLOOKUP($P$1&$U$1&A27,抽出!$B$4:$O$200,13,FALSE) ->  | W27: =VLOOKUP($P$1&$U$1&A27,抽出!$B$4:$O$200,14,FALSE) -> 
A28: 25 | B28: =IF(COUNTIF($K$4:N28,K28)=1,1,0) -> 0 | C28: =IF(B28=0,"",SUM($B$4:B28)) ->  | D28: =VLOOKUP($P$1&$U$1&A28,抽出!$B$4:$O$200,6,FALSE) ->  | G28: =VLOOKUP($P$1&$U$1&A28,抽出!$B$4:$O$200,7,FALSE) ->  | I28: =VLOOKUP($P$1&$U$1&A28,抽出!$B$4:$O$200,8,FALSE) ->  | K28: =VLOOKUP($P$1&$U$1&A28,抽出!$B$4:$O$200,9,FALSE) ->  | O28: =VLOOKUP($P$1&$U$1&A28,抽出!$B$4:$O$200,10,FALSE) ->  | R28: =VLOOKUP($P$1&$U$1&A28,抽出!$B$4:$O$200,11,FALSE) ->  | S28: =VLOOKUP($P$1&$U$1&A28,抽出!$B$4:$O$200,12,FALSE) ->  | V28: =VLOOKUP($P$1&$U$1&A28,抽出!$B$4:$O$200,13,FALSE) ->  | W28: =VLOOKUP($P$1&$U$1&A28,抽出!$B$4:$O$200,14,FALSE) -> 
A29: 26 | B29: =IF(COUNTIF($K$4:N29,K29)=1,1,0) -> 0 | C29: =IF(B29=0,"",SUM($B$4:B29)) ->  | D29: =VLOOKUP($P$1&$U$1&A29,抽出!$B$4:$O$200,6,FALSE) ->  | G29: =VLOOKUP($P$1&$U$1&A29,抽出!$B$4:$O$200,7,FALSE) ->  | I29: =VLOOKUP($P$1&$U$1&A29,抽出!$B$4:$O$200,8,FALSE) ->  | K29: =VLOOKUP($P$1&$U$1&A29,抽出!$B$4:$O$200,9,FALSE) ->  | O29: =VLOOKUP($P$1&$U$1&A29,抽出!$B$4:$O$200,10,FALSE) ->  | R29: =VLOOKUP($P$1&$U$1&A29,抽出!$B$4:$O$200,11,FALSE) ->  | S29: =VLOOKUP($P$1&$U$1&A29,抽出!$B$4:$O$200,12,FALSE) ->  | V29: =VLOOKUP($P$1&$U$1&A29,抽出!$B$4:$O$200,13,FALSE) ->  | W29: =VLOOKUP($P$1&$U$1&A29,抽出!$B$4:$O$200,14,FALSE) -> 
A30: 27 | B30: =IF(COUNTIF($K$4:N30,K30)=1,1,0) -> 0 | C30: =IF(B30=0,"",SUM($B$4:B30)) ->  | D30: =VLOOKUP($P$1&$U$1&A30,抽出!$B$4:$O$200,6,FALSE) ->  | G30: =VLOOKUP($P$1&$U$1&A30,抽出!$B$4:$O$200,7,FALSE) ->  | I30: =VLOOKUP($P$1&$U$1&A30,抽出!$B$4:$O$200,8,FALSE) ->  | K30: =VLOOKUP($P$1&$U$1&A30,抽出!$B$4:$O$200,9,FALSE) ->  | O30: =VLOOKUP($P$1&$U$1&A30,抽出!$B$4:$O$200,10,FALSE) ->  | R30: =VLOOKUP($P$1&$U$1&A30,抽出!$B$4:$O$200,11,FALSE) ->  | S30: =VLOOKUP($P$1&$U$1&A30,抽出!$B$4:$O$200,12,FALSE) ->  | V30: =VLOOKUP($P$1&$U$1&A30,抽出!$B$4:$O$200,13,FALSE) ->  | W30: =VLOOKUP($P$1&$U$1&A30,抽出!$B$4:$O$200,14,FALSE) -> 
A31: 28 | B31: =IF(COUNTIF($K$4:N31,K31)=1,1,0) -> 0 | C31: =IF(B31=0,"",SUM($B$4:B31)) ->  | D31: =VLOOKUP($P$1&$U$1&A31,抽出!$B$4:$O$200,6,FALSE) ->  | G31: =VLOOKUP($P$1&$U$1&A31,抽出!$B$4:$O$200,7,FALSE) ->  | I31: =VLOOKUP($P$1&$U$1&A31,抽出!$B$4:$O$200,8,FALSE) ->  | K31: =VLOOKUP($P$1&$U$1&A31,抽出!$B$4:$O$200,9,FALSE) ->  | O31: =VLOOKUP($P$1&$U$1&A31,抽出!$B$4:$O$200,10,FALSE) ->  | R31: =VLOOKUP($P$1&$U$1&A31,抽出!$B$4:$O$200,11,FALSE) ->  | S31: =VLOOKUP($P$1&$U$1&A31,抽出!$B$4:$O$200,12,FALSE) ->  | V31: =VLOOKUP($P$1&$U$1&A31,抽出!$B$4:$O$200,13,FALSE) ->  | W31: =VLOOKUP($P$1&$U$1&A31,抽出!$B$4:$O$200,14,FALSE) -> 
A32: 29 | B32: =IF(COUNTIF($K$4:N32,K32)=1,1,0) -> 0 | C32: =IF(B32=0,"",SUM($B$4:B32)) ->  | D32: =VLOOKUP($P$1&$U$1&A32,抽出!$B$4:$O$200,6,FALSE) ->  | G32: =VLOOKUP($P$1&$U$1&A32,抽出!$B$4:$O$200,7,FALSE) ->  | I32: =VLOOKUP($P$1&$U$1&A32,抽出!$B$4:$O$200,8,FALSE) ->  | K32: =VLOOKUP($P$1&$U$1&A32,抽出!$B$4:$O$200,9,FALSE) ->  | O32: =VLOOKUP($P$1&$U$1&A32,抽出!$B$4:$O$200,10,FALSE) ->  | R32: =VLOOKUP($P$1&$U$1&A32,抽出!$B$4:$O$200,11,FALSE) ->  | S32: =VLOOKUP($P$1&$U$1&A32,抽出!$B$4:$O$200,12,FALSE) ->  | V32: =VLOOKUP($P$1&$U$1&A32,抽出!$B$4:$O$200,13,FALSE) ->  | W32: =VLOOKUP($P$1&$U$1&A32,抽出!$B$4:$O$200,14,FALSE) -> 
A33: 30 | B33: =IF(COUNTIF($K$4:N33,K33)=1,1,0) -> 0 | C33: =IF(B33=0,"",SUM($B$4:B33)) ->  | D33: =VLOOKUP($P$1&$U$1&A33,抽出!$B$4:$O$200,6,FALSE) ->  | G33: =VLOOKUP($P$1&$U$1&A33,抽出!$B$4:$O$200,7,FALSE) ->  | I33: =VLOOKUP($P$1&$U$1&A33,抽出!$B$4:$O$200,8,FALSE) ->  | K33: =VLOOKUP($P$1&$U$1&A33,抽出!$B$4:$O$200,9,FALSE) ->  | O33: =VLOOKUP($P$1&$U$1&A33,抽出!$B$4:$O$200,10,FALSE) ->  | R33: =VLOOKUP($P$1&$U$1&A33,抽出!$B$4:$O$200,11,FALSE) ->  | S33: =VLOOKUP($P$1&$U$1&A33,抽出!$B$4:$O$200,12,FALSE) ->  | V33: =VLOOKUP($P$1&$U$1&A33,抽出!$B$4:$O$200,13,FALSE) ->  | W33: =VLOOKUP($P$1&$U$1&A33,抽出!$B$4:$O$200,14,FALSE) -> 
A34: 31 | B34: =IF(COUNTIF($K$4:N34,K34)=1,1,0) -> 0 | C34: =IF(B34=0,"",SUM($B$4:B34)) ->  | D34: =VLOOKUP($P$1&$U$1&A34,抽出!$B$4:$O$200,6,FALSE) ->  | G34: =VLOOKUP($P$1&$U$1&A34,抽出!$B$4:$O$200,7,FALSE) ->  | I34: =VLOOKUP($P$1&$U$1&A34,抽出!$B$4:$O$200,8,FALSE) ->  | K34: =VLOOKUP($P$1&$U$1&A34,抽出!$B$4:$O$200,9,FALSE) ->  | O34: =VLOOKUP($P$1&$U$1&A34,抽出!$B$4:$O$200,10,FALSE) ->  | R34: =VLOOKUP($P$1&$U$1&A34,抽出!$B$4:$O$200,11,FALSE) ->  | S34: =VLOOKUP($P$1&$U$1&A34,抽出!$B$4:$O$200,12,FALSE) ->  | V34: =VLOOKUP($P$1&$U$1&A34,抽出!$B$4:$O$200,13,FALSE) ->  | W34: =VLOOKUP($P$1&$U$1&A34,抽出!$B$4:$O$200,14,FALSE) -> 
A35: 32 | B35: =IF(COUNTIF($K$4:N35,K35)=1,1,0) -> 0 | C35: =IF(B35=0,"",SUM($B$4:B35)) ->  | D35: =VLOOKUP($P$1&$U$1&A35,抽出!$B$4:$O$200,6,FALSE) ->  | G35: =VLOOKUP($P$1&$U$1&A35,抽出!$B$4:$O$200,7,FALSE) ->  | I35: =VLOOKUP($P$1&$U$1&A35,抽出!$B$4:$O$200,8,FALSE) ->  | K35: =VLOOKUP($P$1&$U$1&A35,抽出!$B$4:$O$200,9,FALSE) ->  | O35: =VLOOKUP($P$1&$U$1&A35,抽出!$B$4:$O$200,10,FALSE) ->  | R35: =VLOOKUP($P$1&$U$1&A35,抽出!$B$4:$O$200,11,FALSE) ->  | S35: =VLOOKUP($P$1&$U$1&A35,抽出!$B$4:$O$200,12,FALSE) ->  | V35: =VLOOKUP($P$1&$U$1&A35,抽出!$B$4:$O$200,13,FALSE) ->  | W35: =VLOOKUP($P$1&$U$1&A35,抽出!$B$4:$O$200,14,FALSE) -> 
A36: 33 | B36: =IF(COUNTIF($K$4:N36,K36)=1,1,0) -> 0 | C36: =IF(B36=0,"",SUM($B$4:B36)) ->  | D36: =VLOOKUP($P$1&$U$1&A36,抽出!$B$4:$O$200,6,FALSE) ->  | G36: =VLOOKUP($P$1&$U$1&A36,抽出!$B$4:$O$200,7,FALSE) ->  | I36: =VLOOKUP($P$1&$U$1&A36,抽出!$B$4:$O$200,8,FALSE) ->  | K36: =VLOOKUP($P$1&$U$1&A36,抽出!$B$4:$O$200,9,FALSE) ->  | O36: =VLOOKUP($P$1&$U$1&A36,抽出!$B$4:$O$200,10,FALSE) ->  | R36: =VLOOKUP($P$1&$U$1&A36,抽出!$B$4:$O$200,11,FALSE) ->  | S36: =VLOOKUP($P$1&$U$1&A36,抽出!$B$4:$O$200,12,FALSE) ->  | V36: =VLOOKUP($P$1&$U$1&A36,抽出!$B$4:$O$200,13,FALSE) ->  | W36: =VLOOKUP($P$1&$U$1&A36,抽出!$B$4:$O$200,14,FALSE) -> 
A37: 34 | B37: =IF(COUNTIF($K$4:N37,K37)=1,1,0) -> 0 | C37: =IF(B37=0,"",SUM($B$4:B37)) ->  | D37: =VLOOKUP($P$1&$U$1&A37,抽出!$B$4:$O$200,6,FALSE) ->  | G37: =VLOOKUP($P$1&$U$1&A37,抽出!$B$4:$O$200,7,FALSE) ->  | I37: =VLOOKUP($P$1&$U$1&A37,抽出!$B$4:$O$200,8,FALSE) ->  | K37: =VLOOKUP($P$1&$U$1&A37,抽出!$B$4:$O$200,9,FALSE) ->  | O37: =VLOOKUP($P$1&$U$1&A37,抽出!$B$4:$O$200,10,FALSE) ->  | R37: =VLOOKUP($P$1&$U$1&A37,抽出!$B$4:$O$200,11,FALSE) ->  | S37: =VLOOKUP($P$1&$U$1&A37,抽出!$B$4:$O$200,12,FALSE) ->  | V37: =VLOOKUP($P$1&$U$1&A37,抽出!$B$4:$O$200,13,FALSE) ->  | W37: =VLOOKUP($P$1&$U$1&A37,抽出!$B$4:$O$200,14,FALSE) -> 
A38: 35 | B38: =IF(COUNTIF($K$4:N38,K38)=1,1,0) -> 0 | C38: =IF(B38=0,"",SUM($B$4:B38)) ->  | D38: =VLOOKUP($P$1&$U$1&A38,抽出!$B$4:$O$200,6,FALSE) ->  | G38: =VLOOKUP($P$1&$U$1&A38,抽出!$B$4:$O$200,7,FALSE) ->  | I38: =VLOOKUP($P$1&$U$1&A38,抽出!$B$4:$O$200,8,FALSE) ->  | K38: =VLOOKUP($P$1&$U$1&A38,抽出!$B$4:$O$200,9,FALSE) ->  | O38: =VLOOKUP($P$1&$U$1&A38,抽出!$B$4:$O$200,10,FALSE) ->  | R38: =VLOOKUP($P$1&$U$1&A38,抽出!$B$4:$O$200,11,FALSE) ->  | S38: =VLOOKUP($P$1&$U$1&A38,抽出!$B$4:$O$200,12,FALSE) ->  | V38: =VLOOKUP($P$1&$U$1&A38,抽出!$B$4:$O$200,13,FALSE) ->  | W38: =VLOOKUP($P$1&$U$1&A38,抽出!$B$4:$O$200,14,FALSE) -> 
A39: 36 | B39: =IF(COUNTIF($K$4:N39,K39)=1,1,0) -> 0 | C39: =IF(B39=0,"",SUM($B$4:B39)) ->  | D39: =VLOOKUP($P$1&$U$1&A39,抽出!$B$4:$O$200,6,FALSE) ->  | G39: =VLOOKUP($P$1&$U$1&A39,抽出!$B$4:$O$200,7,FALSE) ->  | I39: =VLOOKUP($P$1&$U$1&A39,抽出!$B$4:$O$200,8,FALSE) ->  | K39: =VLOOKUP($P$1&$U$1&A39,抽出!$B$4:$O$200,9,FALSE) ->  | O39: =VLOOKUP($P$1&$U$1&A39,抽出!$B$4:$O$200,10,FALSE) ->  | R39: =VLOOKUP($P$1&$U$1&A39,抽出!$B$4:$O$200,11,FALSE) ->  | S39: =VLOOKUP($P$1&$U$1&A39,抽出!$B$4:$O$200,12,FALSE) ->  | V39: =VLOOKUP($P$1&$U$1&A39,抽出!$B$4:$O$200,13,FALSE) ->  | W39: =VLOOKUP($P$1&$U$1&A39,抽出!$B$4:$O$200,14,FALSE) -> 
A40: 37 | B40: =IF(COUNTIF($K$4:N40,K40)=1,1,0) -> 0 | C40: =IF(B40=0,"",SUM($B$4:B40)) ->  | D40: =VLOOKUP($P$1&$U$1&A40,抽出!$B$4:$O$200,6,FALSE) ->  | G40: =VLOOKUP($P$1&$U$1&A40,抽出!$B$4:$O$200,7,FALSE) ->  | I40: =VLOOKUP($P$1&$U$1&A40,抽出!$B$4:$O$200,8,FALSE) ->  | K40: =VLOOKUP($P$1&$U$1&A40,抽出!$B$4:$O$200,9,FALSE) ->  | O40: =VLOOKUP($P$1&$U$1&A40,抽出!$B$4:$O$200,10,FALSE) ->  | R40: =VLOOKUP($P$1&$U$1&A40,抽出!$B$4:$O$200,11,FALSE) ->  | S40: =VLOOKUP($P$1&$U$1&A40,抽出!$B$4:$O$200,12,FALSE) ->  | V40: =VLOOKUP($P$1&$U$1&A40,抽出!$B$4:$O$200,13,FALSE) ->  | W40: =VLOOKUP($P$1&$U$1&A40,抽出!$B$4:$O$200,14,FALSE) -> 
A41: 38 | B41: =IF(COUNTIF($K$4:N41,K41)=1,1,0) -> 0 | C41: =IF(B41=0,"",SUM($B$4:B41)) ->  | D41: =VLOOKUP($P$1&$U$1&A41,抽出!$B$4:$O$200,6,FALSE) ->  | G41: =VLOOKUP($P$1&$U$1&A41,抽出!$B$4:$O$200,7,FALSE) ->  | I41: =VLOOKUP($P$1&$U$1&A41,抽出!$B$4:$O$200,8,FALSE) ->  | K41: =VLOOKUP($P$1&$U$1&A41,抽出!$B$4:$O$200,9,FALSE) ->  | O41: =VLOOKUP($P$1&$U$1&A41,抽出!$B$4:$O$200,10,FALSE) ->  | R41: =VLOOKUP($P$1&$U$1&A41,抽出!$B$4:$O$200,11,FALSE) ->  | S41: =VLOOKUP($P$1&$U$1&A41,抽出!$B$4:$O$200,12,FALSE) ->  | V41: =VLOOKUP($P$1&$U$1&A41,抽出!$B$4:$O$200,13,FALSE) ->  | W41: =VLOOKUP($P$1&$U$1&A41,抽出!$B$4:$O$200,14,FALSE) -> 
A42: 39 | B42: =IF(COUNTIF($K$4:N42,K42)=1,1,0) -> 0 | C42: =IF(B42=0,"",SUM($B$4:B42)) ->  | D42: =VLOOKUP($P$1&$U$1&A42,抽出!$B$4:$O$200,6,FALSE) ->  | G42: =VLOOKUP($P$1&$U$1&A42,抽出!$B$4:$O$200,7,FALSE) ->  | I42: =VLOOKUP($P$1&$U$1&A42,抽出!$B$4:$O$200,8,FALSE) ->  | K42: =VLOOKUP($P$1&$U$1&A42,抽出!$B$4:$O$200,9,FALSE) ->  | O42: =VLOOKUP($P$1&$U$1&A42,抽出!$B$4:$O$200,10,FALSE) ->  | R42: =VLOOKUP($P$1&$U$1&A42,抽出!$B$4:$O$200,11,FALSE) ->  | S42: =VLOOKUP($P$1&$U$1&A42,抽出!$B$4:$O$200,12,FALSE) ->  | V42: =VLOOKUP($P$1&$U$1&A42,抽出!$B$4:$O$200,13,FALSE) ->  | W42: =VLOOKUP($P$1&$U$1&A42,抽出!$B$4:$O$200,14,FALSE) -> 
A43: 40 | B43: =IF(COUNTIF($K$4:N43,K43)=1,1,0) -> 0 | C43: =IF(B43=0,"",SUM($B$4:B43)) ->  | D43: =VLOOKUP($P$1&$U$1&A43,抽出!$B$4:$O$200,6,FALSE) ->  | G43: =VLOOKUP($P$1&$U$1&A43,抽出!$B$4:$O$200,7,FALSE) ->  | I43: =VLOOKUP($P$1&$U$1&A43,抽出!$B$4:$O$200,8,FALSE) ->  | K43: =VLOOKUP($P$1&$U$1&A43,抽出!$B$4:$O$200,9,FALSE) ->  | O43: =VLOOKUP($P$1&$U$1&A43,抽出!$B$4:$O$200,10,FALSE) ->  | R43: =VLOOKUP($P$1&$U$1&A43,抽出!$B$4:$O$200,11,FALSE) ->  | S43: =VLOOKUP($P$1&$U$1&A43,抽出!$B$4:$O$200,12,FALSE) ->  | V43: =VLOOKUP($P$1&$U$1&A43,抽出!$B$4:$O$200,13,FALSE) ->  | W43: =VLOOKUP($P$1&$U$1&A43,抽出!$B$4:$O$200,14,FALSE) -> 
A44: 41 | B44: =IF(COUNTIF($K$4:N44,K44)=1,1,0) -> 0 | C44: =IF(B44=0,"",SUM($B$4:B44)) ->  | D44: =VLOOKUP($P$1&$U$1&A44,抽出!$B$4:$O$200,6,FALSE) ->  | G44: =VLOOKUP($P$1&$U$1&A44,抽出!$B$4:$O$200,7,FALSE) ->  | I44: =VLOOKUP($P$1&$U$1&A44,抽出!$B$4:$O$200,8,FALSE) ->  | K44: =VLOOKUP($P$1&$U$1&A44,抽出!$B$4:$O$200,9,FALSE) ->  | O44: =VLOOKUP($P$1&$U$1&A44,抽出!$B$4:$O$200,10,FALSE) ->  | R44: =VLOOKUP($P$1&$U$1&A44,抽出!$B$4:$O$200,11,FALSE) ->  | S44: =VLOOKUP($P$1&$U$1&A44,抽出!$B$4:$O$200,12,FALSE) ->  | V44: =VLOOKUP($P$1&$U$1&A44,抽出!$B$4:$O$200,13,FALSE) ->  | W44: =VLOOKUP($P$1&$U$1&A44,抽出!$B$4:$O$200,14,FALSE) -> 
A45: 42 | B45: =IF(COUNTIF($K$4:N45,K45)=1,1,0) -> 0 | C45: =IF(B45=0,"",SUM($B$4:B45)) ->  | D45: =VLOOKUP($P$1&$U$1&A45,抽出!$B$4:$O$200,6,FALSE) ->  | G45: =VLOOKUP($P$1&$U$1&A45,抽出!$B$4:$O$200,7,FALSE) ->  | I45: =VLOOKUP($P$1&$U$1&A45,抽出!$B$4:$O$200,8,FALSE) ->  | K45: =VLOOKUP($P$1&$U$1&A45,抽出!$B$4:$O$200,9,FALSE) ->  | O45: =VLOOKUP($P$1&$U$1&A45,抽出!$B$4:$O$200,10,FALSE) ->  | R45: =VLOOKUP($P$1&$U$1&A45,抽出!$B$4:$O$200,11,FALSE) ->  | S45: =VLOOKUP($P$1&$U$1&A45,抽出!$B$4:$O$200,12,FALSE) ->  | V45: =VLOOKUP($P$1&$U$1&A45,抽出!$B$4:$O$200,13,FALSE) ->  | W45: =VLOOKUP($P$1&$U$1&A45,抽出!$B$4:$O$200,14,FALSE) -> 
A46: 43 | B46: =IF(COUNTIF($K$4:N46,K46)=1,1,0) -> 0 | C46: =IF(B46=0,"",SUM($B$4:B46)) ->  | D46: =VLOOKUP($P$1&$U$1&A46,抽出!$B$4:$O$200,6,FALSE) ->  | G46: =VLOOKUP($P$1&$U$1&A46,抽出!$B$4:$O$200,7,FALSE) ->  | I46: =VLOOKUP($P$1&$U$1&A46,抽出!$B$4:$O$200,8,FALSE) ->  | K46: =VLOOKUP($P$1&$U$1&A46,抽出!$B$4:$O$200,9,FALSE) ->  | O46: =VLOOKUP($P$1&$U$1&A46,抽出!$B$4:$O$200,10,FALSE) ->  | R46: =VLOOKUP($P$1&$U$1&A46,抽出!$B$4:$O$200,11,FALSE) ->  | S46: =VLOOKUP($P$1&$U$1&A46,抽出!$B$4:$O$200,12,FALSE) ->  | V46: =VLOOKUP($P$1&$U$1&A46,抽出!$B$4:$O$200,13,FALSE) ->  | W46: =VLOOKUP($P$1&$U$1&A46,抽出!$B$4:$O$200,14,FALSE) -> 
A47: 44 | B47: =IF(COUNTIF($K$4:N47,K47)=1,1,0) -> 0 | C47: =IF(B47=0,"",SUM($B$4:B47)) ->  | D47: =VLOOKUP($P$1&$U$1&A47,抽出!$B$4:$O$200,6,FALSE) ->  | G47: =VLOOKUP($P$1&$U$1&A47,抽出!$B$4:$O$200,7,FALSE) ->  | I47: =VLOOKUP($P$1&$U$1&A47,抽出!$B$4:$O$200,8,FALSE) ->  | K47: =VLOOKUP($P$1&$U$1&A47,抽出!$B$4:$O$200,9,FALSE) ->  | O47: =VLOOKUP($P$1&$U$1&A47,抽出!$B$4:$O$200,10,FALSE) ->  | R47: =VLOOKUP($P$1&$U$1&A47,抽出!$B$4:$O$200,11,FALSE) ->  | S47: =VLOOKUP($P$1&$U$1&A47,抽出!$B$4:$O$200,12,FALSE) ->  | V47: =VLOOKUP($P$1&$U$1&A47,抽出!$B$4:$O$200,13,FALSE) ->  | W47: =VLOOKUP($P$1&$U$1&A47,抽出!$B$4:$O$200,14,FALSE) -> 
A48: 45 | B48: =IF(COUNTIF($K$4:N48,K48)=1,1,0) -> 0 | C48: =IF(B48=0,"",SUM($B$4:B48)) ->  | D48: =VLOOKUP($P$1&$U$1&A48,抽出!$B$4:$O$200,6,FALSE) ->  | G48: =VLOOKUP($P$1&$U$1&A48,抽出!$B$4:$O$200,7,FALSE) ->  | I48: =VLOOKUP($P$1&$U$1&A48,抽出!$B$4:$O$200,8,FALSE) ->  | K48: =VLOOKUP($P$1&$U$1&A48,抽出!$B$4:$O$200,9,FALSE) ->  | O48: =VLOOKUP($P$1&$U$1&A48,抽出!$B$4:$O$200,10,FALSE) ->  | R48: =VLOOKUP($P$1&$U$1&A48,抽出!$B$4:$O$200,11,FALSE) ->  | S48: =VLOOKUP($P$1&$U$1&A48,抽出!$B$4:$O$200,12,FALSE) ->  | V48: =VLOOKUP($P$1&$U$1&A48,抽出!$B$4:$O$200,13,FALSE) ->  | W48: =VLOOKUP($P$1&$U$1&A48,抽出!$B$4:$O$200,14,FALSE) -> 
A49: 46 | B49: =IF(COUNTIF($K$4:N49,K49)=1,1,0) -> 0 | C49: =IF(B49=0,"",SUM($B$4:B49)) ->  | D49: =VLOOKUP($P$1&$U$1&A49,抽出!$B$4:$O$200,6,FALSE) ->  | G49: =VLOOKUP($P$1&$U$1&A49,抽出!$B$4:$O$200,7,FALSE) ->  | I49: =VLOOKUP($P$1&$U$1&A49,抽出!$B$4:$O$200,8,FALSE) ->  | K49: =VLOOKUP($P$1&$U$1&A49,抽出!$B$4:$O$200,9,FALSE) ->  | O49: =VLOOKUP($P$1&$U$1&A49,抽出!$B$4:$O$200,10,FALSE) ->  | R49: =VLOOKUP($P$1&$U$1&A49,抽出!$B$4:$O$200,11,FALSE) ->  | S49: =VLOOKUP($P$1&$U$1&A49,抽出!$B$4:$O$200,12,FALSE) ->  | V49: =VLOOKUP($P$1&$U$1&A49,抽出!$B$4:$O$200,13,FALSE) ->  | W49: =VLOOKUP($P$1&$U$1&A49,抽出!$B$4:$O$200,14,FALSE) -> 
A50: 47 | B50: =IF(COUNTIF($K$4:N50,K50)=1,1,0) -> 0 | C50: =IF(B50=0,"",SUM($B$4:B50)) ->  | D50: =VLOOKUP($P$1&$U$1&A50,抽出!$B$4:$O$200,6,FALSE) ->  | G50: =VLOOKUP($P$1&$U$1&A50,抽出!$B$4:$O$200,7,FALSE) ->  | I50: =VLOOKUP($P$1&$U$1&A50,抽出!$B$4:$O$200,8,FALSE) ->  | K50: =VLOOKUP($P$1&$U$1&A50,抽出!$B$4:$O$200,9,FALSE) ->  | O50: =VLOOKUP($P$1&$U$1&A50,抽出!$B$4:$O$200,10,FALSE) ->  | R50: =VLOOKUP($P$1&$U$1&A50,抽出!$B$4:$O$200,11,FALSE) ->  | S50: =VLOOKUP($P$1&$U$1&A50,抽出!$B$4:$O$200,12,FALSE) ->  | V50: =VLOOKUP($P$1&$U$1&A50,抽出!$B$4:$O$200,13,FALSE) ->  | W50: =VLOOKUP($P$1&$U$1&A50,抽出!$B$4:$O$200,14,FALSE) -> 
A51: 48 | B51: =IF(COUNTIF($K$4:N51,K51)=1,1,0) -> 0 | C51: =IF(B51=0,"",SUM($B$4:B51)) ->  | D51: =VLOOKUP($P$1&$U$1&A51,抽出!$B$4:$O$200,6,FALSE) ->  | G51: =VLOOKUP($P$1&$U$1&A51,抽出!$B$4:$O$200,7,FALSE) ->  | I51: =VLOOKUP($P$1&$U$1&A51,抽出!$B$4:$O$200,8,FALSE) ->  | K51: =VLOOKUP($P$1&$U$1&A51,抽出!$B$4:$O$200,9,FALSE) ->  | O51: =VLOOKUP($P$1&$U$1&A51,抽出!$B$4:$O$200,10,FALSE) ->  | R51: =VLOOKUP($P$1&$U$1&A51,抽出!$B$4:$O$200,11,FALSE) ->  | S51: =VLOOKUP($P$1&$U$1&A51,抽出!$B$4:$O$200,12,FALSE) ->  | V51: =VLOOKUP($P$1&$U$1&A51,抽出!$B$4:$O$200,13,FALSE) ->  | W51: =VLOOKUP($P$1&$U$1&A51,抽出!$B$4:$O$200,14,FALSE) -> 
A52: 49 | B52: =IF(COUNTIF($K$4:N52,K52)=1,1,0) -> 0 | C52: =IF(B52=0,"",SUM($B$4:B52)) ->  | D52: =VLOOKUP($P$1&$U$1&A52,抽出!$B$4:$O$200,6,FALSE) ->  | G52: =VLOOKUP($P$1&$U$1&A52,抽出!$B$4:$O$200,7,FALSE) ->  | I52: =VLOOKUP($P$1&$U$1&A52,抽出!$B$4:$O$200,8,FALSE) ->  | K52: =VLOOKUP($P$1&$U$1&A52,抽出!$B$4:$O$200,9,FALSE) ->  | O52: =VLOOKUP($P$1&$U$1&A52,抽出!$B$4:$O$200,10,FALSE) ->  | R52: =VLOOKUP($P$1&$U$1&A52,抽出!$B$4:$O$200,11,FALSE) ->  | S52: =VLOOKUP($P$1&$U$1&A52,抽出!$B$4:$O$200,12,FALSE) ->  | V52: =VLOOKUP($P$1&$U$1&A52,抽出!$B$4:$O$200,13,FALSE) ->  | W52: =VLOOKUP($P$1&$U$1&A52,抽出!$B$4:$O$200,14,FALSE) -> 
A53: 50 | B53: =IF(COUNTIF($K$4:N53,K53)=1,1,0) -> 0 | C53: =IF(B53=0,"",SUM($B$4:B53)) ->  | D53: =VLOOKUP($P$1&$U$1&A53,抽出!$B$4:$O$200,6,FALSE) ->  | G53: =VLOOKUP($P$1&$U$1&A53,抽出!$B$4:$O$200,7,FALSE) ->  | I53: =VLOOKUP($P$1&$U$1&A53,抽出!$B$4:$O$200,8,FALSE) ->  | K53: =VLOOKUP($P$1&$U$1&A53,抽出!$B$4:$O$200,9,FALSE) ->  | O53: =VLOOKUP($P$1&$U$1&A53,抽出!$B$4:$O$200,10,FALSE) ->  | R53: =VLOOKUP($P$1&$U$1&A53,抽出!$B$4:$O$200,11,FALSE) ->  | S53: =VLOOKUP($P$1&$U$1&A53,抽出!$B$4:$O$200,12,FALSE) ->  | V53: =VLOOKUP($P$1&$U$1&A53,抽出!$B$4:$O$200,13,FALSE) ->  | W53: =VLOOKUP($P$1&$U$1&A53,抽出!$B$4:$O$200,14,FALSE) -> 

Sheet 抽出 (hidden)
B2: 1 | C2: 2 | D2: 3 | E2: 4 | F2: 5 | G2: 6 | H2: 7 | I2: 8 | J2: 9 | K2: 10 | L2: 11 | M2: 12 | N2: 13 | O2: 14
B3: クラス＋種目名＋種目内順位 | D3: クラス＋種目名 | E3: 記録＋行番号 | F3: 種目内順位 | G3: 競技会名 | H3: 競技場 | I3: 実施日 | J3: 選手名 | K3: 記録 | L3: R | M3: 所属 | N3: 学年 | O3: 風
A4: 1 | B4: =D4&F4 -> 中学男子棒高跳12 | C4: =J4&COUNTIF($J$4:J4,J4) -> ｽﾉｰｼﾞｮｻｲﾔ1 | D4: =データ貼付!D2&データ貼付!E2 -> 中学男子棒高跳 | E4: =データ貼付!G2+ROW()/1000000 -> 220.000004 | F4: =SUMPRODUCT(($D$4:$D$200=D4)*($E$4:$E$200>E4))+1 -> 12 | G4: =データ貼付!A2 -> 記録会４戦 | H4: =データ貼付!B2 -> 北見 | I4: =データ貼付!C2 -> 43681 | J4: =データ貼付!F2 -> ｽﾉｰｼﾞｮｻｲﾔ | K4: =データ貼付!G2 -> 220 | L4: =データ貼付!H2 -> 決 | M4: =データ貼付!I2 -> 網走第四中 | N4: =データ貼付!J2 -> 1 | O4: =データ貼付!K2 -> 0
A5: 2 | B5: =D5&F5 -> 中学女子走高跳15 | C5: =J5&COUNTIF($J$4:J5,J5) -> 阿部愛佳1 | D5: =データ貼付!D3&データ貼付!E3 -> 中学女子走高跳 | E5: =データ貼付!G3+ROW()/1000000 -> 130.000005 | F5: =SUMPRODUCT(($D$4:$D$200=D5)*($E$4:$E$200>E5))+1 -> 15 | G5: =データ貼付!A3 -> 記録会４戦 | H5: =データ貼付!B3 -> 北見 | I5: =データ貼付!C3 -> 43681 | J5: =データ貼付!F3 -> 阿部愛佳 | K5: =データ貼付!G3 -> 130 | L5: =データ貼付!H3 -> 決 | M5: =データ貼付!I3 -> 網走第三中 | N5: =データ貼付!J3 -> 2 | O5: =データ貼付!K3 -> 0
A6: 3 | B6: 小学男子走高跳6 | C6: =J6&COUNTIF($J$4:J6,J6) -> 阿部空晴1 | D6: =データ貼付!D4&データ貼付!E4 -> 小学男子走高跳 | E6: =データ貼付!G4+ROW()/1000000 -> 120.000006 | F6: 6 | G6: =データ貼付!A4 -> 小学生ｵﾎｰﾂｸ | H6: =データ貼付!B4 -> 北見 | I6: =データ貼付!C4 -> 43632 | J6: =データ貼付!F4 -> 阿部空晴 | K6: =データ貼付!G4 -> 120 | L6: =データ貼付!H4 -> 決 | M6: =データ貼付!I4 -> 美幌RC | N6: =データ貼付!J4 -> 6 | O6: =データ貼付!K4 -> 0
A7: 4 | B7: 小学男子走高跳20 | C7: =J7&COUNTIF($J$4:J7,J7) -> 安井徠人1 | D7: =データ貼付!D5&データ貼付!E5 -> 小学男子走高跳 | E7: =データ貼付!G5+ROW()/1000000 -> 105.000007 | F7: 20 | G7: =データ貼付!A5 -> 小学生ｵﾎｰﾂｸ | H7: =データ貼付!B5 -> 北見 | I7: =データ貼付!C5 -> 43632 | J7: =データ貼付!F5 -> 安井徠人 | K7: =データ貼付!G5 -> 105 | L7: =データ貼付!H5 -> 決 | M7: =データ貼付!I5 -> 美幌RC | N7: =データ貼付!J5 -> 5 | O7: =データ貼付!K5 -> 0
A8: 5 | B8: 高校男子棒高跳5 | C8: =J8&COUNTIF($J$4:J8,J8) -> 安田留伊1 | D8: =データ貼付!D6&データ貼付!E6 -> 高校男子棒高跳 | E8: =データ貼付!G6+ROW()/1000000 -> 400.000008 | F8: 5 | G8: =データ貼付!A6 -> 全道高校 | H8: =データ貼付!B6 -> 帯広 | I8: =データ貼付!C6 -> 6/19 | J8: =データ貼付!F6 -> 安田留伊 | K8: =データ貼付!G6 -> 400 | L8: =データ貼付!H6 -> 決 | M8: =データ貼付!I6 -> 北見緑陵高 | N8: =データ貼付!J6 -> 2 | O8: =データ貼付!K6 -> 0
A9: 6 | B9: 高校男子走高跳24 | C9: =J9&COUNTIF($J$4:J9,J9) -> 鞍元宏樹1 | D9: =データ貼付!D7&データ貼付!E7 -> 高校男子走高跳 | E9: =データ貼付!G7+ROW()/1000000 -> 140.000009 | F9: 24 | G9: =データ貼付!A7 -> 選手権 | H9: =データ貼付!B7 -> 北見 | I9: =データ貼付!C7 -> 43597 | J9: =データ貼付!F7 -> 鞍元宏樹 | K9: =データ貼付!G7 -> 140 | L9: =データ貼付!H7 -> 決 | M9: =データ貼付!I7 -> 北見工業高 | N9: =データ貼付!J7 -> 3 | O9: =データ貼付!K7 -> 0
A10: 7 | B10: 小学男子走高跳22 | C10: =J10&COUNTIF($J$4:J10,J10) -> 伊藤尊1 | D10: =データ貼付!D8&データ貼付!E8 -> 小学男子走高跳 | E10: =データ貼付!G8+ROW()/1000000 -> 95.00001 | F10: 22 | G10: =データ貼付!A8 -> 小学生記録会 | H10: =データ貼付!B8 -> 北見 | I10: =データ貼付!C8 -> 43736 | J10: =データ貼付!F8 -> 伊藤尊 | K10: =データ貼付!G8 -> 95 | L10: =データ貼付!H8 -> 決 | M10: =データ貼付!I8 -> ｵﾎｰﾂｸACｼﾞｭﾆｱ | N10: =データ貼付!J8 -> 4 | O10: =データ貼付!K8 -> 0
A11: 8 | B11: 中学女子走高跳3 | C11: =J11&COUNTIF($J$4:J11,J11) -> 伊藤来美1 | D11: =データ貼付!D9&データ貼付!E9 -> 中学女子走高跳 | E11: =データ貼付!G9+ROW()/1000000 -> 143.000011 | F11: 3 | G11: =データ貼付!A9 -> 通信陸上 | H11: =データ貼付!B9 -> 網走 | I11: =データ貼付!C9 -> 43645 | J11: =データ貼付!F9 -> 伊藤来美 | K11: =データ貼付!G9 -> 143 | L11: =データ貼付!H9 -> 決 | M11: =データ貼付!I9 -> 北見南中 | N11: =データ貼付!J9 -> 3 | O11: =データ貼付!K9 -> 0
A12: 9 | B12: 中学女子走高跳5 | C12: =J12&COUNTIF($J$4:J12,J12) -> 伊藤凛音1 | D12: =データ貼付!D10&データ貼付!E10 -> 中学女子走高跳 | E12: =データ貼付!G10+ROW()/1000000 -> 140.000012 | F12: 5 | G12: =データ貼付!A10 -> 地区中体連 | H12: =データ貼付!B10 -> 北見 | I12: =データ貼付!C10 -> 43631 | J12: =データ貼付!F10 -> 伊藤凛音 | K12: =データ貼付!G10 -> 140 | L12: =データ貼付!H10 -> 決 | M12: =データ貼付!I10 -> 北見南中 | N12: =データ貼付!J10 -> 1 | O12: =データ貼付!K10 -> 0
A13: 10 | B13: 高校男子走高跳16 | C13: =J13&COUNTIF($J$4:J13,J13) -> 伊奈翔大1 | D13: =データ貼付!D11&データ貼付!E11 -> 高校男子走高跳 | E13: =データ貼付!G11+ROW()/1000000 -> 160.000013 | F13: 16 | G13: =データ貼付!A11 -> 記録会第２戦 | H13: =データ貼付!B11 -> 網走 | I13: =データ貼付!C11 -> 43589 | J13: =データ貼付!F11 -> 伊奈翔大 | K13: =データ貼付!G11 -> 160 | L13: =データ貼付!H11 -> 決 | M13: =データ貼付!I11 -> 北見柏陽高 | N13: =データ貼付!J11 -> 1 | O13: =データ貼付!K11 -> 0
A14: 11 | B14: 小学女子走高跳1 | C14: =J14&COUNTIF($J$4:J14,J14) -> 井上茜深1 | D14: =データ貼付!D12&データ貼付!E12 -> 小学女子走高跳 | E14: =データ貼付!G12+ROW()/1000000 -> 125.000014 | F14: 1 | G14: =データ貼付!A12 -> 小学生記録会 | H14: =データ貼付!B12 -> 北見 | I14: =データ貼付!C12 -> 43736 | J14: =データ貼付!F12 -> 井上茜深 | K14: =データ貼付!G12 -> 125 | L14: =データ貼付!H12 -> 決 | M14: =データ貼付!I12 -> 常呂陸上少年団 | N14: =データ貼付!J12 -> 6 | O14: =データ貼付!K12 -> 0
A15: 12 | B15: 中学女子走高跳18 | C15: =J15&COUNTIF($J$4:J15,J15) -> 井上優奈1 | D15: =データ貼付!D13&データ貼付!E13 -> 中学女子走高跳 | E15: =データ貼付!G13+ROW()/1000000 -> 125.000015 | F15: 18 | G15: =データ貼付!A13 -> 記録会４戦 | H15: =データ貼付!B13 -> 北見 | I15: =データ貼付!C13 -> 43681 | J15: =データ貼付!F13 -> 井上優奈 | K15: =データ貼付!G13 -> 125 | L15: =データ貼付!H13 -> 決 | M15: =データ貼付!I13 -> 置戸中 | N15: =データ貼付!J13 -> 3 | O15: =データ貼付!K13 -> 0
A16: 13 | B16: 中学女子走高跳14 | C16: =J16&COUNTIF($J$4:J16,J16) -> 井尾愛美1 | D16: =データ貼付!D14&データ貼付!E14 -> 中学女子走高跳 | E16: =データ貼付!G14+ROW()/1000000 -> 130.000016 | F16: 14 | G16: =データ貼付!A14 -> 秋季陸上 | H16: =データ貼付!B14 -> 網走 | I16: =データ貼付!C14 -> 43716 | J16: =データ貼付!F14 -> 井尾愛美 | K16: =データ貼付!G14 -> 130 | L16: =データ貼付!H14 -> 決 | M16: =データ貼付!I14 -> 網走第一中 | N16: =データ貼付!J14 -> 2 | O16: =データ貼付!K14 -> 0
A17: 14 | B17: 中学女子走高跳17 | C17: =J17&COUNTIF($J$4:J17,J17) -> 一谷美穂1 | D17: =データ貼付!D15&データ貼付!E15 -> 中学女子走高跳 | E17: =データ貼付!G15+ROW()/1000000 -> 125.000017 | F17: 17 | G17: =データ貼付!A15 -> 地区中体連 | H17: =データ貼付!B15 -> 北見 | I17: =データ貼付!C15 -> 43631 | J17: =データ貼付!F15 -> 一谷美穂 | K17: =データ貼付!G15 -> 125 | L17: =データ貼付!H15 -> 決 | M17: =データ貼付!I15 -> 紋別中 | N17: =データ貼付!J15 -> 3 | O17: =データ貼付!K15 -> 0
A18: 15 | B18: 高校男子走高跳10 | C18: =J18&COUNTIF($J$4:J18,J18) -> 臼井貴将1 | D18: =データ貼付!D16&データ貼付!E16 -> 高校男子走高跳 | E18: =データ貼付!G16+ROW()/1000000 -> 168.000018 | F18: 10 | G18: =データ貼付!A16 -> 高体連支部 | H18: =データ貼付!B16 -> 北見 | I18: =データ貼付!C16 -> 43609 | J18: =データ貼付!F16 -> 臼井貴将 | K18: =データ貼付!G16 -> 168 | L18: =データ貼付!H16 -> 決 | M18: =データ貼付!I16 -> 網走南ヶ丘高 | N18: =データ貼付!J16 -> 2 | O18: =データ貼付!K16 -> 0
A19: 16 | B19: 中学女子走高跳26 | C19: =J19&COUNTIF($J$4:J19,J19) -> 永本文香1 | D19: =データ貼付!D17&データ貼付!E17 -> 中学女子走高跳 | E19: =データ貼付!G17+ROW()/1000000 -> 120.000019 | F19: 26 | G19: =データ貼付!A17 -> 記録会３戦 | H19: =データ貼付!B17 -> 網走 | I19: =データ貼付!C17 -> 43660 | J19: =データ貼付!F17 -> 永本文香 | K19: =データ貼付!G17 -> 120 | L19: =データ貼付!H17 -> 決 | M19: =データ貼付!I17 -> 網走第三中 | N19: =データ貼付!J17 -> 2 | O19: =データ貼付!K17 -> 0
A20: 17 | B20: 高校女子走高跳3 | C20: =J20&COUNTIF($J$4:J20,J20) -> 塩田悦子1 | D20: =データ貼付!D18&データ貼付!E18 -> 高校女子走高跳 | E20: =データ貼付!G18+ROW()/1000000 -> 141.00002 | F20: 3 | G20: =データ貼付!A18 -> 高校新人 | H20: =データ貼付!B18 -> 北見 | I20: =データ貼付!C18 -> 43700 | J20: =データ貼付!F18 -> 塩田悦子 | K20: =データ貼付!G18 -> 141 | L20: =データ貼付!H18 -> 決 | M20: =データ貼付!I18 -> 網走南ヶ丘高 | N20: =データ貼付!J18 -> 2 | O20: =データ貼付!K18 -> 0
A21: 18 | B21: 中学女子走高跳13 | C21: =J21&COUNTIF($J$4:J21,J21) -> 奥河優花1 | D21: =データ貼付!D19&データ貼付!E19 -> 中学女子走高跳 | E21: =データ貼付!G19+ROW()/1000000 -> 130.000021 | F21: 13 | G21: =データ貼付!A19 -> 中学新人 | H21: =データ貼付!B19 -> 北見 | I21: =データ貼付!C19 -> 43701 | J21: =データ貼付!F19 -> 奥河優花 | K21: =データ貼付!G19 -> 130 | L21: =データ貼付!H19 -> 決 | M21: =データ貼付!I19 -> 紋別中 | N21: =データ貼付!J19 -> 2 | O21: =データ貼付!K19 -> 0
A22: 19 | B22: 小学女子走高跳3 | C22: =J22&COUNTIF($J$4:J22,J22) -> 家藤緑茄1 | D22: =データ貼付!D20&データ貼付!E20 -> 小学女子走高跳 | E22: =データ貼付!G20+ROW()/1000000 -> 120.000022 | F22: 3 | G22: =データ貼付!A20 -> 小学生記録会 | H22: =データ貼付!B20 -> 北見 | I22: =データ貼付!C20 -> 43736 | J22: =データ貼付!F20 -> 家藤緑茄 | K22: =データ貼付!G20 -> 120 | L22: =データ貼付!H20 -> 決 | M22: =データ貼付!I20 -> 網走陸上少年団 | N22: =データ貼付!J20 -> 5 | O22: =データ貼付!K20 -> 0
A23: 20 | B23: 中学男子走高跳1 | C23: =J23&COUNTIF($J$4:J23,J23) -> 角谷優孔1 | D23: =データ貼付!D21&データ貼付!E21 -> 中学男子走高跳 | E23: =データ貼付!G21+ROW()/1000000 -> 176.000023 | F23: 1 | G23: =データ貼付!A21 -> 全道中学 | H23: =データ貼付!B21 -> 旭川 | I23: =データ貼付!C21 -> 43674 | J23: =データ貼付!F21 -> 角谷優孔 | K23: =データ貼付!G21 -> 176 | L23: =データ貼付!H21 -> 決 | M23: =データ貼付!I21 -> 斜里知床ｳﾄﾛ学校 | N23: =データ貼付!J21 -> 3 | O23: =データ貼付!K21 -> 0
A24: 21 | B24: 高校男子走高跳4 | C24: =J24&COUNTIF($J$4:J24,J24) -> 梶原幹太1 | D24: =データ貼付!D22&データ貼付!E22 -> 高校男子走高跳 | E24: =データ貼付!G22+ROW()/1000000 -> 175.000024 | F24: 4 | G24: =データ貼付!A22 -> 記録会第２戦 | H24: =データ貼付!B22 -> 網走 | I24: =データ貼付!C22 -> 43589 | J24: =データ貼付!F22 -> 梶原幹太 | K24: =データ貼付!G22 -> 175 | L24: =データ貼付!H22 -> 決 | M24: =データ貼付!I22 -> 北見柏陽高 | N24: =データ貼付!J22 -> 3 | O24: =データ貼付!K22 -> 0
A25: 22 | B25: 小学男子走高跳15 | C25: =J25&COUNTIF($J$4:J25,J25) -> 岩崎鼓太郎1 | D25: =データ貼付!D23&データ貼付!E23 -> 小学男子走高跳 | E25: =データ貼付!G23+ROW()/1000000 -> 110.000025 | F25: 15 | G25: =データ貼付!A23 -> フィールド記録会 | H25: =データ貼付!B23 -> 網走 | I25: =データ貼付!C23 -> 43624 | J25: =データ貼付!F23 -> 岩崎鼓太郎 | K25: =データ貼付!G23 -> 110 | L25: =データ貼付!H23 -> 決 | M25: =データ貼付!I23 -> ｵﾎｰﾂｸｷｯｽﾞ | N25: =データ貼付!J23 -> 6 | O25: =データ貼付!K23 -> 0
A26: 23 | B26: 高校男子走高跳22 | C26: =J26&COUNTIF($J$4:J26,J26) -> 岩﨑崚1 | D26: =データ貼付!D24&データ貼付!E24 -> 高校男子走高跳 | E26: =データ貼付!G24+ROW()/1000000 -> 150.000026 | F26: 22 | G26: =データ貼付!A24 -> 高校新人 | H26: =データ貼付!B24 -> 北見 | I26: =データ貼付!C24 -> 43701 | J26: =データ貼付!F24 -> 岩﨑崚 | K26: =データ貼付!G24 -> 150 | L26: =データ貼付!H24 -> 決 | M26: =データ貼付!I24 -> 北見緑陵高 | N26: =データ貼付!J24 -> 1 | O26: =データ貼付!K24 -> 0
A27: 24 | B27: 中学女子走高跳10 | C27: =J27&COUNTIF($J$4:J27,J27) -> 吉田萌花1 | D27: =データ貼付!D25&データ貼付!E25 -> 中学女子走高跳 | E27: =データ貼付!G25+ROW()/1000000 -> 135.000027 | F27: 10 | G27: =データ貼付!A25 -> 通信陸上 | H27: =データ貼付!B25 -> 網走 | I27: =データ貼付!C25 -> 43645 | J27: =データ貼付!F25 -> 吉田萌花 | K27: =データ貼付!G25 -> 135 | L27: =データ貼付!H25 -> 決 | M27: =データ貼付!I25 -> 北見南中 | N27: =データ貼付!J25 -> 3 | O27: =データ貼付!K25 -> 0
A28: 25 | B28: 小学女子走高跳9 | C28: =J28&COUNTIF($J$4:J28,J28) -> 久保田昊和1 | D28: =データ貼付!D26&データ貼付!E26 -> 小学女子走高跳 | E28: =データ貼付!G26+ROW()/1000000 -> 105.000028 | F28: 9 | G28: =データ貼付!A26 -> フィールド記録会 | H28: =データ貼付!B26 -> 網走 | I28: =データ貼付!C26 -> 43624 | J28: =データ貼付!F26 -> 久保田昊和 | K28: =データ貼付!G26 -> 105 | L28: =データ貼付!H26 -> 決 | M28: =データ貼付!I26 -> 知床斜里RC | N28: =データ貼付!J26 -> 6 | O28: =データ貼付!K26 -> 0
A29: 26 | B29: 小学男子走高跳14 | C29: =J29&COUNTIF($J$4:J29,J29) -> 近藤輝空1 | D29: =データ貼付!D27&データ貼付!E27 -> 小学男子走高跳 | E29: =データ貼付!G27+ROW()/1000000 -> 110.000029 | F29: 14 | G29: =データ貼付!A27 -> 選手権 | H29: =データ貼付!B27 -> 北見 | I29: =データ貼付!C27 -> 43596 | J29: =データ貼付!F27 -> 近藤輝空 | K29: =データ貼付!G27 -> 110 | L29: =データ貼付!H27 -> 決 | M29: =データ貼付!I27 -> ｵﾎｰﾂｸｷｯｽﾞ | N29: =データ貼付!J27 -> 6 | O29: =データ貼付!K27 -> 0
A30: 27 | B30: 中学女子走高跳25 | C30: =J30&COUNTIF($J$4:J30,J30) -> 熊谷彩音1 | D30: =データ貼付!D28&データ貼付!E28 -> 中学女子走高跳 | E30: =データ貼付!G28+ROW()/1000000 -> 120.00003 | F30: 25 | G30: =データ貼付!A28 -> 地区中体連 | H30: =データ貼付!B28 -> 北見 | I30: =データ貼付!C28 -> 43631 | J30: =データ貼付!F28 -> 熊谷彩音 | K30: =データ貼付!G28 -> 120 | L30: =データ貼付!H28 -> 決 | M30: =データ貼付!I28 -> 北見小泉中 | N30: =データ貼付!J28 -> 3 | O30: =データ貼付!K28 -> 0
A31: 28 | B31: 中学男子棒高跳1 | C31: =J31&COUNTIF($J$4:J31,J31) -> 栗生朔門1 | D31: =データ貼付!D29&データ貼付!E29 -> 中学男子棒高跳 | E31: =データ貼付!G29+ROW()/1000000 -> 410.000031 | F31: 1 | G31: =データ貼付!A29 -> 記録会４戦 | H31: =データ貼付!B29 -> 北見 | I31: =データ貼付!C29 -> 43681 | J31: =データ貼付!F29 -> 栗生朔門 | K31: =データ貼付!G29 -> 410 | L31: =データ貼付!H29 -> 決 | M31: =データ貼付!I29 -> 網走第四中 | N31: =データ貼付!J29 -> 3 | O31: =データ貼付!K29 -> 0
A32: 29 | B32: 中学男子走高跳8 | C32: =J32&COUNTIF($J$4:J32,J32) -> 月嶋永遠1 | D32: =データ貼付!D30&データ貼付!E30 -> 中学男子走高跳 | E32: =データ貼付!G30+ROW()/1000000 -> 150.000032 | F32: 8 | G32: =データ貼付!A30 -> 記録会４戦 | H32: =データ貼付!B30 -> 北見 | I32: =データ貼付!C30 -> 43681 | J32: =データ貼付!F30 -> 月嶋永遠 | K32: =データ貼付!G30 -> 150 | L32: =データ貼付!H30 -> 決 | M32: =データ貼付!I30 -> 北見北光中 | N32: =データ貼付!J30 -> 3 | O32: =データ貼付!K30 -> 0
A33: 30 | B33: 中学男子棒高跳10 | C33: =J33&COUNTIF($J$4:J33,J33) -> 古畑愛斗1 | D33: =データ貼付!D31&データ貼付!E31 -> 中学男子棒高跳 | E33: =データ貼付!G31+ROW()/1000000 -> 240.000033 | F33: 10 | G33: =データ貼付!A31 -> 地区中体連 | H33: =データ貼付!B31 -> 北見 | I33: =データ貼付!C31 -> 43630 | J33: =データ貼付!F31 -> 古畑愛斗 | K33: =データ貼付!G31 -> 240 | L33: =データ貼付!H31 -> 決 | M33: =データ貼付!I31 -> 北見小泉中 | N33: =データ貼付!J31 -> 2 | O33: =データ貼付!K31 -> 0
A34: 31 | B34: 高校女子走高跳4 | C34: =J34&COUNTIF($J$4:J34,J34) -> 五十嵐響1 | D34: =データ貼付!D32&データ貼付!E32 -> 高校女子走高跳 | E34: =データ貼付!G32+ROW()/1000000 -> 140.000034 | F34: 4 | G34: =データ貼付!A32 -> 高体連支部 | H34: =データ貼付!B32 -> 北見 | I34: =データ貼付!C32 -> 43609 | J34: =データ貼付!F32 -> 五十嵐響 | K34: =データ貼付!G32 -> 140 | L34: =データ貼付!H32 -> 決 | M34: =データ貼付!I32 -> 北見藤高 | N34: =データ貼付!J32 -> 1 | O34: =データ貼付!K32 -> 0
A35: 32 | B35: 高校女子走高跳6 | C35: =J35&COUNTIF($J$4:J35,J35) -> 後田千春1 | D35: =データ貼付!D33&データ貼付!E33 -> 高校女子走高跳 | E35: =データ貼付!G33+ROW()/1000000 -> 125.000035 | F35: 6 | G35: =データ貼付!A33 -> 高体連支部 | H35: =データ貼付!B33 -> 北見 | I35: =データ貼付!C33 -> 43609 | J35: =データ貼付!F33 -> 後田千春 | K35: =データ貼付!G33 -> 125 | L35: =データ貼付!H33 -> 決 | M35: =データ貼付!I33 -> 網走桂陽高 | N35: =データ貼付!J33 -> 1 | O35: =データ貼付!K33 -> 0
A36: 33 | B36: 高校男子走高跳15 | C36: =J36&COUNTIF($J$4:J36,J36) -> 工藤夢叶1 | D36: =データ貼付!D34&データ貼付!E34 -> 高校男子走高跳 | E36: =データ貼付!G34+ROW()/1000000 -> 160.000036 | F36: 15 | G36: =データ貼付!A34 -> 高体連支部 | H36: =データ貼付!B34 -> 北見 | I36: =データ貼付!C34 -> 43609 | J36: =データ貼付!F34 -> 工藤夢叶 | K36: =データ貼付!G34 -> 160 | L36: =データ貼付!H34 -> 決 | M36: =データ貼付!I34 -> 北見工業高 | N36: =データ貼付!J34 -> 2 | O36: =データ貼付!K34 -> 0
A37: 34 | B37: 小学男子走高跳21 | C37: =J37&COUNTIF($J$4:J37,J37) -> 江添陽人1 | D37: =データ貼付!D35&データ貼付!E35 -> 小学男子走高跳 | E37: =データ貼付!G35+ROW()/1000000 -> 100.000037 | F37: 21 | G37: =データ貼付!A35 -> 小学生ｵﾎｰﾂｸ | H37: =データ貼付!B35 -> 北見 | I37: =データ貼付!C35 -> 43632 | J37: =データ貼付!F35 -> 江添陽人 | K37: =データ貼付!G35 -> 100 | L37: =データ貼付!H35 -> 決 | M37: =データ貼付!I35 -> ｵﾎｰﾂｸSS | N37: =データ貼付!J35 -> 6 | O37: =データ貼付!K35 -> 0
A38: 35 | B38: 小学男子走高跳9 | C38: =J38&COUNTIF($J$4:J38,J38) -> 荒木碧巴1 | D38: =データ貼付!D36&データ貼付!E36 -> 小学男子走高跳 | E38: =データ貼付!G36+ROW()/1000000 -> 115.000038 | F38: 9 | G38: =データ貼付!A36 -> フィールド記録会 | H38: =データ貼付!B36 -> 網走 | I38: =データ貼付!C36 -> 43624 | J38: =データ貼付!F36 -> 荒木碧巴 | K38: =データ貼付!G36 -> 115 | L38: =データ貼付!H36 -> 決 | M38: =データ貼付!I36 -> 知床斜里RC | N38: =データ貼付!J36 -> 6 | O38: =データ貼付!K36 -> 0
A39: 36 | B39: 小学女子走高跳10 | C39: =J39&COUNTIF($J$4:J39,J39) -> 高橋碧衣1 | D39: =データ貼付!D37&データ貼付!E37 -> 小学女子走高跳 | E39: =データ貼付!G37+ROW()/1000000 -> 100.000039 | F39: 10 | G39: =データ貼付!A37 -> 小学生ｵﾎｰﾂｸ | H39: =データ貼付!B37 -> 北見 | I39: =データ貼付!C37 -> 43632 | J39: =データ貼付!F37 -> 高橋碧衣 | K39: =データ貼付!G37 -> 100 | L39: =データ貼付!H37 -> 決 | M39: =データ貼付!I37 -> 常呂陸上少年団 | N39: =データ貼付!J37 -> 5 | O39: =データ貼付!K37 -> 0
A40: 37 | B40: 高校男子走高跳3 | C40: =J40&COUNTIF($J$4:J40,J40) -> 根田一光1 | D40: =データ貼付!D38&データ貼付!E38 -> 高校男子走高跳 | E40: =データ貼付!G38+ROW()/1000000 -> 180.00004 | F40: 3 | G40: =データ貼付!A38 -> 全道高校新人 | H40: =データ貼付!B38 -> 函館 | I40: =データ貼付!C38 -> 9/19 | J40: =データ貼付!F38 -> 根田一光 | K40: =データ貼付!G38 -> 180 | L40: =データ貼付!H38 -> 予 | M40: =データ貼付!I38 -> 網走南ｹ丘高 | N40: =データ貼付!J38 -> 1 | O40: =データ貼付!K38 -> 0
A41: 38 | B41: 高校男子走高跳21 | C41: =J41&COUNTIF($J$4:J41,J41) -> 佐藤一希1 | D41: =データ貼付!D39&データ貼付!E39 -> 高校男子走高跳 | E41: =データ貼付!G39+ROW()/1000000 -> 150.000041 | F41: 21 | G41: =データ貼付!A39 -> 選手権 | H41: =データ貼付!B39 -> 北見 | I41: =データ貼付!C39 -> 43597 | J41: =データ貼付!F39 -> 佐藤一希 | K41: =データ貼付!G39 -> 150 | L41: =データ貼付!H39 -> 決 | M41: =データ貼付!I39 -> 清里高 | N41: =データ貼付!J39 -> 2 | O41: =データ貼付!K39 -> 0
A42: 39 | B42: 中学男子棒高跳9 | C42: =J42&COUNTIF($J$4:J42,J42) -> 佐藤大斗1 | D42: =データ貼付!D40&データ貼付!E40 -> 中学男子棒高跳 | E42: =データ貼付!G40+ROW()/1000000 -> 240.000042 | F42: 9 | G42: =データ貼付!A40 -> 秋季陸上 | H42: =データ貼付!B40 -> 網走 | I42: =データ貼付!C40 -> 43715 | J42: =データ貼付!F40 -> 佐藤大斗 | K42: =データ貼付!G40 -> 240 | L42: =データ貼付!H40 -> 決 | M42: =データ貼付!I40 -> 斜里中 | N42: =データ貼付!J40 -> 1 | O42: =データ貼付!K40 -> 0
A43: 40 | B43: 高校男子走高跳1 | C43: =J43&COUNTIF($J$4:J43,J43) -> 佐藤碧1 | D43: =データ貼付!D41&データ貼付!E41 -> 高校男子走高跳 | E43: =データ貼付!G41+ROW()/1000000 -> 189.000043 | F43: 1 | G43: =データ貼付!A41 -> 高体連支部 | H43: =データ貼付!B41 -> 北見 | I43: =データ貼付!C41 -> 43609 | J43: =データ貼付!F41 -> 佐藤碧 | K43: =データ貼付!G41 -> 189 | L43: =データ貼付!H41 -> 決 | M43: =データ貼付!I41 -> 北見北斗高 | N43: =データ貼付!J41 -> 3 | O43: =データ貼付!K41 -> 0
A44: 41 | B44: 高校男子走高跳6 | C44: =J44&COUNTIF($J$4:J44,J44) -> 佐藤琉生1 | D44: =データ貼付!D42&データ貼付!E42 -> 高校男子走高跳 | E44: =データ貼付!G42+ROW()/1000000 -> 171.000044 | F44: 6 | G44: =データ貼付!A42 -> 高体連支部 | H44: =データ貼付!B42 -> 北見 | I44: =データ貼付!C42 -> 43609 | J44: =データ貼付!F42 -> 佐藤琉生 | K44: =データ貼付!G42 -> 171 | L44: =データ貼付!H42 -> 決 | M44: =データ貼付!I42 -> 北見北斗高 | N44: =データ貼付!J42 -> 1 | O44: =データ貼付!K42 -> 0
A45: 42 | B45: 高校男子走高跳2 | C45: =J45&COUNTIF($J$4:J45,J45) -> 佐藤涼太1 | D45: =データ貼付!D43&データ貼付!E43 -> 高校男子走高跳 | E45: =データ貼付!G43+ROW()/1000000 -> 186.000045 | F45: 2 | G45: =データ貼付!A43 -> 記録会第２戦 | H45: =データ貼付!B43 -> 網走 | I45: =データ貼付!C43 -> 43589 | J45: =データ貼付!F43 -> 佐藤涼太 | K45: =データ貼付!G43 -> 186 | L45: =データ貼付!H43 -> 決 | M45: =データ貼付!I43 -> 網走桂陽高 | N45: =データ貼付!J43 -> 3 | O45: =データ貼付!K43 -> 0
A46: 43 | B46: 中学女子走高跳2 | C46: =J46&COUNTIF($J$4:J46,J46) -> 佐伯亜子1 | D46: =データ貼付!D44&データ貼付!E44 -> 中学女子走高跳 | E46: =データ貼付!G44+ROW()/1000000 -> 144.000046 | F46: 2 | G46: =データ貼付!A44 -> 秋季陸上 | H46: =データ貼付!B44 -> 網走 | I46: =データ貼付!C44 -> 43716 | J46: =データ貼付!F44 -> 佐伯亜子 | K46: =データ貼付!G44 -> 144 | L46: =データ貼付!H44 -> 決 | M46: =データ貼付!I44 -> 北見小泉中 | N46: =データ貼付!J44 -> 2 | O46: =データ貼付!K44 -> 0
A47: 44 | B47: 高校男子走高跳13 | C47: =J47&COUNTIF($J$4:J47,J47) -> 佐野光1 | D47: =データ貼付!D45&データ貼付!E45 -> 高校男子走高跳 | E47: =データ貼付!G45+ROW()/1000000 -> 165.000047 | F47: 13 | G47: =データ貼付!A45 -> 高校新人 | H47: =データ貼付!B45 -> 北見 | I47: =データ貼付!C45 -> 43701 | J47: =データ貼付!F45 -> 佐野光 | K47: =データ貼付!G45 -> 165 | L47: =データ貼付!H45 -> 決 | M47: =データ貼付!I45 -> 北見北斗高 | N47: =データ貼付!J45 -> 1 | O47: =データ貼付!K45 -> 0
A48: 45 | B48: 中学男子棒高跳4 | C48: =J48&COUNTIF($J$4:J48,J48) -> 佐野巧1 | D48: =データ貼付!D46&データ貼付!E46 -> 中学男子棒高跳 | E48: =データ貼付!G46+ROW()/1000000 -> 350.000048 | F48: 4 | G48: =データ貼付!A46 -> 秋季陸上 | H48: =データ貼付!B46 -> 網走 | I48: =データ貼付!C46 -> 43715 | J48: =データ貼付!F46 -> 佐野巧 | K48: =データ貼付!G46 -> 350 | L48: =データ貼付!H46 -> 決 | M48: =データ貼付!I46 -> 斜里中 | N48: =データ貼付!J46 -> 3 | O48: =データ貼付!K46 -> 0
A49: 46 | B49: 小学男子走高跳8 | C49: =J49&COUNTIF($J$4:J49,J49) -> 佐野氷佳流1 | D49: =データ貼付!D47&データ貼付!E47 -> 小学男子走高跳 | E49: =データ貼付!G47+ROW()/1000000 -> 115.000049 | F49: 8 | G49: =データ貼付!A47 -> 小学生記録会 | H49: =データ貼付!B47 -> 北見 | I49: =データ貼付!C47 -> 43736 | J49: =データ貼付!F47 -> 佐野氷佳流 | K49: =データ貼付!G47 -> 115 | L49: =データ貼付!H47 -> 決 | M49: =データ貼付!I47 -> 知床斜里RC | N49: =データ貼付!J47 -> 5 | O49: =データ貼付!K47 -> 0
A50: 47 | B50: 高校男子走高跳14 | C50: =J50&COUNTIF($J$4:J50,J50) -> 坂元恭介1 | D50: =データ貼付!D48&データ貼付!E48 -> 高校男子走高跳 | E50: =データ貼付!G48+ROW()/1000000 -> 160.00005 | F50: 14 | G50: =データ貼付!A48 -> 高校新人 | H50: =データ貼付!B48 -> 北見 | I50: =データ貼付!C48 -> 43701 | J50: =データ貼付!F48 -> 坂元恭介 | K50: =データ貼付!G48 -> 160 | L50: =データ貼付!H48 -> 決 | M50: =データ貼付!I48 -> 網走南ヶ丘高 | N50: =データ貼付!J48 -> 1 | O50: =データ貼付!K48 -> 0
A51: 48 | B51: 高校男子棒高跳3 | C51: =J51&COUNTIF($J$4:J51,J51) -> 坂元恭介2 | D51: =データ貼付!D49&データ貼付!E49 -> 高校男子棒高跳 | E51: =データ貼付!G49+ROW()/1000000 -> 420.000051 | F51: 3 | G51: =データ貼付!A49 -> 全道高校新人 | H51: =データ貼付!B49 -> 函館 | I51: =データ貼付!C49 -> 9/18 | J51: =データ貼付!F49 -> 坂元恭介 | K51: =データ貼付!G49 -> 420 | L51: =データ貼付!H49 -> 決 | M51: =データ貼付!I49 -> 網走南ｹ丘高 | N51: =データ貼付!J49 -> 1 | O51: =データ貼付!K49 -> 0
A52: 49 | B52: 高校男子走高跳17 | C52: =J52&COUNTIF($J$4:J52,J52) -> 坂口直樹1 | D52: =データ貼付!D50&データ貼付!E50 -> 高校男子走高跳 | E52: =データ貼付!G50+ROW()/1000000 -> 155.000052 | F52: 17 | G52: =データ貼付!A50 -> 高校新人 | H52: =データ貼付!B50 -> 北見 | I52: =データ貼付!C50 -> 43701 | J52: =データ貼付!F50 -> 坂口直樹 | K52: =データ貼付!G50 -> 155 | L52: =データ貼付!H50 -> 決 | M52: =データ貼付!I50 -> 遠軽高 | N52: =データ貼付!J50 -> 1 | O52: =データ貼付!K50 -> 0
A53: 50 | B53: 中学男子走高跳2 | C53: =J53&COUNTIF($J$4:J53,J53) -> 山田蒼唯1 | D53: =データ貼付!D51&データ貼付!E51 -> 中学男子走高跳 | E53: =データ貼付!G51+ROW()/1000000 -> 155.000053 | F53: 2 | G53: =データ貼付!A51 -> 記録会４戦 | H53: =データ貼付!B51 -> 北見 | I53: =データ貼付!C51 -> 43681 | J53: =データ貼付!F51 -> 山田蒼唯 | K53: =データ貼付!G51 -> 155 | L53: =データ貼付!H51 -> 決 | M53: =データ貼付!I51 -> 北見北光中 | N53: =データ貼付!J51 -> 3 | O53: =データ貼付!K51 -> 0
A54: 51 | B54: 高校男子走高跳20 | C54: =J54&COUNTIF($J$4:J54,J54) -> 山田翔也1 | D54: =データ貼付!D52&データ貼付!E52 -> 高校男子走高跳 | E54: =データ貼付!G52+ROW()/1000000 -> 150.000054 | F54: 20 | G54: =データ貼付!A52 -> 選手権 | H54: =データ貼付!B52 -> 北見 | I54: =データ貼付!C52 -> 43597 | J54: =データ貼付!F52 -> 山田翔也 | K54: =データ貼付!G52 -> 150 | L54: =データ貼付!H52 -> 決 | M54: =データ貼付!I52 -> 紋別高 | N54: =データ貼付!J52 -> 2 | O54: =データ貼付!K52 -> 0
A55: 52 | B55: 中学男子棒高跳11 | C55: =J55&COUNTIF($J$4:J55,J55) -> 山本銀士郎1 | D55: =データ貼付!D53&データ貼付!E53 -> 中学男子棒高跳 | E55: =データ貼付!G53+ROW()/1000000 -> 230.000055 | F55: 11 | G55: =データ貼付!A53 -> 地区中体連 | H55: =データ貼付!B53 -> 北見 | I55: =データ貼付!C53 -> 43630 | J55: =データ貼付!F53 -> 山本銀士郎 | K55: =データ貼付!G53 -> 230 | L55: =データ貼付!H53 -> 決 | M55: =データ貼付!I53 -> 網走第一中 | N55: =データ貼付!J53 -> 2 | O55: =データ貼付!K53 -> 0
A56: 53 | B56: 小学男子走高跳19 | C56: =J56&COUNTIF($J$4:J56,J56) -> 山本耕四朗1 | D56: =データ貼付!D54&データ貼付!E54 -> 小学男子走高跳 | E56: =データ貼付!G54+ROW()/1000000 -> 105.000056 | F56: 19 | G56: =データ貼付!A54 -> 小学生ｵﾎｰﾂｸ | H56: =データ貼付!B54 -> 北見 | I56: =データ貼付!C54 -> 43632 | J56: =データ貼付!F54 -> 山本耕四朗 | K56: =データ貼付!G54 -> 105 | L56: =データ貼付!H54 -> 決 | M56: =データ貼付!I54 -> ｵﾎｰﾂｸACｼﾞｭﾆｱ | N56: =データ貼付!J54 -> 5 | O56: =データ貼付!K54 -> 0
A57: 54 | B57: 小学男子走高跳13 | C57: =J57&COUNTIF($J$4:J57,J57) -> 山本耕四郎1 | D57: =データ貼付!D55&データ貼付!E55 -> 小学男子走高跳 | E57: =データ貼付!G55+ROW()/1000000 -> 110.000057 | F57: 13 | G57: =データ貼付!A55 -> 小学生記録会 | H57: =データ貼付!B55 -> 北見 | I57: =データ貼付!C55 -> 43736 | J57: =データ貼付!F55 -> 山本耕四郎 | K57: =データ貼付!G55 -> 110 | L57: =データ貼付!H55 -> 決 | M57: =データ貼付!I55 -> ｵﾎｰﾂｸACｼﾞｭﾆｱ | N57: =データ貼付!J55 -> 5 | O57: =データ貼付!K55 -> 0
A58: 55 | B58: 小学男子走高跳3 | C58: =J58&COUNTIF($J$4:J58,J58) -> 山本大三郎1 | D58: =データ貼付!D56&データ貼付!E56 -> 小学男子走高跳 | E58: =データ貼付!G56+ROW()/1000000 -> 125.000058 | F58: 3 | G58: =データ貼付!A56 -> 小学生記録会 | H58: =データ貼付!B56 -> 北見 | I58: =データ貼付!C56 -> 43736 | J58: =データ貼付!F56 -> 山本大三郎 | K58: =データ貼付!G56 -> 125 | L58: =データ貼付!H56 -> 決 | M58: =データ貼付!I56 -> ｵﾎｰﾂｸACｼﾞｭﾆｱ | N58: =データ貼付!J56 -> 6 | O58: =データ貼付!K56 -> 0
A59: 56 | B59: 中学男子棒高跳7 | C59: =J59&COUNTIF($J$4:J59,J59) -> 市村宥樹1 | D59: =データ貼付!D57&データ貼付!E57 -> 中学男子棒高跳 | E59: =データ貼付!G57+ROW()/1000000 -> 280.000059 | F59: 7 | G59: =データ貼付!A57 -> フィールド記録会 | H59: =データ貼付!B57 -> 網走 | I59: =データ貼付!C57 -> 43624 | J59: =データ貼付!F57 -> 市村宥樹 | K59: =データ貼付!G57 -> 280 | L59: =データ貼付!H57 -> 決 | M59: =データ貼付!I57 -> 斜里中 | N59: =データ貼付!J57 -> 3 | O59: =データ貼付!K57 -> 0
A60: 57 | B60: 中学女子走高跳24 | C60: =J60&COUNTIF($J$4:J60,J60) -> 枝﨑千夏1 | D60: =データ貼付!D58&データ貼付!E58 -> 中学女子走高跳 | E60: =データ貼付!G58+ROW()/1000000 -> 120.00006 | F60: 24 | G60: =データ貼付!A58 -> 通信陸上 | H60: =データ貼付!B58 -> 網走 | I60: =データ貼付!C58 -> 43645 | J60: =データ貼付!F58 -> 枝﨑千夏 | K60: =データ貼付!G58 -> 120 | L60: =データ貼付!H58 -> 決 | M60: =データ貼付!I58 -> 美幌北中 | N60: =データ貼付!J58 -> 1 | O60: =データ貼付!K58 -> 0
A61: 58 | B61: 中学女子走高跳31 | C61: =J61&COUNTIF($J$4:J61,J61) -> 篠原もも香1 | D61: =データ貼付!D59&データ貼付!E59 -> 中学女子走高跳 | E61: =データ貼付!G59+ROW()/1000000 -> 110.000061 | F61: 31 | G61: =データ貼付!A59 -> 通信陸上 | H61: =データ貼付!B59 -> 網走 | I61: =データ貼付!C59 -> 43645 | J61: =データ貼付!F59 -> 篠原もも香 | K61: =データ貼付!G59 -> 110 | L61: =データ貼付!H59 -> 決 | M61: =データ貼付!I59 -> 北見南中 | N61: =データ貼付!J59 -> 1 | O61: =データ貼付!K59 -> 0
A62: 59 | B62: 中学女子走高跳12 | C62: =J62&COUNTIF($J$4:J62,J62) -> 篠原菜蓮1 | D62: =データ貼付!D60&データ貼付!E60 -> 中学女子走高跳 | E62: =データ貼付!G60+ROW()/1000000 -> 130.000062 | F62: 12 | G62: =データ貼付!A60 -> 中学新人 | H62: =データ貼付!B60 -> 北見 | I62: =データ貼付!C60 -> 43701 | J62: =データ貼付!F60 -> 篠原菜蓮 | K62: =データ貼付!G60 -> 130 | L62: =データ貼付!H60 -> 決 | M62: =データ貼付!I60 -> 網走第三中 | N62: =データ貼付!J60 -> 2 | O62: =データ貼付!K60 -> 0
A63: 60 | B63: 高校女子棒高跳2 | C63: =J63&COUNTIF($J$4:J63,J63) -> 若松亜美1 | D63: =データ貼付!D61&データ貼付!E61 -> 高校女子棒高跳 | E63: =データ貼付!G61+ROW()/1000000 -> 340.000063 | F63: 2 | G63: =データ貼付!A61 -> 高体連支部 | H63: =データ貼付!B61 -> 北見 | I63: =データ貼付!C61 -> 43608 | J63: =データ貼付!F61 -> 若松亜美 | K63: =データ貼付!G61 -> 340 | L63: =データ貼付!H61 -> 決 | M63: =データ貼付!I61 -> 北見緑陵高 | N63: =データ貼付!J61 -> 3 | O63: =データ貼付!K61 -> 0
A64: 61 | B64: 小学女子走高跳8 | C64: =J64&COUNTIF($J$4:J64,J64) -> 酒井彩吹1 | D64: =データ貼付!D62&データ貼付!E62 -> 小学女子走高跳 | E64: =データ貼付!G62+ROW()/1000000 -> 105.000064 | F64: 8 | G64: =データ貼付!A62 -> 小学生記録会 | H64: =データ貼付!B62 -> 北見 | I64: =データ貼付!C62 -> 43736 | J64: =データ貼付!F62 -> 酒井彩吹 | K64: =データ貼付!G62 -> 105 | L64: =データ貼付!H62 -> 決 | M64: =データ貼付!I62 -> 網走陸上少年団 | N64: =データ貼付!J62 -> 4 | O64: =データ貼付!K62 -> 0
A65: 62 | B65: 小学女子走高跳7 | C65: =J65&COUNTIF($J$4:J65,J65) -> 酒井寧々1 | D65: =データ貼付!D63&データ貼付!E63 -> 小学女子走高跳 | E65: =データ貼付!G63+ROW()/1000000 -> 105.000065 | F65: 7 | G65: =データ貼付!A63 -> 小学生ｵﾎｰﾂｸ | H65: =データ貼付!B63 -> 北見 | I65: =データ貼付!C63 -> 43632 | J65: =データ貼付!F63 -> 酒井寧々 | K65: =データ貼付!G63 -> 105 | L65: =データ貼付!H63 -> 決 | M65: =データ貼付!I63 -> ｵﾎｰﾂｸｷｯｽﾞ | N65: =データ貼付!J63 -> 5 | O65: =データ貼付!K63 -> 0
A66: 63 | B66: 中学男子走高跳16 | C66: =J66&COUNTIF($J$4:J66,J66) -> 酒井柊優1 | D66: =データ貼付!D64&データ貼付!E64 -> 中学男子走高跳 | E66: =データ貼付!G64+ROW()/1000000 -> 125.000066 | F66: 16 | G66: =データ貼付!A64 -> 選手権 | H66: =データ貼付!B64 -> 北見 | I66: =データ貼付!C64 -> 43597 | J66: =データ貼付!F64 -> 酒井柊優 | K66: =データ貼付!G64 -> 125 | L66: =データ貼付!H64 -> 決 | M66: =データ貼付!I64 -> 北見東陵中 | N66: =データ貼付!J64 -> 1 | O66: =データ貼付!K64 -> 0
A67: 64 | B67: 中学男子走高跳9 | C67: =J67&COUNTIF($J$4:J67,J67) -> 秋山義宗1 | D67: =データ貼付!D65&データ貼付!E65 -> 中学男子走高跳 | E67: =データ貼付!G65+ROW()/1000000 -> 140.000067 | F67: 9 | G67: =データ貼付!A65 -> 通信陸上 | H67: =データ貼付!B65 -> 網走 | I67: =データ貼付!C65 -> 43645 | J67: =データ貼付!F65 -> 秋山義宗 | K67: =データ貼付!G65 -> 140 | L67: =データ貼付!H65 -> 決 | M67: =データ貼付!I65 -> 北見常呂中 | N67: =データ貼付!J65 -> 2 | O67: =データ貼付!K65 -> 0
A68: 65 | B68: 高校男子棒高跳4 | C68: =J68&COUNTIF($J$4:J68,J68) -> 小河大介1 | D68: =データ貼付!D66&データ貼付!E66 -> 高校男子棒高跳 | E68: =データ貼付!G66+ROW()/1000000 -> 410.000068 | F68: 4 | G68: =データ貼付!A66 -> 記録会第２戦 | H68: =データ貼付!B66 -> 網走 | I68: =データ貼付!C66 -> 43589 | J68: =データ貼付!F66 -> 小河大介 | K68: =データ貼付!G66 -> 410 | L68: =データ貼付!H66 -> 決 | M68: =データ貼付!I66 -> 網走桂陽高 | N68: =データ貼付!J66 -> 1 | O68: =データ貼付!K66 -> 0
A69: 66 | B69: =D69&F69 -> 中学男子走高跳13 | C69: =J69&COUNTIF($J$4:J69,J69) -> 小原拓真1 | D69: =データ貼付!D67&データ貼付!E67 -> 中学男子走高跳 | E69: =データ貼付!G67+ROW()/1000000 -> 135.000069 | F69: =SUMPRODUCT(($D$4:$D$200=D69)*($E$4:$E$200>E69))+1 -> 13 | G69: =データ貼付!A67 -> 通信陸上 | H69: =データ貼付!B67 -> 網走 | I69: =データ貼付!C67 -> 43645 | J69: =データ貼付!F67 -> 小原拓真 | K69: =データ貼付!G67 -> 135 | L69: =データ貼付!H67 -> 決 | M69: =データ貼付!I67 -> 北見常呂中 | N69: =データ貼付!J67 -> 2 | O69: =データ貼付!K67 -> 0
A70: 67 | B70: 中学男子走高跳15 | C70: =J70&COUNTIF($J$4:J70,J70) -> 小助川智博1 | D70: =データ貼付!D68&データ貼付!E68 -> 中学男子走高跳 | E70: =データ貼付!G68+ROW()/1000000 -> 130.00007 | F70: 15 | G70: =データ貼付!A68 -> 選手権 | H70: =データ貼付!B68 -> 北見 | I70: =データ貼付!C68 -> 43597 | J70: =データ貼付!F68 -> 小助川智博 | K70: =データ貼付!G68 -> 130 | L70: =データ貼付!H68 -> 決 | M70: =データ貼付!I68 -> 紋別中 | N70: =データ貼付!J68 -> 2 | O70: =データ貼付!K68 -> 0
A71: 68 | B71: 共通女子走高跳5 | C71: =J71&COUNTIF($J$4:J71,J71) -> 小川遼佳1 | D71: =データ貼付!D69&データ貼付!E69 -> 共通女子走高跳 | E71: =データ貼付!G69+ROW()/1000000 -> 125.000071 | F71: 5 | G71: =データ貼付!A69 -> 記録会第１戦 | H71: =データ貼付!B69 -> 北見 | I71: =データ貼付!C69 -> 43583 | J71: =データ貼付!F69 -> 小川遼佳 | K71: =データ貼付!G69 -> 125 | L71: =データ貼付!H69 -> 決 | M71: =データ貼付!I69 -> 大空東藻琴中 | N71: =データ貼付!J69 -> 3 | O71: =データ貼付!K69 -> 0
A72: 69 | B72: 高校女子棒高跳1 | C72: =J72&COUNTIF($J$4:J72,J72) -> 小野寺萌華1 | D72: =データ貼付!D70&データ貼付!E70 -> 高校女子棒高跳 | E72: =データ貼付!G70+ROW()/1000000 -> 340.000072 | F72: 1 | G72: =データ貼付!A70 -> 全道高校 | H72: =データ貼付!B70 -> 帯広 | I72: =データ貼付!C70 -> 6/18 | J72: =データ貼付!F70 -> 小野寺萌華 | K72: =データ貼付!G70 -> 340 | L72: =データ貼付!H70 -> 決 | M72: =データ貼付!I70 -> 網走南ヶ丘高 | N72: =データ貼付!J70 -> 1 | O72: =データ貼付!K70 -> 0
A73: 70 | B73: 中学女子走高跳9 | C73: =J73&COUNTIF($J$4:J73,J73) -> 小野蒼空1 | D73: =データ貼付!D71&データ貼付!E71 -> 中学女子走高跳 | E73: =データ貼付!G71+ROW()/1000000 -> 135.000073 | F73: 9 | G73: =データ貼付!A71 -> 選手権 | H73: =データ貼付!B71 -> 北見 | I73: =データ貼付!C71 -> 43597 | J73: =データ貼付!F71 -> 小野蒼空 | K73: =データ貼付!G71 -> 135 | L73: =データ貼付!H71 -> 決 | M73: =データ貼付!I71 -> 美幌北中 | N73: =データ貼付!J71 -> 1 | O73: =データ貼付!K71 -> 0
A74: 71 | B74: 高校男子走高跳9 | C74: =J74&COUNTIF($J$4:J74,J74) -> 小野拓也1 | D74: =データ貼付!D72&データ貼付!E72 -> 高校男子走高跳 | E74: =データ貼付!G72+ROW()/1000000 -> 168.000074 | F74: 9 | G74: =データ貼付!A72 -> 選手権 | H74: =データ貼付!B72 -> 北見 | I74: =データ貼付!C72 -> 43597 | J74: =データ貼付!F72 -> 小野拓也 | K74: =データ貼付!G72 -> 168 | L74: =データ貼付!H72 -> 決 | M74: =データ貼付!I72 -> 網走桂陽高 | N74: =データ貼付!J72 -> 3 | O74: =データ貼付!K72 -> 0
A75: 72 | B75: 高校男子走高跳5 | C75: =J75&COUNTIF($J$4:J75,J75) -> 庄司千祐1 | D75: =データ貼付!D73&データ貼付!E73 -> 高校男子走高跳 | E75: =データ貼付!G73+ROW()/1000000 -> 171.000075 | F75: 5 | G75: =データ貼付!A73 -> 高体連支部 | H75: =データ貼付!B73 -> 北見 | I75: =データ貼付!C73 -> 43609 | J75: =データ貼付!F73 -> 庄司千祐 | K75: =データ貼付!G73 -> 171 | L75: =データ貼付!H73 -> 決 | M75: =データ貼付!I73 -> 北見柏陽高 | N75: =データ貼付!J73 -> 2 | O75: =データ貼付!K73 -> 0
A76: 73 | B76: 高校女子棒高跳4 | C76: =J76&COUNTIF($J$4:J76,J76) -> 松原麗1 | D76: =データ貼付!D74&データ貼付!E74 -> 高校女子棒高跳 | E76: =データ貼付!G74+ROW()/1000000 -> 180.000076 | F76: 4 | G76: =データ貼付!A74 -> 高体連支部 | H76: =データ貼付!B74 -> 北見 | I76: =データ貼付!C74 -> 43608 | J76: =データ貼付!F74 -> 松原麗 | K76: =データ貼付!G74 -> 180 | L76: =データ貼付!H74 -> 決 | M76: =データ貼付!I74 -> 遠軽高 | N76: =データ貼付!J74 -> 2 | O76: =データ貼付!K74 -> 0
A77: 74 | B77: 中学男子棒高跳14 | C77: =J77&COUNTIF($J$4:J77,J77) -> 松本亮介1 | D77: =データ貼付!D75&データ貼付!E75 -> 中学男子棒高跳 | E77: =データ貼付!G75+ROW()/1000000 -> 200.000077 | F77: 14 | G77: =データ貼付!A75 -> 記録会第１戦 | H77: =データ貼付!B75 -> 北見 | I77: =データ貼付!C75 -> 43583 | J77: =データ貼付!F75 -> 松本亮介 | K77: =データ貼付!G75 -> 200 | L77: =データ貼付!H75 -> 決 | M77: =データ貼付!I75 -> 北見小泉中 | N77: =データ貼付!J75 -> 2 | O77: =データ貼付!K75 -> 0
A78: 75 | B78: 高校男子走高跳8 | C78: =J78&COUNTIF($J$4:J78,J78) -> 沼田陵佑1 | D78: =データ貼付!D76&データ貼付!E76 -> 高校男子走高跳 | E78: =データ貼付!G76+ROW()/1000000 -> 168.000078 | F78: 8 | G78: =データ貼付!A76 -> 高体連支部 | H78: =データ貼付!B76 -> 北見 | I78: =データ貼付!C76 -> 43609 | J78: =データ貼付!F76 -> 沼田陵佑 | K78: =データ貼付!G76 -> 168 | L78: =データ貼付!H76 -> 決 | M78: =データ貼付!I76 -> 北見柏陽高 | N78: =データ貼付!J76 -> 3 | O78: =データ貼付!K76 -> 0
A79: 76 | B79: 中学女子走高跳23 | C79: =J79&COUNTIF($J$4:J79,J79) -> 森ひなた1 | D79: =データ貼付!D77&データ貼付!E77 -> 中学女子走高跳 | E79: =データ貼付!G77+ROW()/1000000 -> 120.000079 | F79: 23 | G79: =データ貼付!A77 -> 通信陸上 | H79: =データ貼付!B77 -> 網走 | I79: =データ貼付!C77 -> 43645 | J79: =データ貼付!F77 -> 森ひなた | K79: =データ貼付!G77 -> 120 | L79: =データ貼付!H77 -> 決 | M79: =データ貼付!I77 -> 北見小泉中 | N79: =データ貼付!J77 -> 3 | O79: =データ貼付!K77 -> 0
A80: 77 | B80: 中学女子走高跳1 | C80: =J80&COUNTIF($J$4:J80,J80) -> 森彩夏1 | D80: =データ貼付!D78&データ貼付!E78 -> 中学女子走高跳 | E80: =データ貼付!G78+ROW()/1000000 -> 151.00008 | F80: 1 | G80: =データ貼付!A78 -> 道ジュニア | H80: =データ貼付!B78 -> 釧路 | I80: =データ貼付!C78 -> 43709 | J80: =データ貼付!F78 -> 森彩夏 | K80: =データ貼付!G78 -> 151 | L80: =データ貼付!H78 -> 決 | M80: =データ貼付!I78 -> 北見常呂中 | N80: =データ貼付!J78 -> 3 | O80: =データ貼付!K78 -> 0
A81: 78 | B81: 小学男子走高跳7 | C81: =J81&COUNTIF($J$4:J81,J81) -> 杉山智亮1 | D81: =データ貼付!D79&データ貼付!E79 -> 小学男子走高跳 | E81: =データ貼付!G79+ROW()/1000000 -> 115.000081 | F81: 7 | G81: =データ貼付!A79 -> 小学生ｵﾎｰﾂｸ | H81: =データ貼付!B79 -> 北見 | I81: =データ貼付!C79 -> 43632 | J81: =データ貼付!F79 -> 杉山智亮 | K81: =データ貼付!G79 -> 115 | L81: =データ貼付!H79 -> 決 | M81: =データ貼付!I79 -> ｵﾎｰﾂｸｷｯｽﾞ | N81: =データ貼付!J79 -> 6 | O81: =データ貼付!K79 -> 0
A82: 79 | B82: 中学女子走高跳8 | C82: =J82&COUNTIF($J$4:J82,J82) -> 杉本玲奈1 | D82: =データ貼付!D80&データ貼付!E80 -> 中学女子走高跳 | E82: =データ貼付!G80+ROW()/1000000 -> 135.000082 | F82: 8 | G82: =データ貼付!A80 -> 記録会第２戦 | H82: =データ貼付!B80 -> 網走 | I82: =データ貼付!C80 -> 43589 | J82: =データ貼付!F80 -> 杉本玲奈 | K82: =データ貼付!G80 -> 135 | L82: =データ貼付!H80 -> 決 | M82: =データ貼付!I80 -> 網走第四中 | N82: =データ貼付!J80 -> 2 | O82: =データ貼付!K80 -> 0
A83: 80 | B83: 高校女子走高跳1 | C83: =J83&COUNTIF($J$4:J83,J83) -> 菅原玲奈1 | D83: =データ貼付!D81&データ貼付!E81 -> 高校女子走高跳 | E83: =データ貼付!G81+ROW()/1000000 -> 164.000083 | F83: 1 | G83: =データ貼付!A81 -> 全道高校新人 | H83: =データ貼付!B81 -> 函館 | I83: =データ貼付!C81 -> 9/20 | J83: =データ貼付!F81 -> 菅原玲奈 | K83: =データ貼付!G81 -> 164 | L83: =データ貼付!H81 -> 決 | M83: =データ貼付!I81 -> 興部高 | N83: =データ貼付!J81 -> 2 | O83: =データ貼付!K81 -> 0
A84: 81 | B84: 中学男子走高跳12 | C84: =J84&COUNTIF($J$4:J84,J84) -> 正壽祐希1 | D84: =データ貼付!D82&データ貼付!E82 -> 中学男子走高跳 | E84: =データ貼付!G82+ROW()/1000000 -> 135.000084 | F84: 12 | G84: =データ貼付!A82 -> 記録会４戦 | H84: =データ貼付!B82 -> 北見 | I84: =データ貼付!C82 -> 43681 | J84: =データ貼付!F82 -> 正壽祐希 | K84: =データ貼付!G82 -> 135 | L84: =データ貼付!H82 -> 決 | M84: =データ貼付!I82 -> 北見北光中 | N84: =データ貼付!J82 -> 3 | O84: =データ貼付!K82 -> 0
A85: 82 | B85: 中学女子走高跳22 | C85: =J85&COUNTIF($J$4:J85,J85) -> 清川幸愛1 | D85: =データ貼付!D83&データ貼付!E83 -> 中学女子走高跳 | E85: =データ貼付!G83+ROW()/1000000 -> 120.000085 | F85: 22 | G85: =データ貼付!A83 -> 記録会３戦 | H85: =データ貼付!B83 -> 網走 | I85: =データ貼付!C83 -> 43660 | J85: =データ貼付!F83 -> 清川幸愛 | K85: =データ貼付!G83 -> 120 | L85: =データ貼付!H83 -> 決 | M85: =データ貼付!I83 -> 置戸中 | N85: =データ貼付!J83 -> 1 | O85: =データ貼付!K83 -> 0
A86: 83 | B86: 小学男子走高跳2 | C86: =J86&COUNTIF($J$4:J86,J86) -> 西川佑吾1 | D86: =データ貼付!D84&データ貼付!E84 -> 小学男子走高跳 | E86: =データ貼付!G84+ROW()/1000000 -> 125.000086 | F86: 2 | G86: =データ貼付!A84 -> フィールド記録会 | H86: =データ貼付!B84 -> 網走 | I86: =データ貼付!C84 -> 43624 | J86: =データ貼付!F84 -> 西川佑吾 | K86: =データ貼付!G84 -> 125 | L86: =データ貼付!H84 -> 決 | M86: =データ貼付!I84 -> 知床斜里RC | N86: =データ貼付!J84 -> 6 | O86: =データ貼付!K84 -> 0
A87: 84 | B87: 小学男子走高跳18 | C87: =J87&COUNTIF($J$4:J87,J87) -> 西川悠輝1 | D87: =データ貼付!D85&データ貼付!E85 -> 小学男子走高跳 | E87: =データ貼付!G85+ROW()/1000000 -> 105.000087 | F87: 18 | G87: =データ貼付!A85 -> 小学生記録会 | H87: =データ貼付!B85 -> 北見 | I87: =データ貼付!C85 -> 43736 | J87: =データ貼付!F85 -> 西川悠輝 | K87: =データ貼付!G85 -> 105 | L87: =データ貼付!H85 -> 決 | M87: =データ貼付!I85 -> 知床斜里RC | N87: =データ貼付!J85 -> 4 | O87: =データ貼付!K85 -> 0
A88: 85 | B88: 中学男子走高跳7 | C88: =J88&COUNTIF($J$4:J88,J88) -> 西村海斗1 | D88: =データ貼付!D86&データ貼付!E86 -> 中学男子走高跳 | E88: =データ貼付!G86+ROW()/1000000 -> 150.000088 | F88: 7 | G88: =データ貼付!A86 -> 秋季陸上 | H88: =データ貼付!B86 -> 網走 | I88: =データ貼付!C86 -> 43715 | J88: =データ貼付!F86 -> 西村海斗 | K88: =データ貼付!G86 -> 150 | L88: =データ貼付!H86 -> 決 | M88: =データ貼付!I86 -> 北見北光中 | N88: =データ貼付!J86 -> 2 | O88: =データ貼付!K86 -> 0
A89: 86 | B89: 中学女子走高跳30 | C89: =J89&COUNTIF($J$4:J89,J89) -> 西多里奈1 | D89: =データ貼付!D87&データ貼付!E87 -> 中学女子走高跳 | E89: =データ貼付!G87+ROW()/1000000 -> 110.000089 | F89: 30 | G89: =データ貼付!A87 -> 中学新人 | H89: =データ貼付!B87 -> 北見 | I89: =データ貼付!C87 -> 43701 | J89: =データ貼付!F87 -> 西多里奈 | K89: =データ貼付!G87 -> 110 | L89: =データ貼付!H87 -> 決 | M89: =データ貼付!I87 -> 網走第三中 | N89: =データ貼付!J87 -> 2 | O89: =データ貼付!K87 -> 0
A90: 87 | B90: 小学男子走高跳17 | C90: =J90&COUNTIF($J$4:J90,J90) -> 西迫知希1 | D90: =データ貼付!D88&データ貼付!E88 -> 小学男子走高跳 | E90: =データ貼付!G88+ROW()/1000000 -> 105.00009 | F90: 17 | G90: =データ貼付!A88 -> 小学生ｵﾎｰﾂｸ | H90: =データ貼付!B88 -> 北見 | I90: =データ貼付!C88 -> 43632 | J90: =データ貼付!F88 -> 西迫知希 | K90: =データ貼付!G88 -> 105 | L90: =データ貼付!H88 -> 決 | M90: =データ貼付!I88 -> ｵﾎｰﾂｸｷｯｽﾞ | N90: =データ貼付!J88 -> 5 | O90: =データ貼付!K88 -> 0
A91: 88 | B91: 高校男子走高跳23 | C91: =J91&COUNTIF($J$4:J91,J91) -> 斉藤一歩1 | D91: =データ貼付!D89&データ貼付!E89 -> 高校男子走高跳 | E91: =データ貼付!G89+ROW()/1000000 -> 140.000091 | F91: 23 | G91: =データ貼付!A89 -> 高校新人 | H91: =データ貼付!B89 -> 北見 | I91: =データ貼付!C89 -> 43701 | J91: =データ貼付!F89 -> 斉藤一歩 | K91: =データ貼付!G89 -> 140 | L91: =データ貼付!H89 -> 決 | M91: =データ貼付!I89 -> 北見緑陵高 | N91: =データ貼付!J89 -> 1 | O91: =データ貼付!K89 -> 0
A92: 89 | B92: 高校男子棒高跳2 | C92: =J92&COUNTIF($J$4:J92,J92) -> 石井建太朗1 | D92: =データ貼付!D90&データ貼付!E90 -> 高校男子棒高跳 | E92: =データ貼付!G90+ROW()/1000000 -> 420.000092 | F92: 2 | G92: =データ貼付!A90 -> 高校新人 | H92: =データ貼付!B90 -> 北見 | I92: =データ貼付!C90 -> 43701 | J92: =データ貼付!F90 -> 石井建太朗 | K92: =データ貼付!G90 -> 420 | L92: =データ貼付!H90 -> 決 | M92: =データ貼付!I90 -> 網走南ヶ丘高 | N92: =データ貼付!J90 -> 2 | O92: =データ貼付!K90 -> 0
A93: 90 | B93: 中学男子棒高跳15 | C93: =J93&COUNTIF($J$4:J93,J93) -> 石原遥翔1 | D93: =データ貼付!D91&データ貼付!E91 -> 中学男子棒高跳 | E93: =データ貼付!G91+ROW()/1000000 -> 190.000093 | F93: 15 | G93: =データ貼付!A91 -> 秋季陸上 | H93: =データ貼付!B91 -> 網走 | I93: =データ貼付!C91 -> 43715 | J93: =データ貼付!F91 -> 石原遥翔 | K93: =データ貼付!G91 -> 190 | L93: =データ貼付!H91 -> 決 | M93: =データ貼付!I91 -> 網走第四中 | N93: =データ貼付!J91 -> 1 | O93: =データ貼付!K91 -> 0
A94: 91 | B94: 共通女子走高跳2 | C94: =J94&COUNTIF($J$4:J94,J94) -> 石山真衣1 | D94: =データ貼付!D92&データ貼付!E92 -> 共通女子走高跳 | E94: =データ貼付!G92+ROW()/1000000 -> 135.000094 | F94: 2 | G94: =データ貼付!A92 -> 記録会第１戦 | H94: =データ貼付!B92 -> 北見 | I94: =データ貼付!C92 -> 43583 | J94: =データ貼付!F92 -> 石山真衣 | K94: =データ貼付!G92 -> 135 | L94: =データ貼付!H92 -> 決 | M94: =データ貼付!I92 -> 湧別高 | N94: =データ貼付!J92 -> 3 | O94: =データ貼付!K92 -> 0
A95: 92 | B95: 中学男子棒高跳3 | C95: =J95&COUNTIF($J$4:J95,J95) -> 石田和也1 | D95: =データ貼付!D93&データ貼付!E93 -> 中学男子棒高跳 | E95: =データ貼付!G93+ROW()/1000000 -> 371.000095 | F95: 3 | G95: =データ貼付!A93 -> 秋季陸上 | H95: =データ貼付!B93 -> 網走 | I95: =データ貼付!C93 -> 43715 | J95: =データ貼付!F93 -> 石田和也 | K95: =データ貼付!G93 -> 371 | L95: =データ貼付!H93 -> 決 | M95: =データ貼付!I93 -> 網走第一中 | N95: =データ貼付!J93 -> 3 | O95: =データ貼付!K93 -> 0
A96: 93 | B96: 中学男子棒高跳8 | C96: =J96&COUNTIF($J$4:J96,J96) -> 川上大晴1 | D96: =データ貼付!D94&データ貼付!E94 -> 中学男子棒高跳 | E96: =データ貼付!G94+ROW()/1000000 -> 260.000096 | F96: 8 | G96: =データ貼付!A94 -> 全道中学新人 | H96: =データ貼付!B94 -> 千歳 | I96: =データ貼付!C94 -> 43729 | J96: =データ貼付!F94 -> 川上大晴 | K96: =データ貼付!G94 -> 260 | L96: =データ貼付!H94 -> 決 | M96: =データ貼付!I94 -> 北見小泉 | N96: =データ貼付!J94 -> 2 | O96: =データ貼付!K94 -> 0
A97: 94 | B97: 小学男子走高跳16 | C97: =J97&COUNTIF($J$4:J97,J97) -> 川瀬智仁1 | D97: =データ貼付!D95&データ貼付!E95 -> 小学男子走高跳 | E97: =データ貼付!G95+ROW()/1000000 -> 105.000097 | F97: 16 | G97: =データ貼付!A95 -> 小学生記録会 | H97: =データ貼付!B95 -> 北見 | I97: =データ貼付!C95 -> 43736 | J97: =データ貼付!F95 -> 川瀬智仁 | K97: =データ貼付!G95 -> 105 | L97: =データ貼付!H95 -> 決 | M97: =データ貼付!I95 -> ｵﾎｰﾂｸACｼﾞｭﾆｱ | N97: =データ貼付!J95 -> 5 | O97: =データ貼付!K95 -> 0
A98: 95 | B98: 中学男子棒高跳5 | C98: =J98&COUNTIF($J$4:J98,J98) -> 川島歩結夢1 | D98: =データ貼付!D96&データ貼付!E96 -> 中学男子棒高跳 | E98: =データ貼付!G96+ROW()/1000000 -> 340.000098 | F98: 5 | G98: =データ貼付!A96 -> 秋季陸上 | H98: =データ貼付!B96 -> 網走 | I98: =データ貼付!C96 -> 43715 | J98: =データ貼付!F96 -> 川島歩結夢 | K98: =データ貼付!G96 -> 340 | L98: =データ貼付!H96 -> 決 | M98: =データ貼付!I96 -> 斜里中 | N98: =データ貼付!J96 -> 2 | O98: =データ貼付!K96 -> 0
A99: 96 | B99: 小学女子走高跳13 | C99: =J99&COUNTIF($J$4:J99,J99) -> 曽根絢優愛1 | D99: =データ貼付!D97&データ貼付!E97 -> 小学女子走高跳 | E99: =データ貼付!G97+ROW()/1000000 -> 95.000099 | F99: 13 | G99: =データ貼付!A97 -> 小学生記録会 | H99: =データ貼付!B97 -> 北見 | I99: =データ貼付!C97 -> 43736 | J99: =データ貼付!F97 -> 曽根絢優愛 | K99: =データ貼付!G97 -> 95 | L99: =データ貼付!H97 -> 決 | M99: =データ貼付!I97 -> 美幌RC | N99: =データ貼付!J97 -> 5 | O99: =データ貼付!K97 -> 0
A100: 97 | B100: 共通女子走高跳3 | C100: =J100&COUNTIF($J$4:J100,J100) -> 曽根美紅1 | D100: =データ貼付!D98&データ貼付!E98 -> 共通女子走高跳 | E100: =データ貼付!G98+ROW()/1000000 -> 130.0001 | F100: 3 | G100: =データ貼付!A98 -> 選手権 | H100: =データ貼付!B98 -> 北見 | I100: =データ貼付!C98 -> 43596 | J100: =データ貼付!F98 -> 曽根美紅 | K100: =データ貼付!G98 -> 130 | L100: =データ貼付!H98 -> 決 | M100: =データ貼付!I98 -> 網走南ヶ丘高 | N100: =データ貼付!J98 -> 1 | O100: =データ貼付!K98 -> 0
A101: 98 | B101: 小学女子走高跳12 | C101: =J101&COUNTIF($J$4:J101,J101) -> 曽根優彩愛1 | D101: =データ貼付!D99&データ貼付!E99 -> 小学女子走高跳 | E101: =データ貼付!G99+ROW()/1000000 -> 95.000101 | F101: 12 | G101: =データ貼付!A99 -> 小学生記録会 | H101: =データ貼付!B99 -> 北見 | I101: =データ貼付!C99 -> 43736 | J101: =データ貼付!F99 -> 曽根優彩愛 | K101: =データ貼付!G99 -> 95 | L101: =データ貼付!H99 -> 決 | M101: =データ貼付!I99 -> 美幌RC | N101: =データ貼付!J99 -> 5 | O101: =データ貼付!K99 -> 0
A102: 99 | B102: 中学女子走高跳28 | C102: =J102&COUNTIF($J$4:J102,J102) -> 相馬夏好1 | D102: =データ貼付!D100&データ貼付!E100 -> 中学女子走高跳 | E102: =データ貼付!G100+ROW()/1000000 -> 115.000102 | F102: 28 | G102: =データ貼付!A100 -> 選手権 | H102: =データ貼付!B100 -> 北見 | I102: =データ貼付!C100 -> 43596 | J102: =データ貼付!F100 -> 相馬夏好 | K102: =データ貼付!G100 -> 115 | L102: =データ貼付!H100 -> 決 | M102: =データ貼付!I100 -> 北見光西中 | N102: =データ貼付!J100 -> 1 | O102: =データ貼付!K100 -> 0
A103: 100 | B103: 小学女子走高跳5 | C103: =J103&COUNTIF($J$4:J103,J103) -> 村上晴風1 | D103: =データ貼付!D101&データ貼付!E101 -> 小学女子走高跳 | E103: =データ貼付!G101+ROW()/1000000 -> 110.000103 | F103: 5 | G103: =データ貼付!A101 -> 小学生記録会 | H103: =データ貼付!B101 -> 北見 | I103: =データ貼付!C101 -> 43736 | J103: =データ貼付!F101 -> 村上晴風 | K103: =データ貼付!G101 -> 110 | L103: =データ貼付!H101 -> 決 | M103: =データ貼付!I101 -> 網走陸上少年団 | N103: =データ貼付!J101 -> 6 | O103: =データ貼付!K101 -> 0
A104: 101 | B104: 中学男子走高跳6 | C104: =J104&COUNTIF($J$4:J104,J104) -> 大橋侑弥1 | D104: =データ貼付!D102&データ貼付!E102 -> 中学男子走高跳 | E104: =データ貼付!G102+ROW()/1000000 -> 150.000104 | F104: 6 | G104: =データ貼付!A102 -> 中学新人 | H104: =データ貼付!B102 -> 北見 | I104: =データ貼付!C102 -> 43701 | J104: =データ貼付!F102 -> 大橋侑弥 | K104: =データ貼付!G102 -> 150 | L104: =データ貼付!H102 -> 決 | M104: =データ貼付!I102 -> 網走第一中 | N104: =データ貼付!J102 -> 2 | O104: =データ貼付!K102 -> 0
A105: 102 | B105: 小学男子走高跳12 | C105: =J105&COUNTIF($J$4:J105,J105) -> 滝口葉1 | D105: =データ貼付!D103&データ貼付!E103 -> 小学男子走高跳 | E105: =データ貼付!G103+ROW()/1000000 -> 110.000105 | F105: 12 | G105: =データ貼付!A103 -> フィールド記録会 | H105: =データ貼付!B103 -> 網走 | I105: =データ貼付!C103 -> 43624 | J105: =データ貼付!F103 -> 滝口葉 | K105: =データ貼付!G103 -> 110 | L105: =データ貼付!H103 -> 決 | M105: =データ貼付!I103 -> ｵﾎｰﾂｸｷｯｽﾞ | N105: =データ貼付!J103 -> 6 | O105: =データ貼付!K103 -> 0
A106: 103 | B106: 共通女子走高跳4 | C106: =J106&COUNTIF($J$4:J106,J106) -> 池田葵1 | D106: =データ貼付!D104&データ貼付!E104 -> 共通女子走高跳 | E106: =データ貼付!G104+ROW()/1000000 -> 125.000106 | F106: 4 | G106: =データ貼付!A104 -> 記録会第１戦 | H106: =データ貼付!B104 -> 北見 | I106: =データ貼付!C104 -> 43583 | J106: =データ貼付!F104 -> 池田葵 | K106: =データ貼付!G104 -> 125 | L106: =データ貼付!H104 -> 決 | M106: =データ貼付!I104 -> 北見小泉中 | N106: =データ貼付!J104 -> 2 | O106: =データ貼付!K104 -> 0
A107: 104 | B107: 高校女子走高跳2 | C107: =J107&COUNTIF($J$4:J107,J107) -> 池田美梨1 | D107: =データ貼付!D105&データ貼付!E105 -> 高校女子走高跳 | E107: =データ貼付!G105+ROW()/1000000 -> 148.000107 | F107: 2 | G107: =データ貼付!A105 -> 高体連支部 | H107: =データ貼付!B105 -> 北見 | I107: =データ貼付!C105 -> 43609 | J107: =データ貼付!F105 -> 池田美梨 | K107: =データ貼付!G105 -> 148 | L107: =データ貼付!H105 -> 決 | M107: =データ貼付!I105 -> 紋別高 | N107: =データ貼付!J105 -> 2 | O107: =データ貼付!K105 -> 0
A108: 105 | B108: 中学男子走高跳5 | C108: =J108&COUNTIF($J$4:J108,J108) -> 竹村璃玖1 | D108: =データ貼付!D106&データ貼付!E106 -> 中学男子走高跳 | E108: =データ貼付!G106+ROW()/1000000 -> 150.000108 | F108: 5 | G108: =データ貼付!A106 -> 中学新人 | H108: =データ貼付!B106 -> 北見 | I108: =データ貼付!C106 -> 43701 | J108: =データ貼付!F106 -> 竹村璃玖 | K108: =データ貼付!G106 -> 150 | L108: =データ貼付!H106 -> 決 | M108: =データ貼付!I106 -> 北見常呂中 | N108: =データ貼付!J106 -> 2 | O108: =データ貼付!K106 -> 0
A109: 106 | B109: 中学男子走高跳18 | C109: =J109&COUNTIF($J$4:J109,J109) -> 中井龍之介1 | D109: =データ貼付!D107&データ貼付!E107 -> 中学男子走高跳 | E109: =データ貼付!G107+ROW()/1000000 -> 115.000109 | F109: 18 | G109: =データ貼付!A107 -> 地区中体連 | H109: =データ貼付!B107 -> 北見 | I109: =データ貼付!C107 -> 43631 | J109: =データ貼付!F107 -> 中井龍之介 | K109: =データ貼付!G107 -> 115 | L109: =データ貼付!H107 -> 決 | M109: =データ貼付!I107 -> 北見高栄中 | N109: =データ貼付!J107 -> 1 | O109: =データ貼付!K107 -> 0
A110: 107 | B110: 一般男子走高跳1 | C110: =J110&COUNTIF($J$4:J110,J110) -> 中条聡1 | D110: =データ貼付!D108&データ貼付!E108 -> 一般男子走高跳 | E110: =データ貼付!G108+ROW()/1000000 -> 190.00011 | F110: 1 | G110: =データ貼付!A108 -> 記録会第１戦 | H110: =データ貼付!B108 -> 北見 | I110: =データ貼付!C108 -> 43583 | J110: =データ貼付!F108 -> 中条聡 | K110: =データ貼付!G108 -> 190 | L110: =データ貼付!H108 -> 決 | M110: =データ貼付!I108 -> 東農大ｵﾎｰﾂｸ | N110: =データ貼付!J108 -> 般 | O110: =データ貼付!K108 -> 0
A111: 108 | B111: 一般男子走高跳2 | C111: =J111&COUNTIF($J$4:J111,J111) -> 中川崇義1 | D111: =データ貼付!D109&データ貼付!E109 -> 一般男子走高跳 | E111: =データ貼付!G109+ROW()/1000000 -> 180.000111 | F111: 2 | G111: =データ貼付!A109 -> 道選手権 | H111: =データ貼付!B109 -> 網走 | I111: =データ貼付!C109 -> 08.11* | J111: =データ貼付!F109 -> 中川崇義 | K111: =データ貼付!G109 -> 180 | L111: =データ貼付!H109 -> 決 | M111: =データ貼付!I109 -> オホーツク陸協 | N111: =データ貼付!J109 -> 0 | O111: =データ貼付!K109 -> 0
A112: 109 | B112: 小学男子走高跳5 | C112: =J112&COUNTIF($J$4:J112,J112) -> 中田隼翔1 | D112: =データ貼付!D110&データ貼付!E110 -> 小学男子走高跳 | E112: =データ貼付!G110+ROW()/1000000 -> 120.000112 | F112: 5 | G112: =データ貼付!A110 -> 小学生ｵﾎｰﾂｸ | H112: =データ貼付!B110 -> 北見 | I112: =データ貼付!C110 -> 43632 | J112: =データ貼付!F110 -> 中田隼翔 | K112: =データ貼付!G110 -> 120 | L112: =データ貼付!H110 -> 決 | M112: =データ貼付!I110 -> ｵﾎｰﾂｸACｼﾞｭﾆｱ | N112: =データ貼付!J110 -> 6 | O112: =データ貼付!K110 -> 0
A113: 110 | B113: 中学男子棒高跳2 | C113: =J113&COUNTIF($J$4:J113,J113) -> 中田竜翔1 | D113: =データ貼付!D111&データ貼付!E111 -> 中学男子棒高跳 | E113: =データ貼付!G111+ROW()/1000000 -> 380.000113 | F113: 2 | G113: =データ貼付!A111 -> 全道中学 | H113: =データ貼付!B111 -> 旭川 | I113: =データ貼付!C111 -> 43672 | J113: =データ貼付!F111 -> 中田竜翔 | K113: =データ貼付!G111 -> 380 | L113: =データ貼付!H111 -> 予 | M113: =データ貼付!I111 -> 網走第一中 | N113: =データ貼付!J111 -> 3 | O113: =データ貼付!K111 -> 0
A114: 111 | B114: 中学女子走高跳27 | C114: =J114&COUNTIF($J$4:J114,J114) -> 中島瑠菜1 | D114: =データ貼付!D112&データ貼付!E112 -> 中学女子走高跳 | E114: =データ貼付!G112+ROW()/1000000 -> 115.000114 | F114: 27 | G114: =データ貼付!A112 -> 選手権 | H114: =データ貼付!B112 -> 北見 | I114: =データ貼付!C112 -> 43597 | J114: =データ貼付!F112 -> 中島瑠菜 | K114: =データ貼付!G112 -> 115 | L114: =データ貼付!H112 -> 決 | M114: =データ貼付!I112 -> 北見常呂中 | N114: =データ貼付!J112 -> 1 | O114: =データ貼付!K112 -> 0
A115: 112 | B115: 中学男子走高跳11 | C115: =J115&COUNTIF($J$4:J115,J115) -> 長島拓希1 | D115: =データ貼付!D113&データ貼付!E113 -> 中学男子走高跳 | E115: =データ貼付!G113+ROW()/1000000 -> 135.000115 | F115: 11 | G115: =データ貼付!A113 -> 選手権 | H115: =データ貼付!B113 -> 北見 | I115: =データ貼付!C113 -> 43597 | J115: =データ貼付!F113 -> 長島拓希 | K115: =データ貼付!G113 -> 135 | L115: =データ貼付!H113 -> 決 | M115: =データ貼付!I113 -> 美幌北中 | N115: =データ貼付!J113 -> 2 | O115: =データ貼付!K113 -> 0
A116: 113 | B116: 中学女子走高跳7 | C116: =J116&COUNTIF($J$4:J116,J116) -> 長尾優里愛1 | D116: =データ貼付!D114&データ貼付!E114 -> 中学女子走高跳 | E116: =データ貼付!G114+ROW()/1000000 -> 135.000116 | F116: 7 | G116: =データ貼付!A114 -> 中学新人 | H116: =データ貼付!B114 -> 北見 | I116: =データ貼付!C114 -> 43701 | J116: =データ貼付!F114 -> 長尾優里愛 | K116: =データ貼付!G114 -> 135 | L116: =データ貼付!H114 -> 決 | M116: =データ貼付!I114 -> 大空東藻琴中 | N116: =データ貼付!J114 -> 2 | O116: =データ貼付!K114 -> 0
A117: 114 | B117: 中学男子走高跳14 | C117: =J117&COUNTIF($J$4:J117,J117) -> 田村響1 | D117: =データ貼付!D115&データ貼付!E115 -> 中学男子走高跳 | E117: =データ貼付!G115+ROW()/1000000 -> 130.000117 | F117: 14 | G117: =データ貼付!A115 -> 秋季陸上 | H117: =データ貼付!B115 -> 網走 | I117: =データ貼付!C115 -> 43715 | J117: =データ貼付!F115 -> 田村響 | K117: =データ貼付!G115 -> 130 | L117: =データ貼付!H115 -> 決 | M117: =データ貼付!I115 -> 北見南中 | N117: =データ貼付!J115 -> 1 | O117: =データ貼付!K115 -> 0
A118: 115 | B118: 中学男子走高跳10 | C118: =J118&COUNTIF($J$4:J118,J118) -> 田中達也1 | D118: =データ貼付!D116&データ貼付!E116 -> 中学男子走高跳 | E118: =データ貼付!G116+ROW()/1000000 -> 135.000118 | F118: 10 | G118: =データ貼付!A116 -> 選手権 | H118: =データ貼付!B116 -> 北見 | I118: =データ貼付!C116 -> 43597 | J118: =データ貼付!F116 -> 田中達也 | K118: =データ貼付!G116 -> 135 | L118: =データ貼付!H116 -> 決 | M118: =データ貼付!I116 -> 網走第一中 | N118: =データ貼付!J116 -> 3 | O118: =データ貼付!K116 -> 0
A119: 116 | B119: 高校男子棒高跳6 | C119: =J119&COUNTIF($J$4:J119,J119) -> 渡辺颯1 | D119: =データ貼付!D117&データ貼付!E117 -> 高校男子棒高跳 | E119: =データ貼付!G117+ROW()/1000000 -> 390.000119 | F119: 6 | G119: =データ貼付!A117 -> 記録会第１戦 | H119: =データ貼付!B117 -> 北見 | I119: =データ貼付!C117 -> 43583 | J119: =データ貼付!F117 -> 渡辺颯 | K119: =データ貼付!G117 -> 390 | L119: =データ貼付!H117 -> 決 | M119: =データ貼付!I117 -> 北見藤高 | N119: =データ貼付!J117 -> 1 | O119: =データ貼付!K117 -> 0
A120: 117 | B120: 高校男子走高跳19 | C120: =J120&COUNTIF($J$4:J120,J120) -> 土山怜音1 | D120: =データ貼付!D118&データ貼付!E118 -> 高校男子走高跳 | E120: =データ貼付!G118+ROW()/1000000 -> 150.00012 | F120: 19 | G120: =データ貼付!A118 -> 高校新人 | H120: =データ貼付!B118 -> 北見 | I120: =データ貼付!C118 -> 43701 | J120: =データ貼付!F118 -> 土山怜音 | K120: =データ貼付!G118 -> 150 | L120: =データ貼付!H118 -> 決 | M120: =データ貼付!I118 -> 北見工業高 | N120: =データ貼付!J118 -> 1 | O120: =データ貼付!K118 -> 0
A121: 118 | B121: 中学女子走高跳21 | C121: =J121&COUNTIF($J$4:J121,J121) -> 嶋田結1 | D121: =データ貼付!D119&データ貼付!E119 -> 中学女子走高跳 | E121: =データ貼付!G119+ROW()/1000000 -> 120.000121 | F121: 21 | G121: =データ貼付!A119 -> 選手権 | H121: =データ貼付!B119 -> 北見 | I121: =データ貼付!C119 -> 43596 | J121: =データ貼付!F119 -> 嶋田結 | K121: =データ貼付!G119 -> 120 | L121: =データ貼付!H119 -> 決 | M121: =データ貼付!I119 -> 斜里知床ｳﾄﾛ学校 | N121: =データ貼付!J119 -> 3 | O121: =データ貼付!K119 -> 0
A122: 119 | B122: 中学女子走高跳29 | C122: =J122&COUNTIF($J$4:J122,J122) -> 日根優菜1 | D122: =データ貼付!D120&データ貼付!E120 -> 中学女子走高跳 | E122: =データ貼付!G120+ROW()/1000000 -> 110.000122 | F122: 29 | G122: =データ貼付!A120 -> 選手権 | H122: =データ貼付!B120 -> 北見 | I122: =データ貼付!C120 -> 43597 | J122: =データ貼付!F120 -> 日根優菜 | K122: =データ貼付!G120 -> 110 | L122: =データ貼付!H120 -> 決 | M122: =データ貼付!I120 -> 網走第四中 | N122: =データ貼付!J120 -> 2 | O122: =データ貼付!K120 -> 0
A123: 120 | B123: 中学女子走高跳4 | C123: =J123&COUNTIF($J$4:J123,J123) -> 白石光1 | D123: =データ貼付!D121&データ貼付!E121 -> 中学女子走高跳 | E123: =データ貼付!G121+ROW()/1000000 -> 142.000123 | F123: 4 | G123: =データ貼付!A121 -> 選手権 | H123: =データ貼付!B121 -> 北見 | I123: =データ貼付!C121 -> 43596 | J123: =データ貼付!F121 -> 白石光 | K123: =データ貼付!G121 -> 142 | L123: =データ貼付!H121 -> 決 | M123: =データ貼付!I121 -> 北見光西中 | N123: =データ貼付!J121 -> 3 | O123: =データ貼付!K121 -> 0
A124: 121 | B124: 中学男子棒高跳13 | C124: =J124&COUNTIF($J$4:J124,J124) -> 飯島空輝1 | D124: =データ貼付!D122&データ貼付!E122 -> 中学男子棒高跳 | E124: =データ貼付!G122+ROW()/1000000 -> 200.000124 | F124: 13 | G124: =データ貼付!A122 -> 中学新人 | H124: =データ貼付!B122 -> 北見 | I124: =データ貼付!C122 -> 43701 | J124: =データ貼付!F122 -> 飯島空輝 | K124: =データ貼付!G122 -> 200 | L124: =データ貼付!H122 -> 決 | M124: =データ貼付!I122 -> 北見北中 | N124: =データ貼付!J122 -> 1 | O124: =データ貼付!K122 -> 0
A125: 122 | B125: 小学女子走高跳2 | C125: =J125&COUNTIF($J$4:J125,J125) -> 布目友理1 | D125: =データ貼付!D123&データ貼付!E123 -> 小学女子走高跳 | E125: =データ貼付!G123+ROW()/1000000 -> 120.000125 | F125: 2 | G125: =データ貼付!A123 -> 小学生記録会 | H125: =データ貼付!B123 -> 北見 | I125: =データ貼付!C123 -> 43736 | J125: =データ貼付!F123 -> 布目友理 | K125: =データ貼付!G123 -> 120 | L125: =データ貼付!H123 -> 決 | M125: =データ貼付!I123 -> 留辺蘂JSC | N125: =データ貼付!J123 -> 5 | O125: =データ貼付!K123 -> 0
A126: 123 | B126: 中学女子走高跳20 | C126: =J126&COUNTIF($J$4:J126,J126) -> 服部茜1 | D126: =データ貼付!D124&データ貼付!E124 -> 中学女子走高跳 | E126: =データ貼付!G124+ROW()/1000000 -> 120.000126 | F126: 20 | G126: =データ貼付!A124 -> 選手権 | H126: =データ貼付!B124 -> 北見 | I126: =データ貼付!C124 -> 43597 | J126: =データ貼付!F124 -> 服部茜 | K126: =データ貼付!G124 -> 120 | L126: =データ貼付!H124 -> 決 | M126: =データ貼付!I124 -> 大空女満別中 | N126: =データ貼付!J124 -> 1 | O126: =データ貼付!K124 -> 0
A127: 124 | B127: 小学女子走高跳11 | C127: =J127&COUNTIF($J$4:J127,J127) -> 福井花歩1 | D127: =データ貼付!D125&データ貼付!E125 -> 小学女子走高跳 | E127: =データ貼付!G125+ROW()/1000000 -> 95.000127 | F127: 11 | G127: =データ貼付!A125 -> 小学生ｵﾎｰﾂｸ | H127: =データ貼付!B125 -> 北見 | I127: =データ貼付!C125 -> 43632 | J127: =データ貼付!F125 -> 福井花歩 | K127: =データ貼付!G125 -> 95 | L127: =データ貼付!H125 -> 決 | M127: =データ貼付!I125 -> ｵﾎｰﾂｸｷｯｽﾞ | N127: =データ貼付!J125 -> 5 | O127: =データ貼付!K125 -> 0
A128: 125 | B128: 中学男子棒高跳6 | C128: =J128&COUNTIF($J$4:J128,J128) -> 福田悠介1 | D128: =データ貼付!D126&データ貼付!E126 -> 中学男子棒高跳 | E128: =データ貼付!G126+ROW()/1000000 -> 320.000128 | F128: 6 | G128: =データ貼付!A126 -> 全道中学新人 | H128: =データ貼付!B126 -> 千歳 | I128: =データ貼付!C126 -> 43729 | J128: =データ貼付!F126 -> 福田悠介 | K128: =データ貼付!G126 -> 320 | L128: =データ貼付!H126 -> 決 | M128: =データ貼付!I126 -> 網走第一 | N128: =データ貼付!J126 -> 2 | O128: =データ貼付!K126 -> 0
A129: 126 | B129: 小学男子走高跳11 | C129: =J129&COUNTIF($J$4:J129,J129) -> 福田涼介1 | D129: =データ貼付!D127&データ貼付!E127 -> 小学男子走高跳 | E129: =データ貼付!G127+ROW()/1000000 -> 110.000129 | F129: 11 | G129: =データ貼付!A127 -> フィールド記録会 | H129: =データ貼付!B127 -> 網走 | I129: =データ貼付!C127 -> 43624 | J129: =データ貼付!F127 -> 福田涼介 | K129: =データ貼付!G127 -> 110 | L129: =データ貼付!H127 -> 決 | M129: =データ貼付!I127 -> ｵﾎｰﾂｸACｼﾞｭﾆｱ | N129: =データ貼付!J127 -> 6 | O129: =データ貼付!K127 -> 0
A130: 127 | B130: 高校男子走高跳12 | C130: =J130&COUNTIF($J$4:J130,J130) -> 平吹鷹也1 | D130: =データ貼付!D128&データ貼付!E128 -> 高校男子走高跳 | E130: =データ貼付!G128+ROW()/1000000 -> 165.00013 | F130: 12 | G130: =データ貼付!A128 -> 選手権 | H130: =データ貼付!B128 -> 北見 | I130: =データ貼付!C128 -> 43597 | J130: =データ貼付!F128 -> 平吹鷹也 | K130: =データ貼付!G128 -> 165 | L130: =データ貼付!H128 -> 決 | M130: =データ貼付!I128 -> 北見柏陽高 | N130: =データ貼付!J128 -> 3 | O130: =データ貼付!K128 -> 0
A131: 128 | B131: 共通女子走高跳1 | C131: =J131&COUNTIF($J$4:J131,J131) -> 平吹侑里1 | D131: =データ貼付!D129&データ貼付!E129 -> 共通女子走高跳 | E131: =データ貼付!G129+ROW()/1000000 -> 135.000131 | F131: 1 | G131: =データ貼付!A129 -> 選手権 | H131: =データ貼付!B129 -> 北見 | I131: =データ貼付!C129 -> 43596 | J131: =データ貼付!F129 -> 平吹侑里 | K131: =データ貼付!G129 -> 135 | L131: =データ貼付!H129 -> 決 | M131: =データ貼付!I129 -> 美幌高 | N131: =データ貼付!J129 -> 1 | O131: =データ貼付!K129 -> 0
A132: 129 | B132: 小学男子走高跳4 | C132: =J132&COUNTIF($J$4:J132,J132) -> 豊原隆介1 | D132: =データ貼付!D130&データ貼付!E130 -> 小学男子走高跳 | E132: =データ貼付!G130+ROW()/1000000 -> 120.000132 | F132: 4 | G132: =データ貼付!A130 -> 小学生ｵﾎｰﾂｸ | H132: =データ貼付!B130 -> 北見 | I132: =データ貼付!C130 -> 43632 | J132: =データ貼付!F130 -> 豊原隆介 | K132: =データ貼付!G130 -> 120 | L132: =データ貼付!H130 -> 決 | M132: =データ貼付!I130 -> ｵﾎｰﾂｸｷｯｽﾞ | N132: =データ貼付!J130 -> 6 | O132: =データ貼付!K130 -> 0
A133: 130 | B133: =D133&F133 -> 中学女子走高跳19 | C133: =J133&COUNTIF($J$4:J133,J133) -> 北村菜絵1 | D133: =データ貼付!D131&データ貼付!E131 -> 中学女子走高跳 | E133: =データ貼付!G131+ROW()/1000000 -> 120.000133 | F133: =SUMPRODUCT(($D$4:$D$200=D133)*($E$4:$E$200>E133))+1 -> 19 | G133: =データ貼付!A131 -> 記録会４戦 | H133: =データ貼付!B131 -> 北見 | I133: =データ貼付!C131 -> 43681 | J133: =データ貼付!F131 -> 北村菜絵 | K133: =データ貼付!G131 -> 120 | L133: =データ貼付!H131 -> 決 | M133: =データ貼付!I131 -> 置戸中 | N133: =データ貼付!J131 -> 3 | O133: =データ貼付!K131 -> 0
A134: 131 | B134: 小学男子走高跳10 | C134: =J134&COUNTIF($J$4:J134,J134) -> 堀澤仁景1 | D134: =データ貼付!D132&データ貼付!E132 -> 小学男子走高跳 | E134: =データ貼付!G132+ROW()/1000000 -> 110.000134 | F134: 10 | G134: =データ貼付!A132 -> 小学生ｵﾎｰﾂｸ | H134: =データ貼付!B132 -> 北見 | I134: =データ貼付!C132 -> 43632 | J134: =データ貼付!F132 -> 堀澤仁景 | K134: =データ貼付!G132 -> 110 | L134: =データ貼付!H132 -> 決 | M134: =データ貼付!I132 -> ｵﾎｰﾂｸｷｯｽﾞ | N134: =データ貼付!J132 -> 6 | O134: =データ貼付!K132 -> 0
A135: 132 | B135: 小学女子走高跳4 | C135: =J135&COUNTIF($J$4:J135,J135) -> 木山瑞希1 | D135: =データ貼付!D133&データ貼付!E133 -> 小学女子走高跳 | E135: =データ貼付!G133+ROW()/1000000 -> 110.000135 | F135: 4 | G135: =データ貼付!A133 -> フィールド記録会 | H135: =データ貼付!B133 -> 網走 | I135: =データ貼付!C133 -> 43624 | J135: =データ貼付!F133 -> 木山瑞希 | K135: =データ貼付!G133 -> 110 | L135: =データ貼付!H133 -> 決 | M135: =データ貼付!I133 -> 知床斜里RC | N135: =データ貼付!J133 -> 5 | O135: =データ貼付!K133 -> 0
A136: 133 | B136: 高校女子走高跳5 | C136: =J136&COUNTIF($J$4:J136,J136) -> 木村美月1 | D136: =データ貼付!D134&データ貼付!E134 -> 高校女子走高跳 | E136: =データ貼付!G134+ROW()/1000000 -> 135.000136 | F136: 5 | G136: =データ貼付!A134 -> 高体連支部 | H136: =データ貼付!B134 -> 北見 | I136: =データ貼付!C134 -> 43609 | J136: =データ貼付!F134 -> 木村美月 | K136: =データ貼付!G134 -> 135 | L136: =データ貼付!H134 -> 決 | M136: =データ貼付!I134 -> 北見商業高 | N136: =データ貼付!J134 -> 3 | O136: =データ貼付!K134 -> 0
A137: 134 | B137: 高校男子走高跳18 | C137: =J137&COUNTIF($J$4:J137,J137) -> 野崎竜矢1 | D137: =データ貼付!D135&データ貼付!E135 -> 高校男子走高跳 | E137: =データ貼付!G135+ROW()/1000000 -> 150.000137 | F137: 18 | G137: =データ貼付!A135 -> 高校新人 | H137: =データ貼付!B135 -> 北見 | I137: =データ貼付!C135 -> 43701 | J137: =データ貼付!F135 -> 野崎竜矢 | K137: =データ貼付!G135 -> 150 | L137: =データ貼付!H135 -> 決 | M137: =データ貼付!I135 -> 網走南ヶ丘高 | N137: =データ貼付!J135 -> 1 | O137: =データ貼付!K135 -> 0
A138: 135 | B138: 一般男子棒高跳1 | C138: =J138&COUNTIF($J$4:J138,J138) -> 油屋圭吾1 | D138: =データ貼付!D136&データ貼付!E136 -> 一般男子棒高跳 | E138: =データ貼付!G136+ROW()/1000000 -> 480.000138 | F138: 1 | G138: =データ貼付!A136 -> 道選手権 | H138: =データ貼付!B136 -> 網走 | I138: =データ貼付!C136 -> 08.10* | J138: =データ貼付!F136 -> 油屋圭吾 | K138: =データ貼付!G136 -> 480 | L138: =データ貼付!H136 -> 決 | M138: =データ貼付!I136 -> 順天堂大 | N138: =データ貼付!J136 -> 2 | O138: =データ貼付!K136 -> 0
A139: 136 | B139: 高校女子棒高跳3 | C139: =J139&COUNTIF($J$4:J139,J139) -> 林ちひろ1 | D139: =データ貼付!D137&データ貼付!E137 -> 高校女子棒高跳 | E139: =データ貼付!G137+ROW()/1000000 -> 270.000139 | F139: 3 | G139: =データ貼付!A137 -> 高校新人 | H139: =データ貼付!B137 -> 北見 | I139: =データ貼付!C137 -> 43701 | J139: =データ貼付!F137 -> 林ちひろ | K139: =データ貼付!G137 -> 270 | L139: =データ貼付!H137 -> 決 | M139: =データ貼付!I137 -> 北見緑陵高 | N139: =データ貼付!J137 -> 1 | O139: =データ貼付!K137 -> 0
A140: 137 | B140: 中学女子走高跳16 | C140: =J140&COUNTIF($J$4:J140,J140) -> 林梢幸1 | D140: =データ貼付!D138&データ貼付!E138 -> 中学女子走高跳 | E140: =データ貼付!G138+ROW()/1000000 -> 125.00014 | F140: 16 | G140: =データ貼付!A138 -> フィールド記録会 | H140: =データ貼付!B138 -> 網走 | I140: =データ貼付!C138 -> 43624 | J140: =データ貼付!F138 -> 林梢幸 | K140: =データ貼付!G138 -> 125 | L140: =データ貼付!H138 -> 決 | M140: =データ貼付!I138 -> 網走第四中 | N140: =データ貼付!J138 -> 2 | O140: =データ貼付!K138 -> 0
A141: 138 | B141: 中学男子走高跳17 | C141: =J141&COUNTIF($J$4:J141,J141) -> 鈴木昂英1 | D141: =データ貼付!D139&データ貼付!E139 -> 中学男子走高跳 | E141: =データ貼付!G139+ROW()/1000000 -> 120.000141 | F141: 17 | G141: =データ貼付!A139 -> 地区中体連 | H141: =データ貼付!B139 -> 北見 | I141: =データ貼付!C139 -> 43631 | J141: =データ貼付!F139 -> 鈴木昂英 | K141: =データ貼付!G139 -> 120 | L141: =データ貼付!H139 -> 決 | M141: =データ貼付!I139 -> 北見高栄中 | N141: =データ貼付!J139 -> 1 | O141: =データ貼付!K139 -> 0
A142: 139 | B142: 中学男子走高跳4 | C142: =J142&COUNTIF($J$4:J142,J142) -> 崔宰原1 | D142: =データ貼付!D140&データ貼付!E140 -> 中学男子走高跳 | E142: =データ貼付!G140+ROW()/1000000 -> 150.000142 | F142: 4 | G142: =データ貼付!A140 -> 中学新人 | H142: =データ貼付!B140 -> 北見 | I142: =データ貼付!C140 -> 43701 | J142: =データ貼付!F140 -> 崔宰原 | K142: =データ貼付!G140 -> 150 | L142: =データ貼付!H140 -> 決 | M142: =データ貼付!I140 -> 北見南中 | N142: =データ貼付!J140 -> 1 | O142: =データ貼付!K140 -> 0
A143: 140 | B143: 高校男子走高跳7 | C143: =J143&COUNTIF($J$4:J143,J143) -> 廣瀨慧来1 | D143: =データ貼付!D141&データ貼付!E141 -> 高校男子走高跳 | E143: =データ貼付!G141+ROW()/1000000 -> 168.000143 | F143: 7 | G143: =データ貼付!A141 -> 高体連支部 | H143: =データ貼付!B141 -> 北見 | I143: =データ貼付!C141 -> 43609 | J143: =データ貼付!F141 -> 廣瀨慧来 | K143: =データ貼付!G141 -> 168 | L143: =データ貼付!H141 -> 決 | M143: =データ貼付!I141 -> 網走南ヶ丘高 | N143: =データ貼付!J141 -> 3 | O143: =データ貼付!K141 -> 0
A144: 141 | B144: 高校男子棒高跳1 | C144: =J144&COUNTIF($J$4:J144,J144) -> 廣瀨慧来2 | D144: =データ貼付!D142&データ貼付!E142 -> 高校男子棒高跳 | E144: =データ貼付!G142+ROW()/1000000 -> 440.000144 | F144: 1 | G144: =データ貼付!A142 -> 全道高校 | H144: =データ貼付!B142 -> 帯広 | I144: =データ貼付!C142 -> 6/19 | J144: =データ貼付!F142 -> 廣瀨慧来 | K144: =データ貼付!G142 -> 440 | L144: =データ貼付!H142 -> 決 | M144: =データ貼付!I142 -> 網走南ヶ丘高 | N144: =データ貼付!J142 -> 3 | O144: =データ貼付!K142 -> 0
A145: 142 | B145: 中学女子走高跳6 | C145: =J145&COUNTIF($J$4:J145,J145) -> 澤向美樹1 | D145: =データ貼付!D143&データ貼付!E143 -> 中学女子走高跳 | E145: =データ貼付!G143+ROW()/1000000 -> 135.000145 | F145: 6 | G145: =データ貼付!A143 -> 中学新人 | H145: =データ貼付!B143 -> 北見 | I145: =データ貼付!C143 -> 43701 | J145: =データ貼付!F143 -> 澤向美樹 | K145: =データ貼付!G143 -> 135 | L145: =データ貼付!H143 -> 決 | M145: =データ貼付!I143 -> 北見常呂中 | N145: =データ貼付!J143 -> 1 | O145: =データ貼付!K143 -> 0
A146: 143 | B146: 中学男子走高跳3 | C146: =J146&COUNTIF($J$4:J146,J146) -> 萬龍来1 | D146: =データ貼付!D144&データ貼付!E144 -> 中学男子走高跳 | E146: =データ貼付!G144+ROW()/1000000 -> 150.000146 | F146: 3 | G146: =データ貼付!A144 -> 中学新人 | H146: =データ貼付!B144 -> 北見 | I146: =データ貼付!C144 -> 43701 | J146: =データ貼付!F144 -> 萬龍来 | K146: =データ貼付!G144 -> 150 | L146: =データ貼付!H144 -> 決 | M146: =データ貼付!I144 -> 網走第一中 | N146: =データ貼付!J144 -> 2 | O146: =データ貼付!K144 -> 0
A147: 144 | B147: 中学女子走高跳11 | C147: =J147&COUNTIF($J$4:J147,J147) -> 髙橋愛結1 | D147: =データ貼付!D145&データ貼付!E145 -> 中学女子走高跳 | E147: =データ貼付!G145+ROW()/1000000 -> 130.000147 | F147: 11 | G147: =データ貼付!A145 -> 秋季陸上 | H147: =データ貼付!B145 -> 網走 | I147: =データ貼付!C145 -> 43716 | J147: =データ貼付!F145 -> 髙橋愛結 | K147: =データ貼付!G145 -> 130 | L147: =データ貼付!H145 -> 決 | M147: =データ貼付!I145 -> 北見小泉中 | N147: =データ貼付!J145 -> 2 | O147: =データ貼付!K145 -> 0
A148: 145 | B148: 小学男子走高跳1 | C148: =J148&COUNTIF($J$4:J148,J148) -> 髙橋依1 | D148: =データ貼付!D146&データ貼付!E146 -> 小学男子走高跳 | E148: =データ貼付!G146+ROW()/1000000 -> 125.000148 | F148: 1 | G148: =データ貼付!A146 -> 小学生ｵﾎｰﾂｸ | H148: =データ貼付!B146 -> 北見 | I148: =データ貼付!C146 -> 43632 | J148: =データ貼付!F146 -> 髙橋依 | K148: =データ貼付!G146 -> 125 | L148: =データ貼付!H146 -> 決 | M148: =データ貼付!I146 -> 美幌RC | N148: =データ貼付!J146 -> 6 | O148: =データ貼付!K146 -> 0
A149: 146 | B149: 小学女子走高跳6 | C149: =J149&COUNTIF($J$4:J149,J149) -> 髙橋碧衣1 | D149: =データ貼付!D147&データ貼付!E147 -> 小学女子走高跳 | E149: =データ貼付!G147+ROW()/1000000 -> 105.000149 | F149: 6 | G149: =データ貼付!A147 -> 選手権 | H149: =データ貼付!B147 -> 北見 | I149: =データ貼付!C147 -> 43596 | J149: =データ貼付!F147 -> 髙橋碧衣 | K149: =データ貼付!G147 -> 105 | L149: =データ貼付!H147 -> 決 | M149: =データ貼付!I147 -> 常呂陸上少年団 | N149: =データ貼付!J147 -> 5 | O149: =データ貼付!K147 -> 0
A150: 147 | B150: 高校男子走高跳11 | C150: =J150&COUNTIF($J$4:J150,J150) -> 髙橋悠希1 | D150: =データ貼付!D148&データ貼付!E148 -> 高校男子走高跳 | E150: =データ貼付!G148+ROW()/1000000 -> 165.00015 | F150: 11 | G150: =データ貼付!A148 -> 記録会第１戦 | H150: =データ貼付!B148 -> 北見 | I150: =データ貼付!C148 -> 43583 | J150: =データ貼付!F148 -> 髙橋悠希 | K150: =データ貼付!G148 -> 165 | L150: =データ貼付!H148 -> 決 | M150: =データ貼付!I148 -> 北見北斗高 | N150: =データ貼付!J148 -> 2 | O150: =データ貼付!K148 -> 0
A151: 148 | B151: 50 | C151: =J151&COUNTIF($J$4:J151,J151) -> 01 | D151: =データ貼付!D149&データ貼付!E149 ->  | E151: =データ貼付!G149+ROW()/1000000 -> 0.000151 | F151: 50 | G151: =データ貼付!A149 -> 0 | H151: =データ貼付!B149 -> 0 | I151: =データ貼付!C149 -> 0 | J151: =データ貼付!F149 -> 0 | K151: =データ貼付!G149 -> 0 | L151: =データ貼付!H149 -> 0 | M151: =データ貼付!I149 -> 0 | N151: =データ貼付!J149 -> 0 | O151: =データ貼付!K149 -> 0
A152: 149 | B152: 49 | C152: =J152&COUNTIF($J$4:J152,J152) -> 02 | D152: =データ貼付!D150&データ貼付!E150 ->  | E152: =データ貼付!G150+ROW()/1000000 -> 0.000152 | F152: 49 | G152: =データ貼付!A150 -> 0 | H152: =データ貼付!B150 -> 0 | I152: =データ貼付!C150 -> 0 | J152: =データ貼付!F150 -> 0 | K152: =データ貼付!G150 -> 0 | L152: =データ貼付!H150 -> 0 | M152: =データ貼付!I150 -> 0 | N152: =データ貼付!J150 -> 0 | O152: =データ貼付!K150 -> 0
A153: 150 | B153: 48 | C153: =J153&COUNTIF($J$4:J153,J153) -> 03 | D153: =データ貼付!D151&データ貼付!E151 ->  | E153: =データ貼付!G151+ROW()/1000000 -> 0.000153 | F153: 48 | G153: =データ貼付!A151 -> 0 | H153: =データ貼付!B151 -> 0 | I153: =データ貼付!C151 -> 0 | J153: =データ貼付!F151 -> 0 | K153: =データ貼付!G151 -> 0 | L153: =データ貼付!H151 -> 0 | M153: =データ貼付!I151 -> 0 | N153: =データ貼付!J151 -> 0 | O153: =データ貼付!K151 -> 0
A154: 151 | B154: 47 | C154: =J154&COUNTIF($J$4:J154,J154) -> 04 | D154: =データ貼付!D152&データ貼付!E152 ->  | E154: =データ貼付!G152+ROW()/1000000 -> 0.000154 | F154: 47 | G154: =データ貼付!A152 -> 0 | H154: =データ貼付!B152 -> 0 | I154: =データ貼付!C152 -> 0 | J154: =データ貼付!F152 -> 0 | K154: =データ貼付!G152 -> 0 | L154: =データ貼付!H152 -> 0 | M154: =データ貼付!I152 -> 0 | N154: =データ貼付!J152 -> 0 | O154: =データ貼付!K152 -> 0
A155: 152 | B155: 46 | C155: =J155&COUNTIF($J$4:J155,J155) -> 05 | D155: =データ貼付!D153&データ貼付!E153 ->  | E155: =データ貼付!G153+ROW()/1000000 -> 0.000155 | F155: 46 | G155: =データ貼付!A153 -> 0 | H155: =データ貼付!B153 -> 0 | I155: =データ貼付!C153 -> 0 | J155: =データ貼付!F153 -> 0 | K155: =データ貼付!G153 -> 0 | L155: =データ貼付!H153 -> 0 | M155: =データ貼付!I153 -> 0 | N155: =データ貼付!J153 -> 0 | O155: =データ貼付!K153 -> 0
A156: 153 | B156: 45 | C156: =J156&COUNTIF($J$4:J156,J156) -> 06 | D156: =データ貼付!D154&データ貼付!E154 ->  | E156: =データ貼付!G154+ROW()/1000000 -> 0.000156 | F156: 45 | G156: =データ貼付!A154 -> 0 | H156: =データ貼付!B154 -> 0 | I156: =データ貼付!C154 -> 0 | J156: =データ貼付!F154 -> 0 | K156: =データ貼付!G154 -> 0 | L156: =データ貼付!H154 -> 0 | M156: =データ貼付!I154 -> 0 | N156: =データ貼付!J154 -> 0 | O156: =データ貼付!K154 -> 0
A157: 154 | B157: 44 | C157: =J157&COUNTIF($J$4:J157,J157) -> 07 | D157: =データ貼付!D155&データ貼付!E155 ->  | E157: =データ貼付!G155+ROW()/1000000 -> 0.000157 | F157: 44 | G157: =データ貼付!A155 -> 0 | H157: =データ貼付!B155 -> 0 | I157: =データ貼付!C155 -> 0 | J157: =データ貼付!F155 -> 0 | K157: =データ貼付!G155 -> 0 | L157: =データ貼付!H155 -> 0 | M157: =データ貼付!I155 -> 0 | N157: =データ貼付!J155 -> 0 | O157: =データ貼付!K155 -> 0
A158: 155 | B158: 43 | C158: =J158&COUNTIF($J$4:J158,J158) -> 08 | D158: =データ貼付!D156&データ貼付!E156 ->  | E158: =データ貼付!G156+ROW()/1000000 -> 0.000158 | F158: 43 | G158: =データ貼付!A156 -> 0 | H158: =データ貼付!B156 -> 0 | I158: =データ貼付!C156 -> 0 | J158: =データ貼付!F156 -> 0 | K158: =データ貼付!G156 -> 0 | L158: =データ貼付!H156 -> 0 | M158: =データ貼付!I156 -> 0 | N158: =データ貼付!J156 -> 0 | O158: =データ貼付!K156 -> 0
A159: 156 | B159: 42 | C159: =J159&COUNTIF($J$4:J159,J159) -> 09 | D159: =データ貼付!D157&データ貼付!E157 ->  | E159: =データ貼付!G157+ROW()/1000000 -> 0.000159 | F159: 42 | G159: =データ貼付!A157 -> 0 | H159: =データ貼付!B157 -> 0 | I159: =データ貼付!C157 -> 0 | J159: =データ貼付!F157 -> 0 | K159: =データ貼付!G157 -> 0 | L159: =データ貼付!H157 -> 0 | M159: =データ貼付!I157 -> 0 | N159: =データ貼付!J157 -> 0 | O159: =データ貼付!K157 -> 0
A160: 157 | B160: 41 | C160: =J160&COUNTIF($J$4:J160,J160) -> 010 | D160: =データ貼付!D158&データ貼付!E158 ->  | E160: =データ貼付!G158+ROW()/1000000 -> 0.00016 | F160: 41 | G160: =データ貼付!A158 -> 0 | H160: =データ貼付!B158 -> 0 | I160: =データ貼付!C158 -> 0 | J160: =データ貼付!F158 -> 0 | K160: =データ貼付!G158 -> 0 | L160: =データ貼付!H158 -> 0 | M160: =データ貼付!I158 -> 0 | N160: =データ貼付!J158 -> 0 | O160: =データ貼付!K158 -> 0
A161: 158 | B161: 40 | C161: =J161&COUNTIF($J$4:J161,J161) -> 011 | D161: =データ貼付!D159&データ貼付!E159 ->  | E161: =データ貼付!G159+ROW()/1000000 -> 0.000161 | F161: 40 | G161: =データ貼付!A159 -> 0 | H161: =データ貼付!B159 -> 0 | I161: =データ貼付!C159 -> 0 | J161: =データ貼付!F159 -> 0 | K161: =データ貼付!G159 -> 0 | L161: =データ貼付!H159 -> 0 | M161: =データ貼付!I159 -> 0 | N161: =データ貼付!J159 -> 0 | O161: =データ貼付!K159 -> 0
A162: 159 | B162: 39 | C162: =J162&COUNTIF($J$4:J162,J162) -> 012 | D162: =データ貼付!D160&データ貼付!E160 ->  | E162: =データ貼付!G160+ROW()/1000000 -> 0.000162 | F162: 39 | G162: =データ貼付!A160 -> 0 | H162: =データ貼付!B160 -> 0 | I162: =データ貼付!C160 -> 0 | J162: =データ貼付!F160 -> 0 | K162: =データ貼付!G160 -> 0 | L162: =データ貼付!H160 -> 0 | M162: =データ貼付!I160 -> 0 | N162: =データ貼付!J160 -> 0 | O162: =データ貼付!K160 -> 0
A163: 160 | B163: 38 | C163: =J163&COUNTIF($J$4:J163,J163) -> 013 | D163: =データ貼付!D161&データ貼付!E161 ->  | E163: =データ貼付!G161+ROW()/1000000 -> 0.000163 | F163: 38 | G163: =データ貼付!A161 -> 0 | H163: =データ貼付!B161 -> 0 | I163: =データ貼付!C161 -> 0 | J163: =データ貼付!F161 -> 0 | K163: =データ貼付!G161 -> 0 | L163: =データ貼付!H161 -> 0 | M163: =データ貼付!I161 -> 0 | N163: =データ貼付!J161 -> 0 | O163: =データ貼付!K161 -> 0
A164: 161 | B164: 37 | C164: =J164&COUNTIF($J$4:J164,J164) -> 014 | D164: =データ貼付!D162&データ貼付!E162 ->  | E164: =データ貼付!G162+ROW()/1000000 -> 0.000164 | F164: 37 | G164: =データ貼付!A162 -> 0 | H164: =データ貼付!B162 -> 0 | I164: =データ貼付!C162 -> 0 | J164: =データ貼付!F162 -> 0 | K164: =データ貼付!G162 -> 0 | L164: =データ貼付!H162 -> 0 | M164: =データ貼付!I162 -> 0 | N164: =データ貼付!J162 -> 0 | O164: =データ貼付!K162 -> 0
A165: 162 | B165: 36 | C165: =J165&COUNTIF($J$4:J165,J165) -> 015 | D165: =データ貼付!D163&データ貼付!E163 ->  | E165: =データ貼付!G163+ROW()/1000000 -> 0.000165 | F165: 36 | G165: =データ貼付!A163 -> 0 | H165: =データ貼付!B163 -> 0 | I165: =データ貼付!C163 -> 0 | J165: =データ貼付!F163 -> 0 | K165: =データ貼付!G163 -> 0 | L165: =データ貼付!H163 -> 0 | M165: =データ貼付!I163 -> 0 | N165: =データ貼付!J163 -> 0 | O165: =データ貼付!K163 -> 0
A166: 163 | B166: 35 | C166: =J166&COUNTIF($J$4:J166,J166) -> 016 | D166: =データ貼付!D164&データ貼付!E164 ->  | E166: =データ貼付!G164+ROW()/1000000 -> 0.000166 | F166: 35 | G166: =データ貼付!A164 -> 0 | H166: =データ貼付!B164 -> 0 | I166: =データ貼付!C164 -> 0 | J166: =データ貼付!F164 -> 0 | K166: =データ貼付!G164 -> 0 | L166: =データ貼付!H164 -> 0 | M166: =データ貼付!I164 -> 0 | N166: =データ貼付!J164 -> 0 | O166: =データ貼付!K164 -> 0
A167: 164 | B167: 34 | C167: =J167&COUNTIF($J$4:J167,J167) -> 017 | D167: =データ貼付!D165&データ貼付!E165 ->  | E167: =データ貼付!G165+ROW()/1000000 -> 0.000167 | F167: 34 | G167: =データ貼付!A165 -> 0 | H167: =データ貼付!B165 -> 0 | I167: =データ貼付!C165 -> 0 | J167: =データ貼付!F165 -> 0 | K167: =データ貼付!G165 -> 0 | L167: =データ貼付!H165 -> 0 | M167: =データ貼付!I165 -> 0 | N167: =データ貼付!J165 -> 0 | O167: =データ貼付!K165 -> 0
A168: 165 | B168: 33 | C168: =J168&COUNTIF($J$4:J168,J168) -> 018 | D168: =データ貼付!D166&データ貼付!E166 ->  | E168: =データ貼付!G166+ROW()/1000000 -> 0.000168 | F168: 33 | G168: =データ貼付!A166 -> 0 | H168: =データ貼付!B166 -> 0 | I168: =データ貼付!C166 -> 0 | J168: =データ貼付!F166 -> 0 | K168: =データ貼付!G166 -> 0 | L168: =データ貼付!H166 -> 0 | M168: =データ貼付!I166 -> 0 | N168: =データ貼付!J166 -> 0 | O168: =データ貼付!K166 -> 0
A169: 166 | B169: 32 | C169: =J169&COUNTIF($J$4:J169,J169) -> 019 | D169: =データ貼付!D167&データ貼付!E167 ->  | E169: =データ貼付!G167+ROW()/1000000 -> 0.000169 | F169: 32 | G169: =データ貼付!A167 -> 0 | H169: =データ貼付!B167 -> 0 | I169: =データ貼付!C167 -> 0 | J169: =データ貼付!F167 -> 0 | K169: =データ貼付!G167 -> 0 | L169: =データ貼付!H167 -> 0 | M169: =データ貼付!I167 -> 0 | N169: =データ貼付!J167 -> 0 | O169: =データ貼付!K167 -> 0
A170: 167 | B170: 31 | C170: =J170&COUNTIF($J$4:J170,J170) -> 020 | D170: =データ貼付!D168&データ貼付!E168 ->  | E170: =データ貼付!G168+ROW()/1000000 -> 0.00017 | F170: 31 | G170: =データ貼付!A168 -> 0 | H170: =データ貼付!B168 -> 0 | I170: =データ貼付!C168 -> 0 | J170: =データ貼付!F168 -> 0 | K170: =データ貼付!G168 -> 0 | L170: =データ貼付!H168 -> 0 | M170: =データ貼付!I168 -> 0 | N170: =データ貼付!J168 -> 0 | O170: =データ貼付!K168 -> 0
A171: 168 | B171: 30 | C171: =J171&COUNTIF($J$4:J171,J171) -> 021 | D171: =データ貼付!D169&データ貼付!E169 ->  | E171: =データ貼付!G169+ROW()/1000000 -> 0.000171 | F171: 30 | G171: =データ貼付!A169 -> 0 | H171: =データ貼付!B169 -> 0 | I171: =データ貼付!C169 -> 0 | J171: =データ貼付!F169 -> 0 | K171: =データ貼付!G169 -> 0 | L171: =データ貼付!H169 -> 0 | M171: =データ貼付!I169 -> 0 | N171: =データ貼付!J169 -> 0 | O171: =データ貼付!K169 -> 0
A172: 169 | B172: 29 | C172: =J172&COUNTIF($J$4:J172,J172) -> 022 | D172: =データ貼付!D170&データ貼付!E170 ->  | E172: =データ貼付!G170+ROW()/1000000 -> 0.000172 | F172: 29 | G172: =データ貼付!A170 -> 0 | H172: =データ貼付!B170 -> 0 | I172: =データ貼付!C170 -> 0 | J172: =データ貼付!F170 -> 0 | K172: =データ貼付!G170 -> 0 | L172: =データ貼付!H170 -> 0 | M172: =データ貼付!I170 -> 0 | N172: =データ貼付!J170 -> 0 | O172: =データ貼付!K170 -> 0
A173: 170 | B173: 28 | C173: =J173&COUNTIF($J$4:J173,J173) -> 023 | D173: =データ貼付!D171&データ貼付!E171 ->  | E173: =データ貼付!G171+ROW()/1000000 -> 0.000173 | F173: 28 | G173: =データ貼付!A171 -> 0 | H173: =データ貼付!B171 -> 0 | I173: =データ貼付!C171 -> 0 | J173: =データ貼付!F171 -> 0 | K173: =データ貼付!G171 -> 0 | L173: =データ貼付!H171 -> 0 | M173: =データ貼付!I171 -> 0 | N173: =データ貼付!J171 -> 0 | O173: =データ貼付!K171 -> 0
A174: 171 | B174: 27 | C174: =J174&COUNTIF($J$4:J174,J174) -> 024 | D174: =データ貼付!D172&データ貼付!E172 ->  | E174: =データ貼付!G172+ROW()/1000000 -> 0.000174 | F174: 27 | G174: =データ貼付!A172 -> 0 | H174: =データ貼付!B172 -> 0 | I174: =データ貼付!C172 -> 0 | J174: =データ貼付!F172 -> 0 | K174: =データ貼付!G172 -> 0 | L174: =データ貼付!H172 -> 0 | M174: =データ貼付!I172 -> 0 | N174: =データ貼付!J172 -> 0 | O174: =データ貼付!K172 -> 0
A175: 172 | B175: 26 | C175: =J175&COUNTIF($J$4:J175,J175) -> 025 | D175: =データ貼付!D173&データ貼付!E173 ->  | E175: =データ貼付!G173+ROW()/1000000 -> 0.000175 | F175: 26 | G175: =データ貼付!A173 -> 0 | H175: =データ貼付!B173 -> 0 | I175: =データ貼付!C173 -> 0 | J175: =データ貼付!F173 -> 0 | K175: =データ貼付!G173 -> 0 | L175: =データ貼付!H173 -> 0 | M175: =データ貼付!I173 -> 0 | N175: =データ貼付!J173 -> 0 | O175: =データ貼付!K173 -> 0
A176: 173 | B176: 25 | C176: =J176&COUNTIF($J$4:J176,J176) -> 026 | D176: =データ貼付!D174&データ貼付!E174 ->  | E176: =データ貼付!G174+ROW()/1000000 -> 0.000176 | F176: 25 | G176: =データ貼付!A174 -> 0 | H176: =データ貼付!B174 -> 0 | I176: =データ貼付!C174 -> 0 | J176: =データ貼付!F174 -> 0 | K176: =データ貼付!G174 -> 0 | L176: =データ貼付!H174 -> 0 | M176: =データ貼付!I174 -> 0 | N176: =データ貼付!J174 -> 0 | O176: =データ貼付!K174 -> 0
A177: 174 | B177: 24 | C177: =J177&COUNTIF($J$4:J177,J177) -> 027 | D177: =データ貼付!D175&データ貼付!E175 ->  | E177: =データ貼付!G175+ROW()/1000000 -> 0.000177 | F177: 24 | G177: =データ貼付!A175 -> 0 | H177: =データ貼付!B175 -> 0 | I177: =データ貼付!C175 -> 0 | J177: =データ貼付!F175 -> 0 | K177: =データ貼付!G175 -> 0 | L177: =データ貼付!H175 -> 0 | M177: =データ貼付!I175 -> 0 | N177: =データ貼付!J175 -> 0 | O177: =データ貼付!K175 -> 0
A178: 175 | B178: 23 | C178: =J178&COUNTIF($J$4:J178,J178) -> 028 | D178: =データ貼付!D176&データ貼付!E176 ->  | E178: =データ貼付!G176+ROW()/1000000 -> 0.000178 | F178: 23 | G178: =データ貼付!A176 -> 0 | H178: =データ貼付!B176 -> 0 | I178: =データ貼付!C176 -> 0 | J178: =データ貼付!F176 -> 0 | K178: =データ貼付!G176 -> 0 | L178: =データ貼付!H176 -> 0 | M178: =データ貼付!I176 -> 0 | N178: =データ貼付!J176 -> 0 | O178: =データ貼付!K176 -> 0
A179: 176 | B179: 22 | C179: =J179&COUNTIF($J$4:J179,J179) -> 029 | D179: =データ貼付!D177&データ貼付!E177 ->  | E179: =データ貼付!G177+ROW()/1000000 -> 0.000179 | F179: 22 | G179: =データ貼付!A177 -> 0 | H179: =データ貼付!B177 -> 0 | I179: =データ貼付!C177 -> 0 | J179: =データ貼付!F177 -> 0 | K179: =データ貼付!G177 -> 0 | L179: =データ貼付!H177 -> 0 | M179: =データ貼付!I177 -> 0 | N179: =データ貼付!J177 -> 0 | O179: =データ貼付!K177 -> 0
A180: 177 | B180: 21 | C180: =J180&COUNTIF($J$4:J180,J180) -> 030 | D180: =データ貼付!D178&データ貼付!E178 ->  | E180: =データ貼付!G178+ROW()/1000000 -> 0.00018 | F180: 21 | G180: =データ貼付!A178 -> 0 | H180: =データ貼付!B178 -> 0 | I180: =データ貼付!C178 -> 0 | J180: =データ貼付!F178 -> 0 | K180: =データ貼付!G178 -> 0 | L180: =データ貼付!H178 -> 0 | M180: =データ貼付!I178 -> 0 | N180: =データ貼付!J178 -> 0 | O180: =データ貼付!K178 -> 0
A181: 178 | B181: 20 | C181: =J181&COUNTIF($J$4:J181,J181) -> 031 | D181: =データ貼付!D179&データ貼付!E179 ->  | E181: =データ貼付!G179+ROW()/1000000 -> 0.000181 | F181: 20 | G181: =データ貼付!A179 -> 0 | H181: =データ貼付!B179 -> 0 | I181: =データ貼付!C179 -> 0 | J181: =データ貼付!F179 -> 0 | K181: =データ貼付!G179 -> 0 | L181: =データ貼付!H179 -> 0 | M181: =データ貼付!I179 -> 0 | N181: =データ貼付!J179 -> 0 | O181: =データ貼付!K179 -> 0
A182: 179 | B182: 19 | C182: =J182&COUNTIF($J$4:J182,J182) -> 032 | D182: =データ貼付!D180&データ貼付!E180 ->  | E182: =データ貼付!G180+ROW()/1000000 -> 0.000182 | F182: 19 | G182: =データ貼付!A180 -> 0 | H182: =データ貼付!B180 -> 0 | I182: =データ貼付!C180 -> 0 | J182: =データ貼付!F180 -> 0 | K182: =データ貼付!G180 -> 0 | L182: =データ貼付!H180 -> 0 | M182: =データ貼付!I180 -> 0 | N182: =データ貼付!J180 -> 0 | O182: =データ貼付!K180 -> 0
A183: 180 | B183: 18 | C183: =J183&COUNTIF($J$4:J183,J183) -> 033 | D183: =データ貼付!D181&データ貼付!E181 ->  | E183: =データ貼付!G181+ROW()/1000000 -> 0.000183 | F183: 18 | G183: =データ貼付!A181 -> 0 | H183: =データ貼付!B181 -> 0 | I183: =データ貼付!C181 -> 0 | J183: =データ貼付!F181 -> 0 | K183: =データ貼付!G181 -> 0 | L183: =データ貼付!H181 -> 0 | M183: =データ貼付!I181 -> 0 | N183: =データ貼付!J181 -> 0 | O183: =データ貼付!K181 -> 0
A184: 181 | B184: 17 | C184: =J184&COUNTIF($J$4:J184,J184) -> 034 | D184: =データ貼付!D182&データ貼付!E182 ->  | E184: =データ貼付!G182+ROW()/1000000 -> 0.000184 | F184: 17 | G184: =データ貼付!A182 -> 0 | H184: =データ貼付!B182 -> 0 | I184: =データ貼付!C182 -> 0 | J184: =データ貼付!F182 -> 0 | K184: =データ貼付!G182 -> 0 | L184: =データ貼付!H182 -> 0 | M184: =データ貼付!I182 -> 0 | N184: =データ貼付!J182 -> 0 | O184: =データ貼付!K182 -> 0
A185: 182 | B185: 16 | C185: =J185&COUNTIF($J$4:J185,J185) -> 035 | D185: =データ貼付!D183&データ貼付!E183 ->  | E185: =データ貼付!G183+ROW()/1000000 -> 0.000185 | F185: 16 | G185: =データ貼付!A183 -> 0 | H185: =データ貼付!B183 -> 0 | I185: =データ貼付!C183 -> 0 | J185: =データ貼付!F183 -> 0 | K185: =データ貼付!G183 -> 0 | L185: =データ貼付!H183 -> 0 | M185: =データ貼付!I183 -> 0 | N185: =データ貼付!J183 -> 0 | O185: =データ貼付!K183 -> 0
A186: 183 | B186: 15 | C186: =J186&COUNTIF($J$4:J186,J186) -> 036 | D186: =データ貼付!D184&データ貼付!E184 ->  | E186: =データ貼付!G184+ROW()/1000000 -> 0.000186 | F186: 15 | G186: =データ貼付!A184 -> 0 | H186: =データ貼付!B184 -> 0 | I186: =データ貼付!C184 -> 0 | J186: =データ貼付!F184 -> 0 | K186: =データ貼付!G184 -> 0 | L186: =データ貼付!H184 -> 0 | M186: =データ貼付!I184 -> 0 | N186: =データ貼付!J184 -> 0 | O186: =データ貼付!K184 -> 0
A187: 184 | B187: 14 | C187: =J187&COUNTIF($J$4:J187,J187) -> 037 | D187: =データ貼付!D185&データ貼付!E185 ->  | E187: =データ貼付!G185+ROW()/1000000 -> 0.000187 | F187: 14 | G187: =データ貼付!A185 -> 0 | H187: =データ貼付!B185 -> 0 | I187: =データ貼付!C185 -> 0 | J187: =データ貼付!F185 -> 0 | K187: =データ貼付!G185 -> 0 | L187: =データ貼付!H185 -> 0 | M187: =データ貼付!I185 -> 0 | N187: =データ貼付!J185 -> 0 | O187: =データ貼付!K185 -> 0
A188: 185 | B188: 13 | C188: =J188&COUNTIF($J$4:J188,J188) -> 038 | D188: =データ貼付!D186&データ貼付!E186 ->  | E188: =データ貼付!G186+ROW()/1000000 -> 0.000188 | F188: 13 | G188: =データ貼付!A186 -> 0 | H188: =データ貼付!B186 -> 0 | I188: =データ貼付!C186 -> 0 | J188: =データ貼付!F186 -> 0 | K188: =データ貼付!G186 -> 0 | L188: =データ貼付!H186 -> 0 | M188: =データ貼付!I186 -> 0 | N188: =データ貼付!J186 -> 0 | O188: =データ貼付!K186 -> 0
A189: 186 | B189: 12 | C189: =J189&COUNTIF($J$4:J189,J189) -> 039 | D189: =データ貼付!D187&データ貼付!E187 ->  | E189: =データ貼付!G187+ROW()/1000000 -> 0.000189 | F189: 12 | G189: =データ貼付!A187 -> 0 | H189: =データ貼付!B187 -> 0 | I189: =データ貼付!C187 -> 0 | J189: =データ貼付!F187 -> 0 | K189: =データ貼付!G187 -> 0 | L189: =データ貼付!H187 -> 0 | M189: =データ貼付!I187 -> 0 | N189: =データ貼付!J187 -> 0 | O189: =データ貼付!K187 -> 0
A190: 187 | B190: 11 | C190: =J190&COUNTIF($J$4:J190,J190) -> 040 | D190: =データ貼付!D188&データ貼付!E188 ->  | E190: =データ貼付!G188+ROW()/1000000 -> 0.00019 | F190: 11 | G190: =データ貼付!A188 -> 0 | H190: =データ貼付!B188 -> 0 | I190: =データ貼付!C188 -> 0 | J190: =データ貼付!F188 -> 0 | K190: =データ貼付!G188 -> 0 | L190: =データ貼付!H188 -> 0 | M190: =データ貼付!I188 -> 0 | N190: =データ貼付!J188 -> 0 | O190: =データ貼付!K188 -> 0
A191: 188 | B191: 10 | C191: =J191&COUNTIF($J$4:J191,J191) -> 041 | D191: =データ貼付!D189&データ貼付!E189 ->  | E191: =データ貼付!G189+ROW()/1000000 -> 0.000191 | F191: 10 | G191: =データ貼付!A189 -> 0 | H191: =データ貼付!B189 -> 0 | I191: =データ貼付!C189 -> 0 | J191: =データ貼付!F189 -> 0 | K191: =データ貼付!G189 -> 0 | L191: =データ貼付!H189 -> 0 | M191: =データ貼付!I189 -> 0 | N191: =データ貼付!J189 -> 0 | O191: =データ貼付!K189 -> 0
A192: 189 | B192: 9 | C192: =J192&COUNTIF($J$4:J192,J192) -> 042 | D192: =データ貼付!D190&データ貼付!E190 ->  | E192: =データ貼付!G190+ROW()/1000000 -> 0.000192 | F192: 9 | G192: =データ貼付!A190 -> 0 | H192: =データ貼付!B190 -> 0 | I192: =データ貼付!C190 -> 0 | J192: =データ貼付!F190 -> 0 | K192: =データ貼付!G190 -> 0 | L192: =データ貼付!H190 -> 0 | M192: =データ貼付!I190 -> 0 | N192: =データ貼付!J190 -> 0 | O192: =データ貼付!K190 -> 0
A193: 190 | B193: 8 | C193: =J193&COUNTIF($J$4:J193,J193) -> 043 | D193: =データ貼付!D191&データ貼付!E191 ->  | E193: =データ貼付!G191+ROW()/1000000 -> 0.000193 | F193: 8 | G193: =データ貼付!A191 -> 0 | H193: =データ貼付!B191 -> 0 | I193: =データ貼付!C191 -> 0 | J193: =データ貼付!F191 -> 0 | K193: =データ貼付!G191 -> 0 | L193: =データ貼付!H191 -> 0 | M193: =データ貼付!I191 -> 0 | N193: =データ貼付!J191 -> 0 | O193: =データ貼付!K191 -> 0
A194: 191 | B194: 7 | C194: =J194&COUNTIF($J$4:J194,J194) -> 044 | D194: =データ貼付!D192&データ貼付!E192 ->  | E194: =データ貼付!G192+ROW()/1000000 -> 0.000194 | F194: 7 | G194: =データ貼付!A192 -> 0 | H194: =データ貼付!B192 -> 0 | I194: =データ貼付!C192 -> 0 | J194: =データ貼付!F192 -> 0 | K194: =データ貼付!G192 -> 0 | L194: =データ貼付!H192 -> 0 | M194: =データ貼付!I192 -> 0 | N194: =データ貼付!J192 -> 0 | O194: =データ貼付!K192 -> 0
A195: 192 | B195: 6 | C195: =J195&COUNTIF($J$4:J195,J195) -> 045 | D195: =データ貼付!D193&データ貼付!E193 ->  | E195: =データ貼付!G193+ROW()/1000000 -> 0.000195 | F195: 6 | G195: =データ貼付!A193 -> 0 | H195: =データ貼付!B193 -> 0 | I195: =データ貼付!C193 -> 0 | J195: =データ貼付!F193 -> 0 | K195: =データ貼付!G193 -> 0 | L195: =データ貼付!H193 -> 0 | M195: =データ貼付!I193 -> 0 | N195: =データ貼付!J193 -> 0 | O195: =データ貼付!K193 -> 0
A196: 193 | B196: 5 | C196: =J196&COUNTIF($J$4:J196,J196) -> 046 | D196: =データ貼付!D194&データ貼付!E194 ->  | E196: =データ貼付!G194+ROW()/1000000 -> 0.000196 | F196: 5 | G196: =データ貼付!A194 -> 0 | H196: =データ貼付!B194 -> 0 | I196: =データ貼付!C194 -> 0 | J196: =データ貼付!F194 -> 0 | K196: =データ貼付!G194 -> 0 | L196: =データ貼付!H194 -> 0 | M196: =データ貼付!I194 -> 0 | N196: =データ貼付!J194 -> 0 | O196: =データ貼付!K194 -> 0
A197: 194 | B197: =D197&F197 -> 4 | C197: =J197&COUNTIF($J$4:J197,J197) -> 047 | D197: =データ貼付!D195&データ貼付!E195 ->  | E197: =データ貼付!G195+ROW()/1000000 -> 0.000197 | F197: =SUMPRODUCT(($D$4:$D$200=D197)*($E$4:$E$200>E197))+1 -> 4 | G197: =データ貼付!A195 -> 0 | H197: =データ貼付!B195 -> 0 | I197: =データ貼付!C195 -> 0 | J197: =データ貼付!F195 -> 0 | K197: =データ貼付!G195 -> 0 | L197: =データ貼付!H195 -> 0 | M197: =データ貼付!I195 -> 0 | N197: =データ貼付!J195 -> 0 | O197: =データ貼付!K195 -> 0
A198: 195 | B198: 3 | C198: =J198&COUNTIF($J$4:J198,J198) -> 048 | D198: =データ貼付!D196&データ貼付!E196 ->  | E198: =データ貼付!G196+ROW()/1000000 -> 0.000198 | F198: 3 | G198: =データ貼付!A196 -> 0 | H198: =データ貼付!B196 -> 0 | I198: =データ貼付!C196 -> 0 | J198: =データ貼付!F196 -> 0 | K198: =データ貼付!G196 -> 0 | L198: =データ貼付!H196 -> 0 | M198: =データ貼付!I196 -> 0 | N198: =データ貼付!J196 -> 0 | O198: =データ貼付!K196 -> 0
A199: 196 | B199: 2 | C199: =J199&COUNTIF($J$4:J199,J199) -> 049 | D199: =データ貼付!D197&データ貼付!E197 ->  | E199: =データ貼付!G197+ROW()/1000000 -> 0.000199 | F199: 2 | G199: =データ貼付!A197 -> 0 | H199: =データ貼付!B197 -> 0 | I199: =データ貼付!C197 -> 0 | J199: =データ貼付!F197 -> 0 | K199: =データ貼付!G197 -> 0 | L199: =データ貼付!H197 -> 0 | M199: =データ貼付!I197 -> 0 | N199: =データ貼付!J197 -> 0 | O199: =データ貼付!K197 -> 0
A200: 197 | B200: 1 | C200: =J200&COUNTIF($J$4:J200,J200) -> 050 | D200: =データ貼付!D198&データ貼付!E198 ->  | E200: =データ貼付!G198+ROW()/1000000 -> 0.0002 | F200: 1 | G200: =データ貼付!A198 -> 0 | H200: =データ貼付!B198 -> 0 | I200: =データ貼付!C198 -> 0 | J200: =データ貼付!F198 -> 0 | K200: =データ貼付!G198 -> 0 | L200: =データ貼付!H198 -> 0 | M200: =データ貼付!I198 -> 0 | N200: =データ貼付!J198 -> 0 | O200: =データ貼付!K198 -> 0
A201: @ | B201: @ | C201: @ | D201: @ | E201: @ | F201: @ | G201: @ | H201: @ | J201: @ | K201: @ | L201: @ | M201: @ | N201: @ | O201: @ | P201: @ | Q201: @ | R201: @ | S201: @ | T201: @ | U201: @ | V201: @ | W201: @ | X201: @ | Y201: @ | Z201: @ | AA201: @ | AB201: @ | AC201: @ | AD201: @ | AE201: @ | AF201: @ | AG201: @ | AH201: @ | AI201: @ | AJ201: @ | AK201: @ | AL201: @ | AM201: @ | AN201: @ | AO201: @ | AP201: @ | AQ201: @ | AR201: @ | AS201: @ | AT201: @ | AU201: @ | AV201: @ | AW201: @ | AX201: @ | AY201: @ | AZ201: @ | BA201: @ | BB201: @ | BC201: @ | BD201: @ | BE201: @ | BF201: @ | BG201: @ | BH201: @
... 104 more rows

Sheet Sheet2 (hidden)

Sheet Sheet3 (hidden)

Sheet Sheet4 (hidden)

Sheet Sheet5 (hidden)

Sheet Sheet6 (hidden)
C1: 60m
C2: 100m
C3: 200m
C4: 300m
C5: 400m
C6: 800m
C7: 1000m
C8: 1500m
C9: 3000m
C10: 5000m
C11: 80mH
C12: 100mH
C13: 110mH
C14: 100mYH
C15: 110mJH
C16: 400mH
C17: 3000mSC
C18: 5000mW

Sheet Sheet1 (hidden)
